{"text_format":"1","workbook":"xlsx","n_sheets":11,"sheets":["Instructions READ THESE FIRST","Counts","Not Applicable Schools","Non TI & TI Schools - E","Non-Title I & Title I - M","Non-Title I & Title I - H","Non-Title I & Title I - C","All TI - Grade Span - E","All TI - Grade Span - M","All TI - Grade Span - H","All TI - Grade Span - C"],"not_rendered":{"charts":0,"images":0,"macros":1,"external_links":0,"defined_names":4,"comments":0,"pivot_tables":0},"unopened":[],"bounds":{"document_bytes":16777216,"sheet_cells":100000,"rows_first":2000,"rows_last":500,"rows_between":2000,"halvings":0,"cell_chars":16384,"cell_head_chars":4096},"cells_cut":0,"cells_raw":0,"read":"whole","date_system":"1900"}

{"sheet":"Instructions READ THESE FIRST","index":0,"n_rows":26,"n_cols":2,"rows_kept":26,"cut":false,"hidden":false,"merged":[[24,0,24,9],[2,0,2,9],[0,0,0,9],[11,0,11,9],[3,0,3,9],[21,0,21,9],[20,0,20,9],[19,0,19,9],[14,0,14,9],[16,0,16,9],[25,0,25,9],[27,0,27,9],[4,0,4,9],[10,0,10,9],[12,0,12,9],[18,0,18,9],[17,0,17,9],[22,0,22,9],[5,0,5,9],[6,1,6,9],[7,1,7,9],[8,1,8,9],[13,0,13,9],[15,0,15,9],[9,1,9,9],[23,0,23,9],[26,0,26,9],[29,0,29,9],[33,0,33,9],[34,0,34,9],[32,0,32,9],[30,0,30,9],[31,0,31,9],[28,0,28,9]]}
["Instructions"]
[]
["For ease of reference, these instructions have also been provided as a PDF alongside the Comparability Guide, Attestation Form, and Action Plan on Florida CIMS. "]
["1. Use current year data."]
[]
["2. Do not include federal resources in this report. Local Educational Agencies (LEAs) may also exclude state and local costs for:"]
[null,"Language instruction for LEP students; "]
[null,"Excess cost of providing services to student with disabilities"]
[null,"Staff salary differentials for years of employment; and"]
[null,"Supplemental programs that meet the intent and purpose of Title I. "]
[]
["3. Comparability must be met using the pupil-teacher ratio method. If schools are found not comparable, adjustments to the LEA's general ledger should be made to re-allocate state and local resources so that schools are comparable. Alternative comparability methods may also be requested through TIPA@fldoe.org"]
[]
["4. Complete the worksheet on the gray tab titled \"Counts\". "]
[]
["5. Place all schools listed as N/A on the tab labeled Not Applicable. Status of “Not Applicable” (NA) schools based on  ≤100 enrollments or grade-span exclusions."]
[]
["6. Use the worksheet on the blue tab titled, \"Non TI and TI schools\" to determine comparability between Title I and non-Title I schools in the same grade span. Complete one worksheet for each grade span unless using the Student Enrollment Size Range Grouping (see below)."]
[]
["Using the Student Enrollment Size Range Grouping: Use two blue Non-Title l and Title l schools tabs per grade span labeling one Small and one Large. For example, the LEA is using Enrollment Size Range Grouping with elementary schools.  One elementary grade span tab would be used for the \"Small\" enrollement school calculations and one elementary grade span tab would be used for the \"Large\" enrollment school calculations. Contact TiPA@fldoe.org for technical assistance."]
[]
["7. Use the worksheet on the green tab titled, \"All TI schools in grade span\" to determine comparability between all schools in the grade span when all schools receive Title I funds. Complete one worksheet for each grade span unless using Student Enrollment Size Range Grouping (see below)."]
[]
["Using the Student Enrollment Size Range Grouping: Use two green all Title l schools tabs per grade span labeling one Small and one Large. For example, the LEA is using Enrollment Size Range Grouping with elementary schools that are all Title l.  One elementary grade span tab would be used for the \"Small\" enrollement school calculations and one elementary grade span tab would be used for the \"Large\" enrollment school calculations. Contact TiPA@fldoe.org for technical assistance."]
[]
["8. Contact TIPA@fldoe.org if you need support"]

{"sheet":"Counts","index":1,"n_rows":18,"n_cols":7,"rows_kept":18,"cut":false,"hidden":false,"merged":[[17,0,17,2],[0,1,0,2],[2,0,3,0],[4,0,5,0],[6,0,7,0],[8,0,9,0],[1,1,1,2]]}
[1,2,null,3,3,4,4]
["MSID Grade Span","Complete Column 2 only for the Grade Spans you are using with an Enrollment Size Range Grouping**",null,"Number of Title I Schools with >100 student enrollment*","Number of Title I schools with ≤ 100 student enrolled being exempt from calculations","Number of Non-Title I Schools with >100 student enrollment","Number of Non-Title I schools with ≤ 100 students enrolled being exempt from calculations"]
["Elementary (Type 1)","Smaller"]
[null,"Larger"]
["Middle (Type 2)","Smaller"]
[null,"Larger"]
["High (Type 3)","Smaller"]
[null,"Larger"]
["Combination (Type 4)","Smaller"]
[null,"Larger"]
[null,null,"Sub-Totals",{"$f":"SUM(D3:D10)","v":0},{"$f":"SUM(E3:E10)","v":0},{"$f":"SUM(F3:F10)","v":0},{"$f":"SUM(G3:G10)","v":0}]
[null,null,null,"TOTAL Title I Schools",{"$f":"SUM(D11:E11)","v":0},"TOTAL Non-Title I Schools",{"$f":"SUM(F11:G11)","v":0}]
[]
[]
[]
[]
["* \"Skipped\" schools are counted as Title I during comparability. "]
["** Enrollment Size Range restrictions: If exempting schools with 100 or fewer students enrolled, the smallest \"smaler\" within each grade span grouping must start with the LEA's smalest enrollment count school that is greater than 100 students. The smallest \"Larger\" must be at least 2X the smalles \"Smaller\" for that grade span. "]

{"sheet":"Not Applicable Schools","index":2,"n_rows":1,"n_cols":4,"rows_kept":1,"cut":false,"hidden":false,"merged":[]}
["School Number","Type","School Name"," \nStatus of “Not Applicable” (NA) schools based on  ≤100 enrollments or grade-span exclusions."]

{"sheet":"Non TI & TI Schools - E","index":3,"n_rows":438,"n_cols":12,"rows_kept":438,"cut":false,"hidden":false,"merged":[[415,10,415,11],[417,0,417,5],[420,0,420,5],[421,0,421,5],[11,0,12,9],[11,10,12,11],[14,2,14,4],[14,9,14,11],[413,12,413,13],[414,0,414,5],[414,10,414,11],[8,0,9,2],[8,3,8,4],[8,10,8,11],[9,3,9,4],[9,7,9,9],[9,10,9,11],[5,0,6,2],[5,3,5,4],[5,10,5,11],[6,3,6,4],[6,7,6,9],[6,10,6,11],[0,0,0,11],[1,0,1,11],[2,0,2,11],[3,1,3,4],[3,5,3,7],[3,8,3,11]]}
["1. Complete this worksheet if one or more schools in the grade span receive Title I funds and other schools in the grade span do not. Copy this worksheet as necessary."]
["2. Complete one worksheet for each grade span unless using Enrollment Size Range Grouping; then use two per grade span and indicate the range of \"Smaller\" or \"Larger\" on line 3."]
["3. <Enter \"Smaller\" or  \"Larger\" if that Enrollment Size Range Grouping is being used for the calculations below.>"]
["Local Educational Agency:","<Enter LEA name>",null,null,null,"Grade Span",null,null,"<Enter Grade Span>"]
[]
["Total number of students in Non-Title I schools in grade span",null,null,{"$f":"SUM(C17:C409)","v":0},null,null,null,"Averages for comparability options",null,null,{"$f":"IF(D6=0,0,D6/D9)","v":0}]
[null,null,null,"Sum of Column C",null,null,null,"This is the minimum percentage all Title I schools must meet to be consu=idered comparable. ",null,null,"Number of students in \nNon-Title I schools in grade span divided by the total for the option. "]
[]
["Totals for comparability options",null,null,{"$f":"SUM(D17:D409)","v":0},null,null,null,"Allowable variance from the average ",null,null,{"$f":"(K6*1.1)","v":0}]
[null,null,null,"Sum of column D",null,null,null,"The varience level for each Title l school must fall within the defined percentage average (threshold).",null,null,"Shall not exceed \n110% of average"]
[]
["Schools in Grade Span need to be comparable. Each school with a non comparable calculation will appear red and \"Not Comparable\" will appear. If all Title I schools meet comparablility requirements they will appear green and \"Comparable\" will appear. ",null,null,null,null,null,null,null,null,null,{"$f":"IF(COUNTIF(L17:L409,\">\"&K9),\"Not Comparable\",\"Comparable\")","v":"Comparable"}]
[]
[]
[null,null,"Pupil-Teacher Ratio",null,null,null,null,null,null,"Pupil-Teacher Ratio"]
["Non Title I Schools \nDo not include schools in the grade span that have fewer than 100 students enrolled.","Grade Span","\nPublic School\nEnrollment\n(Column C)","FTE Staff\n(Column D)","Student \nStaff\nRatio",null,null,"Title I Schools \nDo not include schools in the grade span that have fewer than 100 students enrolled.","Grade Span","Public School\nEnrollment\n(Column C)","FTE Staff   (Column D)","Student \nStaff\nRatio"]
[null,null,null,null,{"$f":"IF(D17=0,0,C17/D17)","v":0},null,null,null,null,null,null,{"$f":"IF(K17>0,J17/K17,\" \")","v":" "}]
[null,null,null,null,0,null,null,null,null,null,null,{"$f":"IF(K18>0,J18/K18,\" \")","v":" "}]
[null,null,null,null,0,null,null,null,null,null,null,{"$f":"IF(K19>0,J19/K19,\" \")","v":" "}]
[null,null,null,null,0,null,null,null,null,null,null," "]
[null,null,null,null,0,null,null,null,null,null,null," "]
[null,null,null,null,0,null,null,null,null,null,null," "]
[null,null,null,null,0,null,null,null,null,null,null," "]
[null,null,null,null,0,null,null,null,null,null,null," "]
[null,null,null,null,0,null,null,null,null,null,null," "]
[null,null,null,null,0,null,null,null,null,null,null," "]
[null,null,null,null,0,null,null,null,null,null,null," "]
[null,null,null,null,0,null,null,null,null,null,null,{"$f":"IF(K28>0,J28/K28,\" \")","v":" "}]
[null,null,null,null,0,null,null,null,null,null,null,{"$f":"IF(K29>0,J29/K29,\" \")","v":" "}]
[null,null,null,null,0,null,null,null,null,null,null," "]
[null,null,null,null,0,null,null,null,null,null,null," "]
[null,null,null,null,0,null,null,null,null,null,null," "]
[null,null,null,null,0,null,null,null,null,null,null," "]
[null,null,null,null,0,null,null,null,null,null,null," "]
[null,null,null,null,0,null,null,null,null,null,null," "]
[null,null,null,null,0,null,null,null,null,null,null," "]
[null,null,null,null,0,null,null,null,null,null,null,{"$f":"IF(K37>0,J37/K37,\" \")","v":" "}]
[null,null,null,null,0,null,null,null,null,null,null,{"$f":"IF(K38>0,J38/K38,\" \")","v":" "}]
[null,null,null,null,0,null,null,null,null,null,null," "]
[null,null,null,null,0,null,null,null,null,null,null," "]
[null,null,null,null,0,null,null,null,null,null,null," "]
[null,null,null,null,0,null,null,null,null,null,null," "]
[null,null,null,null,0,null,null,null,null,null,null," "]
[null,null,null,null,0,null,null,null,null,null,null," "]
[null,null,null,null,0,null,null,null,null,null,null," "]
[null,null,null,null,0,null,null,null,null,null,null," "]
[null,null,null,null,0,null,null,null,null,null,null,{"$f":"IF(K47>0,J47/K47,\" \")","v":" "}]
[null,null,null,null,0,null,null,null,null,null,null,{"$f":"IF(K48>0,J48/K48,\" \")","v":" "}]
[null,null,null,null,0,null,null,null,null,null,null," "]
[null,null,null,null,0,null,null,null,null,null,null," "]
[null,null,null,null,0,null,null,null,null,null,null," "]
[null,null,null,null,0,null,null,null,null,null,null," "]
[null,null,null,null,0,null,null,null,null,null,null," "]
[null,null,null,null,0,null,null,null,null,null,null," "]
[null,null,null,null,0,null,null,null,null,null,null," "]
[null,null,null,null,0,null,null,null,null,null,null," "]
[null,null,null,null,0,null,null,null,null,null,null,{"$f":"IF(K57>0,J57/K57,\" \")","v":" "}]
[null,null,null,null,0,null,null,null,null,null,null,{"$f":"IF(K58>0,J58/K58,\" \")","v":" "}]
[null,null,null,null,0,null,null,null,null,null,null," "]
[null,null,null,null,0,null,null,null,null,null,null," "]
[null,null,null,null,0,null,null,null,null,null,null," "]
[null,null,null,null,0,null,null,null,null,null,null," "]
[null,null,null,null,0,null,null,null,null,null,null," "]
[null,null,null,null,0,null,null,null,null,null,null," "]
[null,null,null,null,0,null,null,null,null,null,null," "]
[null,null,null,null,0,null,null,null,null,null,null," "]
[null,null,null,null,0,null,null,null,null,null,null,{"$f":"IF(K67>0,J67/K67,\" \")","v":" "}]
[null,null,null,null,0,null,null,null,null,null,null,{"$f":"IF(K68>0,J68/K68,\" \")","v":" "}]
[null,null,null,null,0,null,null,null,null,null,null," "]
[null,null,null,null,0,null,null,null,null,null,null," "]
[null,null,null,null,0,null,null,null,null,null,null," "]
[null,null,null,null,0,null,null,null,null,null,null," "]
[null,null,null,null,0,null,null,null,null,null,null," "]
[null,null,null,null,0,null,null,null,null,null,null," "]
[null,null,null,null,0,null,null,null,null,null,null," "]
[null,null,null,null,0,null,null,null,null,null,null,{"$f":"IF(K76>0,J76/K76,\" \")","v":" "}]
[null,null,null,null,0,null,null,null,null,null,null,{"$f":"IF(K77>0,J77/K77,\" \")","v":" "}]
[null,null,null,null,0,null,null,null,null,null,null," "]
[null,null,null,null,0,null,null,null,null,null,null," "]
[null,null,null,null,0,null,null,null,null,null,null," "]
[null,null,null,null,{"$f":"IF(D81=0,0,C81/D81)","v":0},null,null,null,null,null,null," "]
[null,null,null,null,0,null,null,null,null,null,null," "]
[null,null,null,null,0,null,null,null,null,null,null," "]
[null,null,null,null,0,null,null,null,null,null,null," "]
[null,null,null,null,0,null,null,null,null,null,null," "]
[null,null,null,null,0,null,null,null,null,null,null,{"$f":"IF(K86>0,J86/K86,\" \")","v":" "}]
[null,null,null,null,0,null,null,null,null,null,null,{"$f":"IF(K87>0,J87/K87,\" \")","v":" "}]
[null,null,null,null,0,null,null,null,null,null,null," "]
[null,null,null,null,0,null,null,null,null,null,null," "]
[null,null,null,null,0,null,null,null,null,null,null," "]
[null,null,null,null,0,null,null,null,null,null,null," "]
[null,null,null,null,0,null,null,null,null,null,null," "]
[null,null,null,null,0,null,null,null,null,null,null," "]
[null,null,null,null,0,null,null,null,null,null,null," "]
[null,null,null,null,0,null,null,null,null,null,null," "]
[null,null,null,null,0,null,null,null,null,null,null,{"$f":"IF(K96>0,J96/K96,\" \")","v":" "}]
[null,null,null,null,0,null,null,null,null,null,null,{"$f":"IF(K97>0,J97/K97,\" \")","v":" "}]
[null,null,null,null,0,null,null,null,null,null,null," "]
[null,null,null,null,0,null,null,null,null,null,null," "]
[null,null,null,null,0,null,null,null,null,null,null," "]
[null,null,null,null,0,null,null,null,null,null,null," "]
[null,null,null,null,0,null,null,null,null,null,null," "]
[null,null,null,null,0,null,null,null,null,null,null," "]
[null,null,null,null,0,null,null,null,null,null,null," "]
[null,null,null,null,0,null,null,null,null,null,null," "]
[null,null,null,null,0,null,null,null,null,null,null,{"$f":"IF(K106>0,J106/K106,\" \")","v":" "}]
[null,null,null,null,0,null,null,null,null,null,null,{"$f":"IF(K107>0,J107/K107,\" \")","v":" "}]
[null,null,null,null,0,null,null,null,null,null,null," "]
[null,null,null,null,0,null,null,null,null,null,null," "]
[null,null,null,null,0,null,null,null,null,null,null," "]
[null,null,null,null,0,null,null,null,null,null,null," "]
[null,null,null,null,0,null,null,null,null,null,null," "]
[null,null,null,null,0,null,null,null,null,null,null," "]
[null,null,null,null,0,null,null,null,null,null,null," "]
[null,null,null,null,0,null,null,null,null,null,null,{"$f":"IF(K115>0,J115/K115,\" \")","v":" "}]
[null,null,null,null,0,null,null,null,null,null,null,{"$f":"IF(K116>0,J116/K116,\" \")","v":" "}]
[null,null,null,null,0,null,null,null,null,null,null," "]
[null,null,null,null,0,null,null,null,null,null,null," "]
[null,null,null,null,0,null,null,null,null,null,null," "]
[null,null,null,null,0,null,null,null,null,null,null," "]
[null,null,null,null,0,null,null,null,null,null,null," "]
[null,null,null,null,0,null,null,null,null,null,null," "]
[null,null,null,null,0,null,null,null,null,null,null," "]
[null,null,null,null,0,null,null,null,null,null,null," "]
[null,null,null,null,0,null,null,null,null,null,null,{"$f":"IF(K125>0,J125/K125,\" \")","v":" "}]
[null,null,null,null,0,null,null,null,null,null,null,{"$f":"IF(K126>0,J126/K126,\" \")","v":" "}]
[null,null,null,null,0,null,null,null,null,null,null," "]
[null,null,null,null,0,null,null,null,null,null,null," "]
[null,null,null,null,0,null,null,null,null,null,null," "]
[null,null,null,null,0,null,null,null,null,null,null," "]
[null,null,null,null,0,null,null,null,null,null,null," "]
[null,null,null,null,0,null,null,null,null,null,null," "]
[null,null,null,null,0,null,null,null,null,null,null," "]
[null,null,null,null,0,null,null,null,null,null,null," "]
[null,null,null,null,0,null,null,null,null,null,null,{"$f":"IF(K135>0,J135/K135,\" \")","v":" "}]
[null,null,null,null,0,null,null,null,null,null,null,{"$f":"IF(K136>0,J136/K136,\" \")","v":" "}]
[null,null,null,null,0,null,null,null,null,null,null," "]
[null,null,null,null,0,null,null,null,null,null,null," "]
[null,null,null,null,0,null,null,null,null,null,null," "]
[null,null,null,null,0,null,null,null,null,null,null," "]
[null,null,null,null,0,null,null,null,null,null,null," "]
[null,null,null,null,0,null,null,null,null,null,null," "]
[null,null,null,null,0,null,null,null,null,null,null," "]
[null,null,null,null,0,null,null,null,null,null,null," "]
[null,null,null,null,{"$f":"IF(D145=0,0,C145/D145)","v":0},null,null,null,null,null,null,{"$f":"IF(K145>0,J145/K145,\" \")","v":" "}]
[null,null,null,null,0,null,null,null,null,null,null,{"$f":"IF(K146>0,J146/K146,\" \")","v":" "}]
[null,null,null,null,0,null,null,null,null,null,null," "]
[null,null,null,null,0,null,null,null,null,null,null," "]
[null,null,null,null,0,null,null,null,null,null,null," "]
[null,null,null,null,0,null,null,null,null,null,null," "]
[null,null,null,null,0,null,null,null,null,null,null," "]
[null,null,null,null,0,null,null,null,null,null,null," "]
[null,null,null,null,0,null,null,null,null,null,null," "]
[null,null,null,null,0,null,null,null,null,null,null,{"$f":"IF(K154>0,J154/K154,\" \")","v":" "}]
[null,null,null,null,0,null,null,null,null,null,null,{"$f":"IF(K155>0,J155/K155,\" \")","v":" "}]
[null,null,null,null,0,null,null,null,null,null,null," "]
[null,null,null,null,0,null,null,null,null,null,null," "]
[null,null,null,null,0,null,null,null,null,null,null," "]
[null,null,null,null,0,null,null,null,null,null,null," "]
[null,null,null,null,0,null,null,null,null,null,null," "]
[null,null,null,null,0,null,null,null,null,null,null," "]
[null,null,null,null,0,null,null,null,null,null,null," "]
[null,null,null,null,0,null,null,null,null,null,null," "]
[null,null,null,null,0,null,null,null,null,null,null,{"$f":"IF(K164>0,J164/K164,\" \")","v":" "}]
[null,null,null,null,0,null,null,null,null,null,null,{"$f":"IF(K165>0,J165/K165,\" \")","v":" "}]
[null,null,null,null,0,null,null,null,null,null,null," "]
[null,null,null,null,0,null,null,null,null,null,null," "]
[null,null,null,null,0,null,null,null,null,null,null," "]
[null,null,null,null,0,null,null,null,null,null,null," "]
[null,null,null,null,0,null,null,null,null,null,null," "]
[null,null,null,null,0,null,null,null,null,null,null," "]
[null,null,null,null,0,null,null,null,null,null,null," "]
[null,null,null,null,0,null,null,null,null,null,null," "]
[null,null,null,null,0,null,null,null,null,null,null,{"$f":"IF(K174>0,J174/K174,\" \")","v":" "}]
[null,null,null,null,0,null,null,null,null,null,null,{"$f":"IF(K175>0,J175/K175,\" \")","v":" "}]
[null,null,null,null,0,null,null,null,null,null,null," "]
[null,null,null,null,0,null,null,null,null,null,null," "]
[null,null,null,null,0,null,null,null,null,null,null," "]
[null,null,null,null,0,null,null,null,null,null,null," "]
[null,null,null,null,0,null,null,null,null,null,null," "]
[null,null,null,null,0,null,null,null,null,null,null," "]
[null,null,null,null,0,null,null,null,null,null,null," "]
[null,null,null,null,0,null,null,null,null,null,null," "]
[null,null,null,null,0,null,null,null,null,null,null,{"$f":"IF(K184>0,J184/K184,\" \")","v":" "}]
[null,null,null,null,0,null,null,null,null,null,null,{"$f":"IF(K185>0,J185/K185,\" \")","v":" "}]
[null,null,null,null,0,null,null,null,null,null,null," "]
[null,null,null,null,0,null,null,null,null,null,null," "]
[null,null,null,null,0,null,null,null,null,null,null," "]
[null,null,null,null,0,null,null,null,null,null,null," "]
[null,null,null,null,0,null,null,null,null,null,null," "]
[null,null,null,null,0,null,null,null,null,null,null," "]
[null,null,null,null,0,null,null,null,null,null,null," "]
[null,null,null,null,0,null,null,null,null,null,null,{"$f":"IF(K193>0,J193/K193,\" \")","v":" "}]
[null,null,null,null,0,null,null,null,null,null,null,{"$f":"IF(K194>0,J194/K194,\" \")","v":" "}]
[null,null,null,null,0,null,null,null,null,null,null," "]
[null,null,null,null,0,null,null,null,null,null,null," "]
[null,null,null,null,0,null,null,null,null,null,null," "]
[null,null,null,null,0,null,null,null,null,null,null," "]
[null,null,null,null,0,null,null,null,null,null,null," "]
[null,null,null,null,0,null,null,null,null,null,null," "]
[null,null,null,null,0,null,null,null,null,null,null," "]
[null,null,null,null,0,null,null,null,null,null,null," "]
[null,null,null,null,0,null,null,null,null,null,null,{"$f":"IF(K203>0,J203/K203,\" \")","v":" "}]
[null,null,null,null,0,null,null,null,null,null,null,{"$f":"IF(K204>0,J204/K204,\" \")","v":" "}]
[null,null,null,null,0,null,null,null,null,null,null," "]
[null,null,null,null,0,null,null,null,null,null,null," "]
[null,null,null,null,0,null,null,null,null,null,null," "]
[null,null,null,null,0,null,null,null,null,null,null," "]
[null,null,null,null,{"$f":"IF(D209=0,0,C209/D209)","v":0},null,null,null,null,null,null," "]
[null,null,null,null,0,null,null,null,null,null,null," "]
[null,null,null,null,0,null,null,null,null,null,null," "]
[null,null,null,null,0,null,null,null,null,null,null," "]
[null,null,null,null,0,null,null,null,null,null,null,{"$f":"IF(K213>0,J213/K213,\" \")","v":" "}]
[null,null,null,null,0,null,null,null,null,null,null,{"$f":"IF(K214>0,J214/K214,\" \")","v":" "}]
[null,null,null,null,0,null,null,null,null,null,null," "]
[null,null,null,null,0,null,null,null,null,null,null," "]
[null,null,null,null,0,null,null,null,null,null,null," "]
[null,null,null,null,0,null,null,null,null,null,null," "]
[null,null,null,null,0,null,null,null,null,null,null," "]
[null,null,null,null,0,null,null,null,null,null,null," "]
[null,null,null,null,0,null,null,null,null,null,null," "]
[null,null,null,null,0,null,null,null,null,null,null," "]
[null,null,null,null,0,null,null,null,null,null,null,{"$f":"IF(K223>0,J223/K223,\" \")","v":" "}]
[null,null,null,null,0,null,null,null,null,null,null,{"$f":"IF(K224>0,J224/K224,\" \")","v":" "}]
[null,null,null,null,0,null,null,null,null,null,null," "]
[null,null,null,null,0,null,null,null,null,null,null," "]
[null,null,null,null,0,null,null,null,null,null,null," "]
[null,null,null,null,0,null,null,null,null,null,null," "]
[null,null,null,null,0,null,null,null,null,null,null," "]
[null,null,null,null,0,null,null,null,null,null,null," "]
[null,null,null,null,0,null,null,null,null,null,null," "]
[null,null,null,null,0,null,null,null,null,null,null,{"$f":"IF(K232>0,J232/K232,\" \")","v":" "}]
[null,null,null,null,0,null,null,null,null,null,null,{"$f":"IF(K233>0,J233/K233,\" \")","v":" "}]
[null,null,null,null,0,null,null,null,null,null,null," "]
[null,null,null,null,0,null,null,null,null,null,null," "]
[null,null,null,null,0,null,null,null,null,null,null," "]
[null,null,null,null,0,null,null,null,null,null,null," "]
[null,null,null,null,0,null,null,null,null,null,null," "]
[null,null,null,null,0,null,null,null,null,null,null," "]
[null,null,null,null,0,null,null,null,null,null,null," "]
[null,null,null,null,0,null,null,null,null,null,null," "]
[null,null,null,null,0,null,null,null,null,null,null,{"$f":"IF(K242>0,J242/K242,\" \")","v":" "}]
[null,null,null,null,0,null,null,null,null,null,null,{"$f":"IF(K243>0,J243/K243,\" \")","v":" "}]
[null,null,null,null,0,null,null,null,null,null,null," "]
[null,null,null,null,0,null,null,null,null,null,null," "]
[null,null,null,null,0,null,null,null,null,null,null," "]
[null,null,null,null,0,null,null,null,null,null,null," "]
[null,null,null,null,0,null,null,null,null,null,null," "]
[null,null,null,null,0,null,null,null,null,null,null," "]
[null,null,null,null,0,null,null,null,null,null,null," "]
[null,null,null,null,0,null,null,null,null,null,null," "]
[null,null,null,null,0,null,null,null,null,null,null,{"$f":"IF(K252>0,J252/K252,\" \")","v":" "}]
[null,null,null,null,0,null,null,null,null,null,null,{"$f":"IF(K253>0,J253/K253,\" \")","v":" "}]
[null,null,null,null,0,null,null,null,null,null,null," "]
[null,null,null,null,0,null,null,null,null,null,null," "]
[null,null,null,null,0,null,null,null,null,null,null," "]
[null,null,null,null,0,null,null,null,null,null,null," "]
[null,null,null,null,0,null,null,null,null,null,null," "]
[null,null,null,null,0,null,null,null,null,null,null," "]
[null,null,null,null,0,null,null,null,null,null,null," "]
[null,null,null,null,0,null,null,null,null,null,null," "]
[null,null,null,null,0,null,null,null,null,null,null,{"$f":"IF(K262>0,J262/K262,\" \")","v":" "}]
[null,null,null,null,0,null,null,null,null,null,null,{"$f":"IF(K263>0,J263/K263,\" \")","v":" "}]
[null,null,null,null,0,null,null,null,null,null,null," "]
[null,null,null,null,0,null,null,null,null,null,null," "]
[null,null,null,null,0,null,null,null,null,null,null," "]
[null,null,null,null,0,null,null,null,null,null,null," "]
[null,null,null,null,0,null,null,null,null,null,null," "]
[null,null,null,null,0,null,null,null,null,null,null," "]
[null,null,null,null,0,null,null,null,null,null,null," "]
[null,null,null,null,0,null,null,null,null,null,null,{"$f":"IF(K271>0,J271/K271,\" \")","v":" "}]
[null,null,null,null,0,null,null,null,null,null,null,{"$f":"IF(K272>0,J272/K272,\" \")","v":" "}]
[null,null,null,null,{"$f":"IF(D273=0,0,C273/D273)","v":0},null,null,null,null,null,null," "]
[null,null,null,null,0,null,null,null,null,null,null," "]
[null,null,null,null,0,null,null,null,null,null,null," "]
[null,null,null,null,0,null,null,null,null,null,null," "]
[null,null,null,null,0,null,null,null,null,null,null," "]
[null,null,null,null,0,null,null,null,null,null,null," "]
[null,null,null,null,0,null,null,null,null,null,null," "]
[null,null,null,null,0,null,null,null,null,null,null," "]
[null,null,null,null,0,null,null,null,null,null,null,{"$f":"IF(K281>0,J281/K281,\" \")","v":" "}]
[null,null,null,null,0,null,null,null,null,null,null,{"$f":"IF(K282>0,J282/K282,\" \")","v":" "}]
[null,null,null,null,0,null,null,null,null,null,null," "]
[null,null,null,null,0,null,null,null,null,null,null," "]
[null,null,null,null,0,null,null,null,null,null,null," "]
[null,null,null,null,0,null,null,null,null,null,null," "]
[null,null,null,null,0,null,null,null,null,null,null," "]
[null,null,null,null,0,null,null,null,null,null,null," "]
[null,null,null,null,0,null,null,null,null,null,null," "]
[null,null,null,null,0,null,null,null,null,null,null," "]
[null,null,null,null,0,null,null,null,null,null,null,{"$f":"IF(K291>0,J291/K291,\" \")","v":" "}]
[null,null,null,null,0,null,null,null,null,null,null,{"$f":"IF(K292>0,J292/K292,\" \")","v":" "}]
[null,null,null,null,0,null,null,null,null,null,null," "]
[null,null,null,null,0,null,null,null,null,null,null," "]
[null,null,null,null,0,null,null,null,null,null,null," "]
[null,null,null,null,0,null,null,null,null,null,null," "]
[null,null,null,null,0,null,null,null,null,null,null," "]
[null,null,null,null,0,null,null,null,null,null,null," "]
[null,null,null,null,0,null,null,null,null,null,null," "]
[null,null,null,null,0,null,null,null,null,null,null," "]
[null,null,null,null,0,null,null,null,null,null,null,{"$f":"IF(K301>0,J301/K301,\" \")","v":" "}]
[null,null,null,null,0,null,null,null,null,null,null,{"$f":"IF(K302>0,J302/K302,\" \")","v":" "}]
[null,null,null,null,0,null,null,null,null,null,null," "]
[null,null,null,null,0,null,null,null,null,null,null," "]
[null,null,null,null,0,null,null,null,null,null,null," "]
[null,null,null,null,0,null,null,null,null,null,null," "]
[null,null,null,null,0,null,null,null,null,null,null," "]
[null,null,null,null,0,null,null,null,null,null,null," "]
[null,null,null,null,0,null,null,null,null,null,null," "]
[null,null,null,null,0,null,null,null,null,null,null,{"$f":"IF(K310>0,J310/K310,\" \")","v":" "}]
[null,null,null,null,0,null,null,null,null,null,null,{"$f":"IF(K311>0,J311/K311,\" \")","v":" "}]
[null,null,null,null,0,null,null,null,null,null,null," "]
[null,null,null,null,0,null,null,null,null,null,null," "]
[null,null,null,null,0,null,null,null,null,null,null," "]
[null,null,null,null,0,null,null,null,null,null,null," "]
[null,null,null,null,0,null,null,null,null,null,null," "]
[null,null,null,null,0,null,null,null,null,null,null," "]
[null,null,null,null,0,null,null,null,null,null,null," "]
[null,null,null,null,0,null,null,null,null,null,null," "]
[null,null,null,null,0,null,null,null,null,null,null,{"$f":"IF(K320>0,J320/K320,\" \")","v":" "}]
[null,null,null,null,0,null,null,null,null,null,null,{"$f":"IF(K321>0,J321/K321,\" \")","v":" "}]
[null,null,null,null,0,null,null,null,null,null,null," "]
[null,null,null,null,0,null,null,null,null,null,null," "]
[null,null,null,null,0,null,null,null,null,null,null," "]
[null,null,null,null,0,null,null,null,null,null,null," "]
[null,null,null,null,0,null,null,null,null,null,null," "]
[null,null,null,null,0,null,null,null,null,null,null," "]
[null,null,null,null,0,null,null,null,null,null,null," "]
[null,null,null,null,0,null,null,null,null,null,null," "]
[null,null,null,null,0,null,null,null,null,null,null," "]
[null,null,null,null,0,null,null,null,null,null,null," "]
[null,null,null,null,0,null,null,null,null,null,null," "]
[null,null,null,null,0,null,null,null,null,null,null," "]
[null,null,null,null,0,null,null,null,null,null,null,{"$f":"IF(K334>0,J334/K334,\" \")","v":" "}]
[null,null,null,null,0,null,null,null,null,null,null,{"$f":"IF(K335>0,J335/K335,\" \")","v":" "}]
[null,null,null,null,0,null,null,null,null,null,null," "]
[null,null,null,null,{"$f":"IF(D337=0,0,C337/D337)","v":0},null,null,null,null,null,null," "]
[null,null,null,null,0,null,null,null,null,null,null," "]
[null,null,null,null,0,null,null,null,null,null,null," "]
[null,null,null,null,0,null,null,null,null,null,null," "]
[null,null,null,null,0,null,null,null,null,null,null," "]
[null,null,null,null,0,null,null,null,null,null,null," "]
[null,null,null,null,0,null,null,null,null,null,null," "]
[null,null,null,null,0,null,null,null,null,null,null,{"$f":"IF(K344>0,J344/K344,\" \")","v":" "}]
[null,null,null,null,0,null,null,null,null,null,null,{"$f":"IF(K345>0,J345/K345,\" \")","v":" "}]
[null,null,null,null,0,null,null,null,null,null,null," "]
[null,null,null,null,0,null,null,null,null,null,null," "]
[null,null,null,null,0,null,null,null,null,null,null," "]
[null,null,null,null,0,null,null,null,null,null,null," "]
[null,null,null,null,0,null,null,null,null,null,null," "]
[null,null,null,null,0,null,null,null,null,null,null," "]
[null,null,null,null,0,null,null,null,null,null,null," "]
[null,null,null,null,0,null,null,null,null,null,null," "]
[null,null,null,null,0,null,null,null,null,null,null,{"$f":"IF(K354>0,J354/K354,\" \")","v":" "}]
[null,null,null,null,0,null,null,null,null,null,null,{"$f":"IF(K355>0,J355/K355,\" \")","v":" "}]
[null,null,null,null,0,null,null,null,null,null,null," "]
[null,null,null,null,0,null,null,null,null,null,null," "]
[null,null,null,null,0,null,null,null,null,null,null," "]
[null,null,null,null,0,null,null,null,null,null,null," "]
[null,null,null,null,0,null,null,null,null,null,null," "]
[null,null,null,null,0,null,null,null,null,null,null," "]
[null,null,null,null,0,null,null,null,null,null,null," "]
[null,null,null,null,0,null,null,null,null,null,null," "]
[null,null,null,null,0,null,null,null,null,null,null,{"$f":"IF(K364>0,J364/K364,\" \")","v":" "}]
[null,null,null,null,0,null,null,null,null,null,null,{"$f":"IF(K365>0,J365/K365,\" \")","v":" "}]
[null,null,null,null,0,null,null,null,null,null,null," "]
[null,null,null,null,0,null,null,null,null,null,null," "]
[null,null,null,null,0,null,null,null,null,null,null," "]
[null,null,null,null,0,null,null,null,null,null,null," "]
[null,null,null,null,0,null,null,null,null,null,null," "]
[null,null,null,null,0,null,null,null,null,null,null," "]
[null,null,null,null,0,null,null,null,null,null,null," "]
[null,null,null,null,0,null,null,null,null,null,null,{"$f":"IF(K373>0,J373/K373,\" \")","v":" "}]
[null,null,null,null,0,null,null,null,null,null,null,{"$f":"IF(K374>0,J374/K374,\" \")","v":" "}]
[null,null,null,null,0,null,null,null,null,null,null," "]
[null,null,null,null,0,null,null,null,null,null,null," "]
[null,null,null,null,0,null,null,null,null,null,null," "]
[null,null,null,null,0,null,null,null,null,null,null," "]
[null,null,null,null,0,null,null,null,null,null,null," "]
[null,null,null,null,0,null,null,null,null,null,null," "]
[null,null,null,null,0,null,null,null,null,null,null," "]
[null,null,null,null,0,null,null,null,null,null,null," "]
[null,null,null,null,0,null,null,null,null,null,null,{"$f":"IF(K383>0,J383/K383,\" \")","v":" "}]
[null,null,null,null,0,null,null,null,null,null,null,{"$f":"IF(K384>0,J384/K384,\" \")","v":" "}]
[null,null,null,null,0,null,null,null,null,null,null," "]
[null,null,null,null,0,null,null,null,null,null,null," "]
[null,null,null,null,0,null,null,null,null,null,null," "]
[null,null,null,null,0,null,null,null,null,null,null," "]
[null,null,null,null,0,null,null,null,null,null,null," "]
[null,null,null,null,0,null,null,null,null,null,null," "]
[null,null,null,null,0,null,null,null,null,null,null," "]
[null,null,null,null,0,null,null,null,null,null,null," "]
[null,null,null,null,0,null,null,null,null,null,null,{"$f":"IF(K393>0,J393/K393,\" \")","v":" "}]
[null,null,null,null,0,null,null,null,null,null,null,{"$f":"IF(K394>0,J394/K394,\" \")","v":" "}]
[null,null,null,null,0,null,null,null,null,null,null," "]
[null,null,null,null,0,null,null,null,null,null,null," "]
[null,null,null,null,0,null,null,null,null,null,null," "]
[null,null,null,null,0,null,null,null,null,null,null," "]
[null,null,null,null,0,null,null,null,null,null,null," "]
[null,null,null,null,0,null,null,null,null,null,null," "]
[null,null,null,null,{"$f":"IF(D401=0,0,C401/D401)","v":0},null,null,null,null,null,null," "]
[null,null,null,null,0,null,null,null,null,null,null," "]
[null,null,null,null,0,null,null,null,null,null,null,{"$f":"IF(K403>0,J403/K403,\" \")","v":" "}]
[null,null,null,null,0,null,null,null,null,null,null,{"$f":"IF(K404>0,J404/K404,\" \")","v":" "}]
[null,null,null,null,0,null,null,null,null,null,null," "]
[null,null,null,null,0,null,null,null,null,null,null," "]
[null,null,null,null,0,null,null,null,null,null,null," "]
[null,null,null,null,0,null,null,null,null,null,null," "]
[null,null,null,null,0,null,null,null,null,null,null," "]
[]
[]
[]
[]
[]
[]
[]
[]
[]
[]
[]
[]
[]
[]
[]
[]
[]
[]
[]
[null,null,null,null,null,null,{"$f":"IF(OR(#REF!>#REF!,#REF!=\"\"),2,1)","v":{"$error":"#REF!"}}]
[null,null,null,null,null,null,{"$f":"IF(OR(#REF!>#REF!,#REF!=\"\"),2,1)","v":{"$error":"#REF!"}}]
[null,null,null,null,null,null,{"$f":"IF(OR(#REF!>#REF!,#REF!=\"\"),2,1)","v":{"$error":"#REF!"}}]
[null,null,null,null,null,null,{"$f":"IF(OR(#REF!>#REF!,#REF!=\"\"),2,1)","v":{"$error":"#REF!"}}]
[null,null,null,null,null,null,{"$f":"IF(OR(#REF!>#REF!,#REF!=\"\"),2,1)","v":{"$error":"#REF!"}}]
[null,null,null,null,null,null,{"$f":"IF(OR(#REF!>#REF!,#REF!=\"\"),2,1)","v":{"$error":"#REF!"}}]
[null,null,null,null,null,null,{"$f":"IF(OR(#REF!>#REF!,#REF!=\"\"),2,1)","v":{"$error":"#REF!"}}]
[null,null,null,null,null,null,{"$f":"IF(OR(#REF!>#REF!,#REF!=\"\"),2,1)","v":{"$error":"#REF!"}}]
[null,null,null,null,null,null,{"$f":"IF(OR(#REF!>#REF!,#REF!=\"\"),2,1)","v":{"$error":"#REF!"}}]
[null,null,null,null,null,null,{"$f":"IF(OR(#REF!>#REF!,#REF!=\"\"),2,1)","v":{"$error":"#REF!"}}]

{"sheet":"Non-Title I & Title I - M","index":4,"n_rows":438,"n_cols":12,"rows_kept":438,"cut":false,"hidden":false,"merged":[[415,10,415,11],[417,0,417,5],[420,0,420,5],[421,0,421,5],[11,0,12,9],[11,10,12,11],[14,2,14,4],[14,9,14,11],[413,12,413,13],[414,0,414,5],[414,10,414,11],[8,0,9,2],[8,3,8,4],[8,10,8,11],[9,3,9,4],[9,7,9,9],[9,10,9,11],[5,0,6,2],[5,3,5,4],[5,10,5,11],[6,3,6,4],[6,7,6,9],[6,10,6,11],[0,0,0,11],[1,0,1,11],[2,0,2,11],[3,1,3,4],[3,5,3,7],[3,8,3,11]]}
["1. Complete this worksheet if one or more schools in the grade span receive Title I funds and other schools in the grade span do not. Copy this worksheet as necessary."]
["2. Complete one worksheet for each grade span unless using Enrollment Size Range Grouping; then use two per grade span and indicate the range of \"Smaller\" or \"Larger\" on line 3."]
["3. <Enter \"Smaller\" or  \"Larger\" if that Enrollment Size Range Grouping is being used for the calculations below.>"]
["Local Educational Agency:","<Enter LEA name>",null,null,null,"Grade Span",null,null,"<Enter Grade Span>"]
[]
["Total number of students in Non-Title I schools in grade span",null,null,{"$f":"SUM(C17:C409)","v":0},null,null,null,"Averages for comparability options",null,null,{"$f":"IF(D6=0,0,D6/D9)","v":0}]
[null,null,null,"Sum of Column C",null,null,null,"This is the minimum percentage all Title I schools must meet to be consu=idered comparable. ",null,null,"Number of students in \nNon-Title I schools in grade span divided by the total for the option. "]
[]
["Totals for comparability options",null,null,{"$f":"SUM(D17:D409)","v":0},null,null,null,"Allowable variance from the average ",null,null,{"$f":"(K6*1.1)","v":0}]
[null,null,null,"Sum of column D",null,null,null,"The varience level for each Title l school must fall within the defined percentage average (threshold).",null,null,"Shall not exceed \n110% of average"]
[]
["Schools in Grade Span need to be comparable. Each school with a non comparable calculation will appear red and \"Not Comparable\" will appear. If all Title I schools meet comparablility requirements they will appear green and \"Comparable\" will appear. ",null,null,null,null,null,null,null,null,null,{"$f":"IF(COUNTIF(L17:L409,\">\"&K9),\"Not Comparable\",\"Comparable\")","v":"Comparable"}]
[]
[]
[null,null,"Pupil-Teacher Ratio",null,null,null,null,null,null,"Pupil-Teacher Ratio"]
["Non Title I Schools \nDo not include schools in the grade span that have fewer than 100 students enrolled.","Grade Span","\nPublic School\nEnrollment\n(Column C)","FTE Staff\n(Column D)","Student \nStaff\nRatio",null,null,"Title I Schools \nDo not include schools in the grade span that have fewer than 100 students enrolled.","Grade Span","Public School\nEnrollment\n(Column C)","FTE Staff   (Column D)","Student \nStaff\nRatio"]
[null,null,null,null,{"$f":"IF(D17=0,0,C17/D17)","v":0},null,null,null,null,null,null,{"$f":"IF(K17>0,J17/K17,\" \")","v":" "}]
[null,null,null,null,0,null,null,null,null,null,null,{"$f":"IF(K18>0,J18/K18,\" \")","v":" "}]
[null,null,null,null,0,null,null,null,null,null,null,{"$f":"IF(K19>0,J19/K19,\" \")","v":" "}]
[null,null,null,null,0,null,null,null,null,null,null," "]
[null,null,null,null,0,null,null,null,null,null,null," "]
[null,null,null,null,0,null,null,null,null,null,null," "]
[null,null,null,null,0,null,null,null,null,null,null," "]
[null,null,null,null,0,null,null,null,null,null,null," "]
[null,null,null,null,0,null,null,null,null,null,null," "]
[null,null,null,null,0,null,null,null,null,null,null," "]
[null,null,null,null,0,null,null,null,null,null,null," "]
[null,null,null,null,0,null,null,null,null,null,null,{"$f":"IF(K28>0,J28/K28,\" \")","v":" "}]
[null,null,null,null,0,null,null,null,null,null,null,{"$f":"IF(K29>0,J29/K29,\" \")","v":" "}]
[null,null,null,null,0,null,null,null,null,null,null," "]
[null,null,null,null,0,null,null,null,null,null,null," "]
[null,null,null,null,0,null,null,null,null,null,null," "]
[null,null,null,null,0,null,null,null,null,null,null," "]
[null,null,null,null,0,null,null,null,null,null,null," "]
[null,null,null,null,0,null,null,null,null,null,null," "]
[null,null,null,null,0,null,null,null,null,null,null," "]
[null,null,null,null,0,null,null,null,null,null,null,{"$f":"IF(K37>0,J37/K37,\" \")","v":" "}]
[null,null,null,null,0,null,null,null,null,null,null,{"$f":"IF(K38>0,J38/K38,\" \")","v":" "}]
[null,null,null,null,0,null,null,null,null,null,null," "]
[null,null,null,null,0,null,null,null,null,null,null," "]
[null,null,null,null,0,null,null,null,null,null,null," "]
[null,null,null,null,0,null,null,null,null,null,null," "]
[null,null,null,null,0,null,null,null,null,null,null," "]
[null,null,null,null,0,null,null,null,null,null,null," "]
[null,null,null,null,0,null,null,null,null,null,null," "]
[null,null,null,null,0,null,null,null,null,null,null," "]
[null,null,null,null,0,null,null,null,null,null,null,{"$f":"IF(K47>0,J47/K47,\" \")","v":" "}]
[null,null,null,null,0,null,null,null,null,null,null,{"$f":"IF(K48>0,J48/K48,\" \")","v":" "}]
[null,null,null,null,0,null,null,null,null,null,null," "]
[null,null,null,null,0,null,null,null,null,null,null," "]
[null,null,null,null,0,null,null,null,null,null,null," "]
[null,null,null,null,0,null,null,null,null,null,null," "]
[null,null,null,null,0,null,null,null,null,null,null," "]
[null,null,null,null,0,null,null,null,null,null,null," "]
[null,null,null,null,0,null,null,null,null,null,null," "]
[null,null,null,null,0,null,null,null,null,null,null," "]
[null,null,null,null,0,null,null,null,null,null,null,{"$f":"IF(K57>0,J57/K57,\" \")","v":" "}]
[null,null,null,null,0,null,null,null,null,null,null,{"$f":"IF(K58>0,J58/K58,\" \")","v":" "}]
[null,null,null,null,0,null,null,null,null,null,null," "]
[null,null,null,null,0,null,null,null,null,null,null," "]
[null,null,null,null,0,null,null,null,null,null,null," "]
[null,null,null,null,0,null,null,null,null,null,null," "]
[null,null,null,null,0,null,null,null,null,null,null," "]
[null,null,null,null,0,null,null,null,null,null,null," "]
[null,null,null,null,0,null,null,null,null,null,null," "]
[null,null,null,null,0,null,null,null,null,null,null," "]
[null,null,null,null,0,null,null,null,null,null,null,{"$f":"IF(K67>0,J67/K67,\" \")","v":" "}]
[null,null,null,null,0,null,null,null,null,null,null,{"$f":"IF(K68>0,J68/K68,\" \")","v":" "}]
[null,null,null,null,0,null,null,null,null,null,null," "]
[null,null,null,null,0,null,null,null,null,null,null," "]
[null,null,null,null,0,null,null,null,null,null,null," "]
[null,null,null,null,0,null,null,null,null,null,null," "]
[null,null,null,null,0,null,null,null,null,null,null," "]
[null,null,null,null,0,null,null,null,null,null,null," "]
[null,null,null,null,0,null,null,null,null,null,null," "]
[null,null,null,null,0,null,null,null,null,null,null,{"$f":"IF(K76>0,J76/K76,\" \")","v":" "}]
[null,null,null,null,0,null,null,null,null,null,null,{"$f":"IF(K77>0,J77/K77,\" \")","v":" "}]
[null,null,null,null,0,null,null,null,null,null,null," "]
[null,null,null,null,0,null,null,null,null,null,null," "]
[null,null,null,null,0,null,null,null,null,null,null," "]
[null,null,null,null,{"$f":"IF(D81=0,0,C81/D81)","v":0},null,null,null,null,null,null," "]
[null,null,null,null,0,null,null,null,null,null,null," "]
[null,null,null,null,0,null,null,null,null,null,null," "]
[null,null,null,null,0,null,null,null,null,null,null," "]
[null,null,null,null,0,null,null,null,null,null,null," "]
[null,null,null,null,0,null,null,null,null,null,null,{"$f":"IF(K86>0,J86/K86,\" \")","v":" "}]
[null,null,null,null,0,null,null,null,null,null,null,{"$f":"IF(K87>0,J87/K87,\" \")","v":" "}]
[null,null,null,null,0,null,null,null,null,null,null," "]
[null,null,null,null,0,null,null,null,null,null,null," "]
[null,null,null,null,0,null,null,null,null,null,null," "]
[null,null,null,null,0,null,null,null,null,null,null," "]
[null,null,null,null,0,null,null,null,null,null,null," "]
[null,null,null,null,0,null,null,null,null,null,null," "]
[null,null,null,null,0,null,null,null,null,null,null," "]
[null,null,null,null,0,null,null,null,null,null,null," "]
[null,null,null,null,0,null,null,null,null,null,null,{"$f":"IF(K96>0,J96/K96,\" \")","v":" "}]
[null,null,null,null,0,null,null,null,null,null,null,{"$f":"IF(K97>0,J97/K97,\" \")","v":" "}]
[null,null,null,null,0,null,null,null,null,null,null," "]
[null,null,null,null,0,null,null,null,null,null,null," "]
[null,null,null,null,0,null,null,null,null,null,null," "]
[null,null,null,null,0,null,null,null,null,null,null," "]
[null,null,null,null,0,null,null,null,null,null,null," "]
[null,null,null,null,0,null,null,null,null,null,null," "]
[null,null,null,null,0,null,null,null,null,null,null," "]
[null,null,null,null,0,null,null,null,null,null,null," "]
[null,null,null,null,0,null,null,null,null,null,null,{"$f":"IF(K106>0,J106/K106,\" \")","v":" "}]
[null,null,null,null,0,null,null,null,null,null,null,{"$f":"IF(K107>0,J107/K107,\" \")","v":" "}]
[null,null,null,null,0,null,null,null,null,null,null," "]
[null,null,null,null,0,null,null,null,null,null,null," "]
[null,null,null,null,0,null,null,null,null,null,null," "]
[null,null,null,null,0,null,null,null,null,null,null," "]
[null,null,null,null,0,null,null,null,null,null,null," "]
[null,null,null,null,0,null,null,null,null,null,null," "]
[null,null,null,null,0,null,null,null,null,null,null," "]
[null,null,null,null,0,null,null,null,null,null,null,{"$f":"IF(K115>0,J115/K115,\" \")","v":" "}]
[null,null,null,null,0,null,null,null,null,null,null,{"$f":"IF(K116>0,J116/K116,\" \")","v":" "}]
[null,null,null,null,0,null,null,null,null,null,null," "]
[null,null,null,null,0,null,null,null,null,null,null," "]
[null,null,null,null,0,null,null,null,null,null,null," "]
[null,null,null,null,0,null,null,null,null,null,null," "]
[null,null,null,null,0,null,null,null,null,null,null," "]
[null,null,null,null,0,null,null,null,null,null,null," "]
[null,null,null,null,0,null,null,null,null,null,null," "]
[null,null,null,null,0,null,null,null,null,null,null," "]
[null,null,null,null,0,null,null,null,null,null,null,{"$f":"IF(K125>0,J125/K125,\" \")","v":" "}]
[null,null,null,null,0,null,null,null,null,null,null,{"$f":"IF(K126>0,J126/K126,\" \")","v":" "}]
[null,null,null,null,0,null,null,null,null,null,null," "]
[null,null,null,null,0,null,null,null,null,null,null," "]
[null,null,null,null,0,null,null,null,null,null,null," "]
[null,null,null,null,0,null,null,null,null,null,null," "]
[null,null,null,null,0,null,null,null,null,null,null," "]
[null,null,null,null,0,null,null,null,null,null,null," "]
[null,null,null,null,0,null,null,null,null,null,null," "]
[null,null,null,null,0,null,null,null,null,null,null," "]
[null,null,null,null,0,null,null,null,null,null,null,{"$f":"IF(K135>0,J135/K135,\" \")","v":" "}]
[null,null,null,null,0,null,null,null,null,null,null,{"$f":"IF(K136>0,J136/K136,\" \")","v":" "}]
[null,null,null,null,0,null,null,null,null,null,null," "]
[null,null,null,null,0,null,null,null,null,null,null," "]
[null,null,null,null,0,null,null,null,null,null,null," "]
[null,null,null,null,0,null,null,null,null,null,null," "]
[null,null,null,null,0,null,null,null,null,null,null," "]
[null,null,null,null,0,null,null,null,null,null,null," "]
[null,null,null,null,0,null,null,null,null,null,null," "]
[null,null,null,null,0,null,null,null,null,null,null," "]
[null,null,null,null,{"$f":"IF(D145=0,0,C145/D145)","v":0},null,null,null,null,null,null,{"$f":"IF(K145>0,J145/K145,\" \")","v":" "}]
[null,null,null,null,0,null,null,null,null,null,null,{"$f":"IF(K146>0,J146/K146,\" \")","v":" "}]
[null,null,null,null,0,null,null,null,null,null,null," "]
[null,null,null,null,0,null,null,null,null,null,null," "]
[null,null,null,null,0,null,null,null,null,null,null," "]
[null,null,null,null,0,null,null,null,null,null,null," "]
[null,null,null,null,0,null,null,null,null,null,null," "]
[null,null,null,null,0,null,null,null,null,null,null," "]
[null,null,null,null,0,null,null,null,null,null,null," "]
[null,null,null,null,0,null,null,null,null,null,null,{"$f":"IF(K154>0,J154/K154,\" \")","v":" "}]
[null,null,null,null,0,null,null,null,null,null,null,{"$f":"IF(K155>0,J155/K155,\" \")","v":" "}]
[null,null,null,null,0,null,null,null,null,null,null," "]
[null,null,null,null,0,null,null,null,null,null,null," "]
[null,null,null,null,0,null,null,null,null,null,null," "]
[null,null,null,null,0,null,null,null,null,null,null," "]
[null,null,null,null,0,null,null,null,null,null,null," "]
[null,null,null,null,0,null,null,null,null,null,null," "]
[null,null,null,null,0,null,null,null,null,null,null," "]
[null,null,null,null,0,null,null,null,null,null,null," "]
[null,null,null,null,0,null,null,null,null,null,null,{"$f":"IF(K164>0,J164/K164,\" \")","v":" "}]
[null,null,null,null,0,null,null,null,null,null,null,{"$f":"IF(K165>0,J165/K165,\" \")","v":" "}]
[null,null,null,null,0,null,null,null,null,null,null," "]
[null,null,null,null,0,null,null,null,null,null,null," "]
[null,null,null,null,0,null,null,null,null,null,null," "]
[null,null,null,null,0,null,null,null,null,null,null," "]
[null,null,null,null,0,null,null,null,null,null,null," "]
[null,null,null,null,0,null,null,null,null,null,null," "]
[null,null,null,null,0,null,null,null,null,null,null," "]
[null,null,null,null,0,null,null,null,null,null,null," "]
[null,null,null,null,0,null,null,null,null,null,null,{"$f":"IF(K174>0,J174/K174,\" \")","v":" "}]
[null,null,null,null,0,null,null,null,null,null,null,{"$f":"IF(K175>0,J175/K175,\" \")","v":" "}]
[null,null,null,null,0,null,null,null,null,null,null," "]
[null,null,null,null,0,null,null,null,null,null,null," "]
[null,null,null,null,0,null,null,null,null,null,null," "]
[null,null,null,null,0,null,null,null,null,null,null," "]
[null,null,null,null,0,null,null,null,null,null,null," "]
[null,null,null,null,0,null,null,null,null,null,null," "]
[null,null,null,null,0,null,null,null,null,null,null," "]
[null,null,null,null,0,null,null,null,null,null,null," "]
[null,null,null,null,0,null,null,null,null,null,null,{"$f":"IF(K184>0,J184/K184,\" \")","v":" "}]
[null,null,null,null,0,null,null,null,null,null,null,{"$f":"IF(K185>0,J185/K185,\" \")","v":" "}]
[null,null,null,null,0,null,null,null,null,null,null," "]
[null,null,null,null,0,null,null,null,null,null,null," "]
[null,null,null,null,0,null,null,null,null,null,null," "]
[null,null,null,null,0,null,null,null,null,null,null," "]
[null,null,null,null,0,null,null,null,null,null,null," "]
[null,null,null,null,0,null,null,null,null,null,null," "]
[null,null,null,null,0,null,null,null,null,null,null," "]
[null,null,null,null,0,null,null,null,null,null,null,{"$f":"IF(K193>0,J193/K193,\" \")","v":" "}]
[null,null,null,null,0,null,null,null,null,null,null,{"$f":"IF(K194>0,J194/K194,\" \")","v":" "}]
[null,null,null,null,0,null,null,null,null,null,null," "]
[null,null,null,null,0,null,null,null,null,null,null," "]
[null,null,null,null,0,null,null,null,null,null,null," "]
[null,null,null,null,0,null,null,null,null,null,null," "]
[null,null,null,null,0,null,null,null,null,null,null," "]
[null,null,null,null,0,null,null,null,null,null,null," "]
[null,null,null,null,0,null,null,null,null,null,null," "]
[null,null,null,null,0,null,null,null,null,null,null," "]
[null,null,null,null,0,null,null,null,null,null,null,{"$f":"IF(K203>0,J203/K203,\" \")","v":" "}]
[null,null,null,null,0,null,null,null,null,null,null,{"$f":"IF(K204>0,J204/K204,\" \")","v":" "}]
[null,null,null,null,0,null,null,null,null,null,null," "]
[null,null,null,null,0,null,null,null,null,null,null," "]
[null,null,null,null,0,null,null,null,null,null,null," "]
[null,null,null,null,0,null,null,null,null,null,null," "]
[null,null,null,null,{"$f":"IF(D209=0,0,C209/D209)","v":0},null,null,null,null,null,null," "]
[null,null,null,null,0,null,null,null,null,null,null," "]
[null,null,null,null,0,null,null,null,null,null,null," "]
[null,null,null,null,0,null,null,null,null,null,null," "]
[null,null,null,null,0,null,null,null,null,null,null,{"$f":"IF(K213>0,J213/K213,\" \")","v":" "}]
[null,null,null,null,0,null,null,null,null,null,null,{"$f":"IF(K214>0,J214/K214,\" \")","v":" "}]
[null,null,null,null,0,null,null,null,null,null,null," "]
[null,null,null,null,0,null,null,null,null,null,null," "]
[null,null,null,null,0,null,null,null,null,null,null," "]
[null,null,null,null,0,null,null,null,null,null,null," "]
[null,null,null,null,0,null,null,null,null,null,null," "]
[null,null,null,null,0,null,null,null,null,null,null," "]
[null,null,null,null,0,null,null,null,null,null,null," "]
[null,null,null,null,0,null,null,null,null,null,null," "]
[null,null,null,null,0,null,null,null,null,null,null,{"$f":"IF(K223>0,J223/K223,\" \")","v":" "}]
[null,null,null,null,0,null,null,null,null,null,null,{"$f":"IF(K224>0,J224/K224,\" \")","v":" "}]
[null,null,null,null,0,null,null,null,null,null,null," "]
[null,null,null,null,0,null,null,null,null,null,null," "]
[null,null,null,null,0,null,null,null,null,null,null," "]
[null,null,null,null,0,null,null,null,null,null,null," "]
[null,null,null,null,0,null,null,null,null,null,null," "]
[null,null,null,null,0,null,null,null,null,null,null," "]
[null,null,null,null,0,null,null,null,null,null,null," "]
[null,null,null,null,0,null,null,null,null,null,null,{"$f":"IF(K232>0,J232/K232,\" \")","v":" "}]
[null,null,null,null,0,null,null,null,null,null,null,{"$f":"IF(K233>0,J233/K233,\" \")","v":" "}]
[null,null,null,null,0,null,null,null,null,null,null," "]
[null,null,null,null,0,null,null,null,null,null,null," "]
[null,null,null,null,0,null,null,null,null,null,null," "]
[null,null,null,null,0,null,null,null,null,null,null," "]
[null,null,null,null,0,null,null,null,null,null,null," "]
[null,null,null,null,0,null,null,null,null,null,null," "]
[null,null,null,null,0,null,null,null,null,null,null," "]
[null,null,null,null,0,null,null,null,null,null,null," "]
[null,null,null,null,0,null,null,null,null,null,null,{"$f":"IF(K242>0,J242/K242,\" \")","v":" "}]
[null,null,null,null,0,null,null,null,null,null,null,{"$f":"IF(K243>0,J243/K243,\" \")","v":" "}]
[null,null,null,null,0,null,null,null,null,null,null," "]
[null,null,null,null,0,null,null,null,null,null,null," "]
[null,null,null,null,0,null,null,null,null,null,null," "]
[null,null,null,null,0,null,null,null,null,null,null," "]
[null,null,null,null,0,null,null,null,null,null,null," "]
[null,null,null,null,0,null,null,null,null,null,null," "]
[null,null,null,null,0,null,null,null,null,null,null," "]
[null,null,null,null,0,null,null,null,null,null,null," "]
[null,null,null,null,0,null,null,null,null,null,null,{"$f":"IF(K252>0,J252/K252,\" \")","v":" "}]
[null,null,null,null,0,null,null,null,null,null,null,{"$f":"IF(K253>0,J253/K253,\" \")","v":" "}]
[null,null,null,null,0,null,null,null,null,null,null," "]
[null,null,null,null,0,null,null,null,null,null,null," "]
[null,null,null,null,0,null,null,null,null,null,null," "]
[null,null,null,null,0,null,null,null,null,null,null," "]
[null,null,null,null,0,null,null,null,null,null,null," "]
[null,null,null,null,0,null,null,null,null,null,null," "]
[null,null,null,null,0,null,null,null,null,null,null," "]
[null,null,null,null,0,null,null,null,null,null,null," "]
[null,null,null,null,0,null,null,null,null,null,null,{"$f":"IF(K262>0,J262/K262,\" \")","v":" "}]
[null,null,null,null,0,null,null,null,null,null,null,{"$f":"IF(K263>0,J263/K263,\" \")","v":" "}]
[null,null,null,null,0,null,null,null,null,null,null," "]
[null,null,null,null,0,null,null,null,null,null,null," "]
[null,null,null,null,0,null,null,null,null,null,null," "]
[null,null,null,null,0,null,null,null,null,null,null," "]
[null,null,null,null,0,null,null,null,null,null,null," "]
[null,null,null,null,0,null,null,null,null,null,null," "]
[null,null,null,null,0,null,null,null,null,null,null," "]
[null,null,null,null,0,null,null,null,null,null,null,{"$f":"IF(K271>0,J271/K271,\" \")","v":" "}]
[null,null,null,null,0,null,null,null,null,null,null,{"$f":"IF(K272>0,J272/K272,\" \")","v":" "}]
[null,null,null,null,{"$f":"IF(D273=0,0,C273/D273)","v":0},null,null,null,null,null,null," "]
[null,null,null,null,0,null,null,null,null,null,null," "]
[null,null,null,null,0,null,null,null,null,null,null," "]
[null,null,null,null,0,null,null,null,null,null,null," "]
[null,null,null,null,0,null,null,null,null,null,null," "]
[null,null,null,null,0,null,null,null,null,null,null," "]
[null,null,null,null,0,null,null,null,null,null,null," "]
[null,null,null,null,0,null,null,null,null,null,null," "]
[null,null,null,null,0,null,null,null,null,null,null,{"$f":"IF(K281>0,J281/K281,\" \")","v":" "}]
[null,null,null,null,0,null,null,null,null,null,null,{"$f":"IF(K282>0,J282/K282,\" \")","v":" "}]
[null,null,null,null,0,null,null,null,null,null,null," "]
[null,null,null,null,0,null,null,null,null,null,null," "]
[null,null,null,null,0,null,null,null,null,null,null," "]
[null,null,null,null,0,null,null,null,null,null,null," "]
[null,null,null,null,0,null,null,null,null,null,null," "]
[null,null,null,null,0,null,null,null,null,null,null," "]
[null,null,null,null,0,null,null,null,null,null,null," "]
[null,null,null,null,0,null,null,null,null,null,null," "]
[null,null,null,null,0,null,null,null,null,null,null,{"$f":"IF(K291>0,J291/K291,\" \")","v":" "}]
[null,null,null,null,0,null,null,null,null,null,null,{"$f":"IF(K292>0,J292/K292,\" \")","v":" "}]
[null,null,null,null,0,null,null,null,null,null,null," "]
[null,null,null,null,0,null,null,null,null,null,null," "]
[null,null,null,null,0,null,null,null,null,null,null," "]
[null,null,null,null,0,null,null,null,null,null,null," "]
[null,null,null,null,0,null,null,null,null,null,null," "]
[null,null,null,null,0,null,null,null,null,null,null," "]
[null,null,null,null,0,null,null,null,null,null,null," "]
[null,null,null,null,0,null,null,null,null,null,null," "]
[null,null,null,null,0,null,null,null,null,null,null,{"$f":"IF(K301>0,J301/K301,\" \")","v":" "}]
[null,null,null,null,0,null,null,null,null,null,null,{"$f":"IF(K302>0,J302/K302,\" \")","v":" "}]
[null,null,null,null,0,null,null,null,null,null,null," "]
[null,null,null,null,0,null,null,null,null,null,null," "]
[null,null,null,null,0,null,null,null,null,null,null," "]
[null,null,null,null,0,null,null,null,null,null,null," "]
[null,null,null,null,0,null,null,null,null,null,null," "]
[null,null,null,null,0,null,null,null,null,null,null," "]
[null,null,null,null,0,null,null,null,null,null,null," "]
[null,null,null,null,0,null,null,null,null,null,null,{"$f":"IF(K310>0,J310/K310,\" \")","v":" "}]
[null,null,null,null,0,null,null,null,null,null,null,{"$f":"IF(K311>0,J311/K311,\" \")","v":" "}]
[null,null,null,null,0,null,null,null,null,null,null," "]
[null,null,null,null,0,null,null,null,null,null,null," "]
[null,null,null,null,0,null,null,null,null,null,null," "]
[null,null,null,null,0,null,null,null,null,null,null," "]
[null,null,null,null,0,null,null,null,null,null,null," "]
[null,null,null,null,0,null,null,null,null,null,null," "]
[null,null,null,null,0,null,null,null,null,null,null," "]
[null,null,null,null,0,null,null,null,null,null,null," "]
[null,null,null,null,0,null,null,null,null,null,null,{"$f":"IF(K320>0,J320/K320,\" \")","v":" "}]
[null,null,null,null,0,null,null,null,null,null,null,{"$f":"IF(K321>0,J321/K321,\" \")","v":" "}]
[null,null,null,null,0,null,null,null,null,null,null," "]
[null,null,null,null,0,null,null,null,null,null,null," "]
[null,null,null,null,0,null,null,null,null,null,null," "]
[null,null,null,null,0,null,null,null,null,null,null," "]
[null,null,null,null,0,null,null,null,null,null,null," "]
[null,null,null,null,0,null,null,null,null,null,null," "]
[null,null,null,null,0,null,null,null,null,null,null," "]
[null,null,null,null,0,null,null,null,null,null,null," "]
[null,null,null,null,0,null,null,null,null,null,null," "]
[null,null,null,null,0,null,null,null,null,null,null," "]
[null,null,null,null,0,null,null,null,null,null,null," "]
[null,null,null,null,0,null,null,null,null,null,null," "]
[null,null,null,null,0,null,null,null,null,null,null,{"$f":"IF(K334>0,J334/K334,\" \")","v":" "}]
[null,null,null,null,0,null,null,null,null,null,null,{"$f":"IF(K335>0,J335/K335,\" \")","v":" "}]
[null,null,null,null,0,null,null,null,null,null,null," "]
[null,null,null,null,{"$f":"IF(D337=0,0,C337/D337)","v":0},null,null,null,null,null,null," "]
[null,null,null,null,0,null,null,null,null,null,null," "]
[null,null,null,null,0,null,null,null,null,null,null," "]
[null,null,null,null,0,null,null,null,null,null,null," "]
[null,null,null,null,0,null,null,null,null,null,null," "]
[null,null,null,null,0,null,null,null,null,null,null," "]
[null,null,null,null,0,null,null,null,null,null,null," "]
[null,null,null,null,0,null,null,null,null,null,null,{"$f":"IF(K344>0,J344/K344,\" \")","v":" "}]
[null,null,null,null,0,null,null,null,null,null,null,{"$f":"IF(K345>0,J345/K345,\" \")","v":" "}]
[null,null,null,null,0,null,null,null,null,null,null," "]
[null,null,null,null,0,null,null,null,null,null,null," "]
[null,null,null,null,0,null,null,null,null,null,null," "]
[null,null,null,null,0,null,null,null,null,null,null," "]
[null,null,null,null,0,null,null,null,null,null,null," "]
[null,null,null,null,0,null,null,null,null,null,null," "]
[null,null,null,null,0,null,null,null,null,null,null," "]
[null,null,null,null,0,null,null,null,null,null,null," "]
[null,null,null,null,0,null,null,null,null,null,null,{"$f":"IF(K354>0,J354/K354,\" \")","v":" "}]
[null,null,null,null,0,null,null,null,null,null,null,{"$f":"IF(K355>0,J355/K355,\" \")","v":" "}]
[null,null,null,null,0,null,null,null,null,null,null," "]
[null,null,null,null,0,null,null,null,null,null,null," "]
[null,null,null,null,0,null,null,null,null,null,null," "]
[null,null,null,null,0,null,null,null,null,null,null," "]
[null,null,null,null,0,null,null,null,null,null,null," "]
[null,null,null,null,0,null,null,null,null,null,null," "]
[null,null,null,null,0,null,null,null,null,null,null," "]
[null,null,null,null,0,null,null,null,null,null,null," "]
[null,null,null,null,0,null,null,null,null,null,null,{"$f":"IF(K364>0,J364/K364,\" \")","v":" "}]
[null,null,null,null,0,null,null,null,null,null,null,{"$f":"IF(K365>0,J365/K365,\" \")","v":" "}]
[null,null,null,null,0,null,null,null,null,null,null," "]
[null,null,null,null,0,null,null,null,null,null,null," "]
[null,null,null,null,0,null,null,null,null,null,null," "]
[null,null,null,null,0,null,null,null,null,null,null," "]
[null,null,null,null,0,null,null,null,null,null,null," "]
[null,null,null,null,0,null,null,null,null,null,null," "]
[null,null,null,null,0,null,null,null,null,null,null," "]
[null,null,null,null,0,null,null,null,null,null,null,{"$f":"IF(K373>0,J373/K373,\" \")","v":" "}]
[null,null,null,null,0,null,null,null,null,null,null,{"$f":"IF(K374>0,J374/K374,\" \")","v":" "}]
[null,null,null,null,0,null,null,null,null,null,null," "]
[null,null,null,null,0,null,null,null,null,null,null," "]
[null,null,null,null,0,null,null,null,null,null,null," "]
[null,null,null,null,0,null,null,null,null,null,null," "]
[null,null,null,null,0,null,null,null,null,null,null," "]
[null,null,null,null,0,null,null,null,null,null,null," "]
[null,null,null,null,0,null,null,null,null,null,null," "]
[null,null,null,null,0,null,null,null,null,null,null," "]
[null,null,null,null,0,null,null,null,null,null,null,{"$f":"IF(K383>0,J383/K383,\" \")","v":" "}]
[null,null,null,null,0,null,null,null,null,null,null,{"$f":"IF(K384>0,J384/K384,\" \")","v":" "}]
[null,null,null,null,0,null,null,null,null,null,null," "]
[null,null,null,null,0,null,null,null,null,null,null," "]
[null,null,null,null,0,null,null,null,null,null,null," "]
[null,null,null,null,0,null,null,null,null,null,null," "]
[null,null,null,null,0,null,null,null,null,null,null," "]
[null,null,null,null,0,null,null,null,null,null,null," "]
[null,null,null,null,0,null,null,null,null,null,null," "]
[null,null,null,null,0,null,null,null,null,null,null," "]
[null,null,null,null,0,null,null,null,null,null,null,{"$f":"IF(K393>0,J393/K393,\" \")","v":" "}]
[null,null,null,null,0,null,null,null,null,null,null,{"$f":"IF(K394>0,J394/K394,\" \")","v":" "}]
[null,null,null,null,0,null,null,null,null,null,null," "]
[null,null,null,null,0,null,null,null,null,null,null," "]
[null,null,null,null,0,null,null,null,null,null,null," "]
[null,null,null,null,0,null,null,null,null,null,null," "]
[null,null,null,null,0,null,null,null,null,null,null," "]
[null,null,null,null,0,null,null,null,null,null,null," "]
[null,null,null,null,{"$f":"IF(D401=0,0,C401/D401)","v":0},null,null,null,null,null,null," "]
[null,null,null,null,0,null,null,null,null,null,null," "]
[null,null,null,null,0,null,null,null,null,null,null,{"$f":"IF(K403>0,J403/K403,\" \")","v":" "}]
[null,null,null,null,0,null,null,null,null,null,null,{"$f":"IF(K404>0,J404/K404,\" \")","v":" "}]
[null,null,null,null,0,null,null,null,null,null,null," "]
[null,null,null,null,0,null,null,null,null,null,null," "]
[null,null,null,null,0,null,null,null,null,null,null," "]
[null,null,null,null,0,null,null,null,null,null,null," "]
[null,null,null,null,0,null,null,null,null,null,null," "]
[]
[]
[]
[]
[]
[]
[]
[]
[]
[]
[]
[]
[]
[]
[]
[]
[]
[]
[]
[null,null,null,null,null,null,{"$f":"IF(OR(#REF!>#REF!,#REF!=\"\"),2,1)","v":{"$error":"#REF!"}}]
[null,null,null,null,null,null,{"$f":"IF(OR(#REF!>#REF!,#REF!=\"\"),2,1)","v":{"$error":"#REF!"}}]
[null,null,null,null,null,null,{"$f":"IF(OR(#REF!>#REF!,#REF!=\"\"),2,1)","v":{"$error":"#REF!"}}]
[null,null,null,null,null,null,{"$f":"IF(OR(#REF!>#REF!,#REF!=\"\"),2,1)","v":{"$error":"#REF!"}}]
[null,null,null,null,null,null,{"$f":"IF(OR(#REF!>#REF!,#REF!=\"\"),2,1)","v":{"$error":"#REF!"}}]
[null,null,null,null,null,null,{"$f":"IF(OR(#REF!>#REF!,#REF!=\"\"),2,1)","v":{"$error":"#REF!"}}]
[null,null,null,null,null,null,{"$f":"IF(OR(#REF!>#REF!,#REF!=\"\"),2,1)","v":{"$error":"#REF!"}}]
[null,null,null,null,null,null,{"$f":"IF(OR(#REF!>#REF!,#REF!=\"\"),2,1)","v":{"$error":"#REF!"}}]
[null,null,null,null,null,null,{"$f":"IF(OR(#REF!>#REF!,#REF!=\"\"),2,1)","v":{"$error":"#REF!"}}]
[null,null,null,null,null,null,{"$f":"IF(OR(#REF!>#REF!,#REF!=\"\"),2,1)","v":{"$error":"#REF!"}}]

{"sheet":"Non-Title I & Title I - H","index":5,"n_rows":438,"n_cols":12,"rows_kept":438,"cut":false,"hidden":false,"merged":[[415,10,415,11],[417,0,417,5],[420,0,420,5],[421,0,421,5],[11,0,12,9],[11,10,12,11],[14,2,14,4],[14,9,14,11],[413,12,413,13],[414,0,414,5],[414,10,414,11],[8,0,9,2],[8,3,8,4],[8,10,8,11],[9,3,9,4],[9,7,9,9],[9,10,9,11],[5,0,6,2],[5,3,5,4],[5,10,5,11],[6,3,6,4],[6,7,6,9],[6,10,6,11],[0,0,0,11],[1,0,1,11],[2,0,2,11],[3,1,3,4],[3,5,3,7],[3,8,3,11]]}
["1. Complete this worksheet if one or more schools in the grade span receive Title I funds and other schools in the grade span do not. Copy this worksheet as necessary."]
["2. Complete one worksheet for each grade span unless using Enrollment Size Range Grouping; then use two per grade span and indicate the range of \"Smaller\" or \"Larger\" on line 3."]
["3. <Enter \"Smaller\" or  \"Larger\" if that Enrollment Size Range Grouping is being used for the calculations below.>"]
["Local Educational Agency:","<Enter LEA name>",null,null,null,"Grade Span",null,null,"<Enter Grade Span>"]
[]
["Total number of students in Non-Title I schools in grade span",null,null,{"$f":"SUM(C17:C409)","v":0},null,null,null,"Averages for comparability options",null,null,{"$f":"IF(D6=0,0,D6/D9)","v":0}]
[null,null,null,"Sum of Column C",null,null,null,"This is the minimum percentage all Title I schools must meet to be consu=idered comparable. ",null,null,"Number of students in \nNon-Title I schools in grade span divided by the total for the option. "]
[]
["Totals for comparability options",null,null,{"$f":"SUM(D17:D409)","v":0},null,null,null,"Allowable variance from the average ",null,null,{"$f":"(K6*1.1)","v":0}]
[null,null,null,"Sum of column D",null,null,null,"The varience level for each Title l school must fall within the defined percentage average (threshold).",null,null,"Shall not exceed \n110% of average"]
[]
["Schools in Grade Span need to be comparable. Each school with a non comparable calculation will appear red and \"Not Comparable\" will appear. If all Title I schools meet comparablility requirements they will appear green and \"Comparable\" will appear. ",null,null,null,null,null,null,null,null,null,{"$f":"IF(COUNTIF(L17:L409,\">\"&K9),\"Not Comparable\",\"Comparable\")","v":"Comparable"}]
[]
[]
[null,null,"Pupil-Teacher Ratio",null,null,null,null,null,null,"Pupil-Teacher Ratio"]
["Non Title I Schools \nDo not include schools in the grade span that have fewer than 100 students enrolled.","Grade Span","\nPublic School\nEnrollment\n(Column C)","FTE Staff\n(Column D)","Student \nStaff\nRatio",null,null,"Title I Schools \nDo not include schools in the grade span that have fewer than 100 students enrolled.","Grade Span","Public School\nEnrollment\n(Column C)","FTE Staff   (Column D)","Student \nStaff\nRatio"]
[null,null,null,null,{"$f":"IF(D17=0,0,C17/D17)","v":0},null,null,null,null,null,null,{"$f":"IF(K17>0,J17/K17,\" \")","v":" "}]
[null,null,null,null,0,null,null,null,null,null,null,{"$f":"IF(K18>0,J18/K18,\" \")","v":" "}]
[null,null,null,null,0,null,null,null,null,null,null,{"$f":"IF(K19>0,J19/K19,\" \")","v":" "}]
[null,null,null,null,0,null,null,null,null,null,null," "]
[null,null,null,null,0,null,null,null,null,null,null," "]
[null,null,null,null,0,null,null,null,null,null,null," "]
[null,null,null,null,0,null,null,null,null,null,null," "]
[null,null,null,null,0,null,null,null,null,null,null," "]
[null,null,null,null,0,null,null,null,null,null,null," "]
[null,null,null,null,0,null,null,null,null,null,null," "]
[null,null,null,null,0,null,null,null,null,null,null," "]
[null,null,null,null,0,null,null,null,null,null,null,{"$f":"IF(K28>0,J28/K28,\" \")","v":" "}]
[null,null,null,null,0,null,null,null,null,null,null,{"$f":"IF(K29>0,J29/K29,\" \")","v":" "}]
[null,null,null,null,0,null,null,null,null,null,null," "]
[null,null,null,null,0,null,null,null,null,null,null," "]
[null,null,null,null,0,null,null,null,null,null,null," "]
[null,null,null,null,0,null,null,null,null,null,null," "]
[null,null,null,null,0,null,null,null,null,null,null," "]
[null,null,null,null,0,null,null,null,null,null,null," "]
[null,null,null,null,0,null,null,null,null,null,null," "]
[null,null,null,null,0,null,null,null,null,null,null,{"$f":"IF(K37>0,J37/K37,\" \")","v":" "}]
[null,null,null,null,0,null,null,null,null,null,null,{"$f":"IF(K38>0,J38/K38,\" \")","v":" "}]
[null,null,null,null,0,null,null,null,null,null,null," "]
[null,null,null,null,0,null,null,null,null,null,null," "]
[null,null,null,null,0,null,null,null,null,null,null," "]
[null,null,null,null,0,null,null,null,null,null,null," "]
[null,null,null,null,0,null,null,null,null,null,null," "]
[null,null,null,null,0,null,null,null,null,null,null," "]
[null,null,null,null,0,null,null,null,null,null,null," "]
[null,null,null,null,0,null,null,null,null,null,null," "]
[null,null,null,null,0,null,null,null,null,null,null,{"$f":"IF(K47>0,J47/K47,\" \")","v":" "}]
[null,null,null,null,0,null,null,null,null,null,null,{"$f":"IF(K48>0,J48/K48,\" \")","v":" "}]
[null,null,null,null,0,null,null,null,null,null,null," "]
[null,null,null,null,0,null,null,null,null,null,null," "]
[null,null,null,null,0,null,null,null,null,null,null," "]
[null,null,null,null,0,null,null,null,null,null,null," "]
[null,null,null,null,0,null,null,null,null,null,null," "]
[null,null,null,null,0,null,null,null,null,null,null," "]
[null,null,null,null,0,null,null,null,null,null,null," "]
[null,null,null,null,0,null,null,null,null,null,null," "]
[null,null,null,null,0,null,null,null,null,null,null,{"$f":"IF(K57>0,J57/K57,\" \")","v":" "}]
[null,null,null,null,0,null,null,null,null,null,null,{"$f":"IF(K58>0,J58/K58,\" \")","v":" "}]
[null,null,null,null,0,null,null,null,null,null,null," "]
[null,null,null,null,0,null,null,null,null,null,null," "]
[null,null,null,null,0,null,null,null,null,null,null," "]
[null,null,null,null,0,null,null,null,null,null,null," "]
[null,null,null,null,0,null,null,null,null,null,null," "]
[null,null,null,null,0,null,null,null,null,null,null," "]
[null,null,null,null,0,null,null,null,null,null,null," "]
[null,null,null,null,0,null,null,null,null,null,null," "]
[null,null,null,null,0,null,null,null,null,null,null,{"$f":"IF(K67>0,J67/K67,\" \")","v":" "}]
[null,null,null,null,0,null,null,null,null,null,null,{"$f":"IF(K68>0,J68/K68,\" \")","v":" "}]
[null,null,null,null,0,null,null,null,null,null,null," "]
[null,null,null,null,0,null,null,null,null,null,null," "]
[null,null,null,null,0,null,null,null,null,null,null," "]
[null,null,null,null,0,null,null,null,null,null,null," "]
[null,null,null,null,0,null,null,null,null,null,null," "]
[null,null,null,null,0,null,null,null,null,null,null," "]
[null,null,null,null,0,null,null,null,null,null,null," "]
[null,null,null,null,0,null,null,null,null,null,null,{"$f":"IF(K76>0,J76/K76,\" \")","v":" "}]
[null,null,null,null,0,null,null,null,null,null,null,{"$f":"IF(K77>0,J77/K77,\" \")","v":" "}]
[null,null,null,null,0,null,null,null,null,null,null," "]
[null,null,null,null,0,null,null,null,null,null,null," "]
[null,null,null,null,0,null,null,null,null,null,null," "]
[null,null,null,null,{"$f":"IF(D81=0,0,C81/D81)","v":0},null,null,null,null,null,null," "]
[null,null,null,null,0,null,null,null,null,null,null," "]
[null,null,null,null,0,null,null,null,null,null,null," "]
[null,null,null,null,0,null,null,null,null,null,null," "]
[null,null,null,null,0,null,null,null,null,null,null," "]
[null,null,null,null,0,null,null,null,null,null,null,{"$f":"IF(K86>0,J86/K86,\" \")","v":" "}]
[null,null,null,null,0,null,null,null,null,null,null,{"$f":"IF(K87>0,J87/K87,\" \")","v":" "}]
[null,null,null,null,0,null,null,null,null,null,null," "]
[null,null,null,null,0,null,null,null,null,null,null," "]
[null,null,null,null,0,null,null,null,null,null,null," "]
[null,null,null,null,0,null,null,null,null,null,null," "]
[null,null,null,null,0,null,null,null,null,null,null," "]
[null,null,null,null,0,null,null,null,null,null,null," "]
[null,null,null,null,0,null,null,null,null,null,null," "]
[null,null,null,null,0,null,null,null,null,null,null," "]
[null,null,null,null,0,null,null,null,null,null,null,{"$f":"IF(K96>0,J96/K96,\" \")","v":" "}]
[null,null,null,null,0,null,null,null,null,null,null,{"$f":"IF(K97>0,J97/K97,\" \")","v":" "}]
[null,null,null,null,0,null,null,null,null,null,null," "]
[null,null,null,null,0,null,null,null,null,null,null," "]
[null,null,null,null,0,null,null,null,null,null,null," "]
[null,null,null,null,0,null,null,null,null,null,null," "]
[null,null,null,null,0,null,null,null,null,null,null," "]
[null,null,null,null,0,null,null,null,null,null,null," "]
[null,null,null,null,0,null,null,null,null,null,null," "]
[null,null,null,null,0,null,null,null,null,null,null," "]
[null,null,null,null,0,null,null,null,null,null,null,{"$f":"IF(K106>0,J106/K106,\" \")","v":" "}]
[null,null,null,null,0,null,null,null,null,null,null,{"$f":"IF(K107>0,J107/K107,\" \")","v":" "}]
[null,null,null,null,0,null,null,null,null,null,null," "]
[null,null,null,null,0,null,null,null,null,null,null," "]
[null,null,null,null,0,null,null,null,null,null,null," "]
[null,null,null,null,0,null,null,null,null,null,null," "]
[null,null,null,null,0,null,null,null,null,null,null," "]
[null,null,null,null,0,null,null,null,null,null,null," "]
[null,null,null,null,0,null,null,null,null,null,null," "]
[null,null,null,null,0,null,null,null,null,null,null,{"$f":"IF(K115>0,J115/K115,\" \")","v":" "}]
[null,null,null,null,0,null,null,null,null,null,null,{"$f":"IF(K116>0,J116/K116,\" \")","v":" "}]
[null,null,null,null,0,null,null,null,null,null,null," "]
[null,null,null,null,0,null,null,null,null,null,null," "]
[null,null,null,null,0,null,null,null,null,null,null," "]
[null,null,null,null,0,null,null,null,null,null,null," "]
[null,null,null,null,0,null,null,null,null,null,null," "]
[null,null,null,null,0,null,null,null,null,null,null," "]
[null,null,null,null,0,null,null,null,null,null,null," "]
[null,null,null,null,0,null,null,null,null,null,null," "]
[null,null,null,null,0,null,null,null,null,null,null,{"$f":"IF(K125>0,J125/K125,\" \")","v":" "}]
[null,null,null,null,0,null,null,null,null,null,null,{"$f":"IF(K126>0,J126/K126,\" \")","v":" "}]
[null,null,null,null,0,null,null,null,null,null,null," "]
[null,null,null,null,0,null,null,null,null,null,null," "]
[null,null,null,null,0,null,null,null,null,null,null," "]
[null,null,null,null,0,null,null,null,null,null,null," "]
[null,null,null,null,0,null,null,null,null,null,null," "]
[null,null,null,null,0,null,null,null,null,null,null," "]
[null,null,null,null,0,null,null,null,null,null,null," "]
[null,null,null,null,0,null,null,null,null,null,null," "]
[null,null,null,null,0,null,null,null,null,null,null,{"$f":"IF(K135>0,J135/K135,\" \")","v":" "}]
[null,null,null,null,0,null,null,null,null,null,null,{"$f":"IF(K136>0,J136/K136,\" \")","v":" "}]
[null,null,null,null,0,null,null,null,null,null,null," "]
[null,null,null,null,0,null,null,null,null,null,null," "]
[null,null,null,null,0,null,null,null,null,null,null," "]
[null,null,null,null,0,null,null,null,null,null,null," "]
[null,null,null,null,0,null,null,null,null,null,null," "]
[null,null,null,null,0,null,null,null,null,null,null," "]
[null,null,null,null,0,null,null,null,null,null,null," "]
[null,null,null,null,0,null,null,null,null,null,null," "]
[null,null,null,null,{"$f":"IF(D145=0,0,C145/D145)","v":0},null,null,null,null,null,null,{"$f":"IF(K145>0,J145/K145,\" \")","v":" "}]
[null,null,null,null,0,null,null,null,null,null,null,{"$f":"IF(K146>0,J146/K146,\" \")","v":" "}]
[null,null,null,null,0,null,null,null,null,null,null," "]
[null,null,null,null,0,null,null,null,null,null,null," "]
[null,null,null,null,0,null,null,null,null,null,null," "]
[null,null,null,null,0,null,null,null,null,null,null," "]
[null,null,null,null,0,null,null,null,null,null,null," "]
[null,null,null,null,0,null,null,null,null,null,null," "]
[null,null,null,null,0,null,null,null,null,null,null," "]
[null,null,null,null,0,null,null,null,null,null,null,{"$f":"IF(K154>0,J154/K154,\" \")","v":" "}]
[null,null,null,null,0,null,null,null,null,null,null,{"$f":"IF(K155>0,J155/K155,\" \")","v":" "}]
[null,null,null,null,0,null,null,null,null,null,null," "]
[null,null,null,null,0,null,null,null,null,null,null," "]
[null,null,null,null,0,null,null,null,null,null,null," "]
[null,null,null,null,0,null,null,null,null,null,null," "]
[null,null,null,null,0,null,null,null,null,null,null," "]
[null,null,null,null,0,null,null,null,null,null,null," "]
[null,null,null,null,0,null,null,null,null,null,null," "]
[null,null,null,null,0,null,null,null,null,null,null," "]
[null,null,null,null,0,null,null,null,null,null,null,{"$f":"IF(K164>0,J164/K164,\" \")","v":" "}]
[null,null,null,null,0,null,null,null,null,null,null,{"$f":"IF(K165>0,J165/K165,\" \")","v":" "}]
[null,null,null,null,0,null,null,null,null,null,null," "]
[null,null,null,null,0,null,null,null,null,null,null," "]
[null,null,null,null,0,null,null,null,null,null,null," "]
[null,null,null,null,0,null,null,null,null,null,null," "]
[null,null,null,null,0,null,null,null,null,null,null," "]
[null,null,null,null,0,null,null,null,null,null,null," "]
[null,null,null,null,0,null,null,null,null,null,null," "]
[null,null,null,null,0,null,null,null,null,null,null," "]
[null,null,null,null,0,null,null,null,null,null,null,{"$f":"IF(K174>0,J174/K174,\" \")","v":" "}]
[null,null,null,null,0,null,null,null,null,null,null,{"$f":"IF(K175>0,J175/K175,\" \")","v":" "}]
[null,null,null,null,0,null,null,null,null,null,null," "]
[null,null,null,null,0,null,null,null,null,null,null," "]
[null,null,null,null,0,null,null,null,null,null,null," "]
[null,null,null,null,0,null,null,null,null,null,null," "]
[null,null,null,null,0,null,null,null,null,null,null," "]
[null,null,null,null,0,null,null,null,null,null,null," "]
[null,null,null,null,0,null,null,null,null,null,null," "]
[null,null,null,null,0,null,null,null,null,null,null," "]
[null,null,null,null,0,null,null,null,null,null,null,{"$f":"IF(K184>0,J184/K184,\" \")","v":" "}]
[null,null,null,null,0,null,null,null,null,null,null,{"$f":"IF(K185>0,J185/K185,\" \")","v":" "}]
[null,null,null,null,0,null,null,null,null,null,null," "]
[null,null,null,null,0,null,null,null,null,null,null," "]
[null,null,null,null,0,null,null,null,null,null,null," "]
[null,null,null,null,0,null,null,null,null,null,null," "]
[null,null,null,null,0,null,null,null,null,null,null," "]
[null,null,null,null,0,null,null,null,null,null,null," "]
[null,null,null,null,0,null,null,null,null,null,null," "]
[null,null,null,null,0,null,null,null,null,null,null,{"$f":"IF(K193>0,J193/K193,\" \")","v":" "}]
[null,null,null,null,0,null,null,null,null,null,null,{"$f":"IF(K194>0,J194/K194,\" \")","v":" "}]
[null,null,null,null,0,null,null,null,null,null,null," "]
[null,null,null,null,0,null,null,null,null,null,null," "]
[null,null,null,null,0,null,null,null,null,null,null," "]
[null,null,null,null,0,null,null,null,null,null,null," "]
[null,null,null,null,0,null,null,null,null,null,null," "]
[null,null,null,null,0,null,null,null,null,null,null," "]
[null,null,null,null,0,null,null,null,null,null,null," "]
[null,null,null,null,0,null,null,null,null,null,null," "]
[null,null,null,null,0,null,null,null,null,null,null,{"$f":"IF(K203>0,J203/K203,\" \")","v":" "}]
[null,null,null,null,0,null,null,null,null,null,null,{"$f":"IF(K204>0,J204/K204,\" \")","v":" "}]
[null,null,null,null,0,null,null,null,null,null,null," "]
[null,null,null,null,0,null,null,null,null,null,null," "]
[null,null,null,null,0,null,null,null,null,null,null," "]
[null,null,null,null,0,null,null,null,null,null,null," "]
[null,null,null,null,{"$f":"IF(D209=0,0,C209/D209)","v":0},null,null,null,null,null,null," "]
[null,null,null,null,0,null,null,null,null,null,null," "]
[null,null,null,null,0,null,null,null,null,null,null," "]
[null,null,null,null,0,null,null,null,null,null,null," "]
[null,null,null,null,0,null,null,null,null,null,null,{"$f":"IF(K213>0,J213/K213,\" \")","v":" "}]
[null,null,null,null,0,null,null,null,null,null,null,{"$f":"IF(K214>0,J214/K214,\" \")","v":" "}]
[null,null,null,null,0,null,null,null,null,null,null," "]
[null,null,null,null,0,null,null,null,null,null,null," "]
[null,null,null,null,0,null,null,null,null,null,null," "]
[null,null,null,null,0,null,null,null,null,null,null," "]
[null,null,null,null,0,null,null,null,null,null,null," "]
[null,null,null,null,0,null,null,null,null,null,null," "]
[null,null,null,null,0,null,null,null,null,null,null," "]
[null,null,null,null,0,null,null,null,null,null,null," "]
[null,null,null,null,0,null,null,null,null,null,null,{"$f":"IF(K223>0,J223/K223,\" \")","v":" "}]
[null,null,null,null,0,null,null,null,null,null,null,{"$f":"IF(K224>0,J224/K224,\" \")","v":" "}]
[null,null,null,null,0,null,null,null,null,null,null," "]
[null,null,null,null,0,null,null,null,null,null,null," "]
[null,null,null,null,0,null,null,null,null,null,null," "]
[null,null,null,null,0,null,null,null,null,null,null," "]
[null,null,null,null,0,null,null,null,null,null,null," "]
[null,null,null,null,0,null,null,null,null,null,null," "]
[null,null,null,null,0,null,null,null,null,null,null," "]
[null,null,null,null,0,null,null,null,null,null,null,{"$f":"IF(K232>0,J232/K232,\" \")","v":" "}]
[null,null,null,null,0,null,null,null,null,null,null,{"$f":"IF(K233>0,J233/K233,\" \")","v":" "}]
[null,null,null,null,0,null,null,null,null,null,null," "]
[null,null,null,null,0,null,null,null,null,null,null," "]
[null,null,null,null,0,null,null,null,null,null,null," "]
[null,null,null,null,0,null,null,null,null,null,null," "]
[null,null,null,null,0,null,null,null,null,null,null," "]
[null,null,null,null,0,null,null,null,null,null,null," "]
[null,null,null,null,0,null,null,null,null,null,null," "]
[null,null,null,null,0,null,null,null,null,null,null," "]
[null,null,null,null,0,null,null,null,null,null,null,{"$f":"IF(K242>0,J242/K242,\" \")","v":" "}]
[null,null,null,null,0,null,null,null,null,null,null,{"$f":"IF(K243>0,J243/K243,\" \")","v":" "}]
[null,null,null,null,0,null,null,null,null,null,null," "]
[null,null,null,null,0,null,null,null,null,null,null," "]
[null,null,null,null,0,null,null,null,null,null,null," "]
[null,null,null,null,0,null,null,null,null,null,null," "]
[null,null,null,null,0,null,null,null,null,null,null," "]
[null,null,null,null,0,null,null,null,null,null,null," "]
[null,null,null,null,0,null,null,null,null,null,null," "]
[null,null,null,null,0,null,null,null,null,null,null," "]
[null,null,null,null,0,null,null,null,null,null,null,{"$f":"IF(K252>0,J252/K252,\" \")","v":" "}]
[null,null,null,null,0,null,null,null,null,null,null,{"$f":"IF(K253>0,J253/K253,\" \")","v":" "}]
[null,null,null,null,0,null,null,null,null,null,null," "]
[null,null,null,null,0,null,null,null,null,null,null," "]
[null,null,null,null,0,null,null,null,null,null,null," "]
[null,null,null,null,0,null,null,null,null,null,null," "]
[null,null,null,null,0,null,null,null,null,null,null," "]
[null,null,null,null,0,null,null,null,null,null,null," "]
[null,null,null,null,0,null,null,null,null,null,null," "]
[null,null,null,null,0,null,null,null,null,null,null," "]
[null,null,null,null,0,null,null,null,null,null,null,{"$f":"IF(K262>0,J262/K262,\" \")","v":" "}]
[null,null,null,null,0,null,null,null,null,null,null,{"$f":"IF(K263>0,J263/K263,\" \")","v":" "}]
[null,null,null,null,0,null,null,null,null,null,null," "]
[null,null,null,null,0,null,null,null,null,null,null," "]
[null,null,null,null,0,null,null,null,null,null,null," "]
[null,null,null,null,0,null,null,null,null,null,null," "]
[null,null,null,null,0,null,null,null,null,null,null," "]
[null,null,null,null,0,null,null,null,null,null,null," "]
[null,null,null,null,0,null,null,null,null,null,null," "]
[null,null,null,null,0,null,null,null,null,null,null,{"$f":"IF(K271>0,J271/K271,\" \")","v":" "}]
[null,null,null,null,0,null,null,null,null,null,null,{"$f":"IF(K272>0,J272/K272,\" \")","v":" "}]
[null,null,null,null,{"$f":"IF(D273=0,0,C273/D273)","v":0},null,null,null,null,null,null," "]
[null,null,null,null,0,null,null,null,null,null,null," "]
[null,null,null,null,0,null,null,null,null,null,null," "]
[null,null,null,null,0,null,null,null,null,null,null," "]
[null,null,null,null,0,null,null,null,null,null,null," "]
[null,null,null,null,0,null,null,null,null,null,null," "]
[null,null,null,null,0,null,null,null,null,null,null," "]
[null,null,null,null,0,null,null,null,null,null,null," "]
[null,null,null,null,0,null,null,null,null,null,null,{"$f":"IF(K281>0,J281/K281,\" \")","v":" "}]
[null,null,null,null,0,null,null,null,null,null,null,{"$f":"IF(K282>0,J282/K282,\" \")","v":" "}]
[null,null,null,null,0,null,null,null,null,null,null," "]
[null,null,null,null,0,null,null,null,null,null,null," "]
[null,null,null,null,0,null,null,null,null,null,null," "]
[null,null,null,null,0,null,null,null,null,null,null," "]
[null,null,null,null,0,null,null,null,null,null,null," "]
[null,null,null,null,0,null,null,null,null,null,null," "]
[null,null,null,null,0,null,null,null,null,null,null," "]
[null,null,null,null,0,null,null,null,null,null,null," "]
[null,null,null,null,0,null,null,null,null,null,null,{"$f":"IF(K291>0,J291/K291,\" \")","v":" "}]
[null,null,null,null,0,null,null,null,null,null,null,{"$f":"IF(K292>0,J292/K292,\" \")","v":" "}]
[null,null,null,null,0,null,null,null,null,null,null," "]
[null,null,null,null,0,null,null,null,null,null,null," "]
[null,null,null,null,0,null,null,null,null,null,null," "]
[null,null,null,null,0,null,null,null,null,null,null," "]
[null,null,null,null,0,null,null,null,null,null,null," "]
[null,null,null,null,0,null,null,null,null,null,null," "]
[null,null,null,null,0,null,null,null,null,null,null," "]
[null,null,null,null,0,null,null,null,null,null,null," "]
[null,null,null,null,0,null,null,null,null,null,null,{"$f":"IF(K301>0,J301/K301,\" \")","v":" "}]
[null,null,null,null,0,null,null,null,null,null,null,{"$f":"IF(K302>0,J302/K302,\" \")","v":" "}]
[null,null,null,null,0,null,null,null,null,null,null," "]
[null,null,null,null,0,null,null,null,null,null,null," "]
[null,null,null,null,0,null,null,null,null,null,null," "]
[null,null,null,null,0,null,null,null,null,null,null," "]
[null,null,null,null,0,null,null,null,null,null,null," "]
[null,null,null,null,0,null,null,null,null,null,null," "]
[null,null,null,null,0,null,null,null,null,null,null," "]
[null,null,null,null,0,null,null,null,null,null,null,{"$f":"IF(K310>0,J310/K310,\" \")","v":" "}]
[null,null,null,null,0,null,null,null,null,null,null,{"$f":"IF(K311>0,J311/K311,\" \")","v":" "}]
[null,null,null,null,0,null,null,null,null,null,null," "]
[null,null,null,null,0,null,null,null,null,null,null," "]
[null,null,null,null,0,null,null,null,null,null,null," "]
[null,null,null,null,0,null,null,null,null,null,null," "]
[null,null,null,null,0,null,null,null,null,null,null," "]
[null,null,null,null,0,null,null,null,null,null,null," "]
[null,null,null,null,0,null,null,null,null,null,null," "]
[null,null,null,null,0,null,null,null,null,null,null," "]
[null,null,null,null,0,null,null,null,null,null,null,{"$f":"IF(K320>0,J320/K320,\" \")","v":" "}]
[null,null,null,null,0,null,null,null,null,null,null,{"$f":"IF(K321>0,J321/K321,\" \")","v":" "}]
[null,null,null,null,0,null,null,null,null,null,null," "]
[null,null,null,null,0,null,null,null,null,null,null," "]
[null,null,null,null,0,null,null,null,null,null,null," "]
[null,null,null,null,0,null,null,null,null,null,null," "]
[null,null,null,null,0,null,null,null,null,null,null," "]
[null,null,null,null,0,null,null,null,null,null,null," "]
[null,null,null,null,0,null,null,null,null,null,null," "]
[null,null,null,null,0,null,null,null,null,null,null," "]
[null,null,null,null,0,null,null,null,null,null,null," "]
[null,null,null,null,0,null,null,null,null,null,null," "]
[null,null,null,null,0,null,null,null,null,null,null," "]
[null,null,null,null,0,null,null,null,null,null,null," "]
[null,null,null,null,0,null,null,null,null,null,null,{"$f":"IF(K334>0,J334/K334,\" \")","v":" "}]
[null,null,null,null,0,null,null,null,null,null,null,{"$f":"IF(K335>0,J335/K335,\" \")","v":" "}]
[null,null,null,null,0,null,null,null,null,null,null," "]
[null,null,null,null,{"$f":"IF(D337=0,0,C337/D337)","v":0},null,null,null,null,null,null," "]
[null,null,null,null,0,null,null,null,null,null,null," "]
[null,null,null,null,0,null,null,null,null,null,null," "]
[null,null,null,null,0,null,null,null,null,null,null," "]
[null,null,null,null,0,null,null,null,null,null,null," "]
[null,null,null,null,0,null,null,null,null,null,null," "]
[null,null,null,null,0,null,null,null,null,null,null," "]
[null,null,null,null,0,null,null,null,null,null,null,{"$f":"IF(K344>0,J344/K344,\" \")","v":" "}]
[null,null,null,null,0,null,null,null,null,null,null,{"$f":"IF(K345>0,J345/K345,\" \")","v":" "}]
[null,null,null,null,0,null,null,null,null,null,null," "]
[null,null,null,null,0,null,null,null,null,null,null," "]
[null,null,null,null,0,null,null,null,null,null,null," "]
[null,null,null,null,0,null,null,null,null,null,null," "]
[null,null,null,null,0,null,null,null,null,null,null," "]
[null,null,null,null,0,null,null,null,null,null,null," "]
[null,null,null,null,0,null,null,null,null,null,null," "]
[null,null,null,null,0,null,null,null,null,null,null," "]
[null,null,null,null,0,null,null,null,null,null,null,{"$f":"IF(K354>0,J354/K354,\" \")","v":" "}]
[null,null,null,null,0,null,null,null,null,null,null,{"$f":"IF(K355>0,J355/K355,\" \")","v":" "}]
[null,null,null,null,0,null,null,null,null,null,null," "]
[null,null,null,null,0,null,null,null,null,null,null," "]
[null,null,null,null,0,null,null,null,null,null,null," "]
[null,null,null,null,0,null,null,null,null,null,null," "]
[null,null,null,null,0,null,null,null,null,null,null," "]
[null,null,null,null,0,null,null,null,null,null,null," "]
[null,null,null,null,0,null,null,null,null,null,null," "]
[null,null,null,null,0,null,null,null,null,null,null," "]
[null,null,null,null,0,null,null,null,null,null,null,{"$f":"IF(K364>0,J364/K364,\" \")","v":" "}]
[null,null,null,null,0,null,null,null,null,null,null,{"$f":"IF(K365>0,J365/K365,\" \")","v":" "}]
[null,null,null,null,0,null,null,null,null,null,null," "]
[null,null,null,null,0,null,null,null,null,null,null," "]
[null,null,null,null,0,null,null,null,null,null,null," "]
[null,null,null,null,0,null,null,null,null,null,null," "]
[null,null,null,null,0,null,null,null,null,null,null," "]
[null,null,null,null,0,null,null,null,null,null,null," "]
[null,null,null,null,0,null,null,null,null,null,null," "]
[null,null,null,null,0,null,null,null,null,null,null,{"$f":"IF(K373>0,J373/K373,\" \")","v":" "}]
[null,null,null,null,0,null,null,null,null,null,null,{"$f":"IF(K374>0,J374/K374,\" \")","v":" "}]
[null,null,null,null,0,null,null,null,null,null,null," "]
[null,null,null,null,0,null,null,null,null,null,null," "]
[null,null,null,null,0,null,null,null,null,null,null," "]
[null,null,null,null,0,null,null,null,null,null,null," "]
[null,null,null,null,0,null,null,null,null,null,null," "]
[null,null,null,null,0,null,null,null,null,null,null," "]
[null,null,null,null,0,null,null,null,null,null,null," "]
[null,null,null,null,0,null,null,null,null,null,null," "]
[null,null,null,null,0,null,null,null,null,null,null,{"$f":"IF(K383>0,J383/K383,\" \")","v":" "}]
[null,null,null,null,0,null,null,null,null,null,null,{"$f":"IF(K384>0,J384/K384,\" \")","v":" "}]
[null,null,null,null,0,null,null,null,null,null,null," "]
[null,null,null,null,0,null,null,null,null,null,null," "]
[null,null,null,null,0,null,null,null,null,null,null," "]
[null,null,null,null,0,null,null,null,null,null,null," "]
[null,null,null,null,0,null,null,null,null,null,null," "]
[null,null,null,null,0,null,null,null,null,null,null," "]
[null,null,null,null,0,null,null,null,null,null,null," "]
[null,null,null,null,0,null,null,null,null,null,null," "]
[null,null,null,null,0,null,null,null,null,null,null,{"$f":"IF(K393>0,J393/K393,\" \")","v":" "}]
[null,null,null,null,0,null,null,null,null,null,null,{"$f":"IF(K394>0,J394/K394,\" \")","v":" "}]
[null,null,null,null,0,null,null,null,null,null,null," "]
[null,null,null,null,0,null,null,null,null,null,null," "]
[null,null,null,null,0,null,null,null,null,null,null," "]
[null,null,null,null,0,null,null,null,null,null,null," "]
[null,null,null,null,0,null,null,null,null,null,null," "]
[null,null,null,null,0,null,null,null,null,null,null," "]
[null,null,null,null,{"$f":"IF(D401=0,0,C401/D401)","v":0},null,null,null,null,null,null," "]
[null,null,null,null,0,null,null,null,null,null,null," "]
[null,null,null,null,0,null,null,null,null,null,null,{"$f":"IF(K403>0,J403/K403,\" \")","v":" "}]
[null,null,null,null,0,null,null,null,null,null,null,{"$f":"IF(K404>0,J404/K404,\" \")","v":" "}]
[null,null,null,null,0,null,null,null,null,null,null," "]
[null,null,null,null,0,null,null,null,null,null,null," "]
[null,null,null,null,0,null,null,null,null,null,null," "]
[null,null,null,null,0,null,null,null,null,null,null," "]
[null,null,null,null,0,null,null,null,null,null,null," "]
[]
[]
[]
[]
[]
[]
[]
[]
[]
[]
[]
[]
[]
[]
[]
[]
[]
[]
[]
[null,null,null,null,null,null,{"$f":"IF(OR(#REF!>#REF!,#REF!=\"\"),2,1)","v":{"$error":"#REF!"}}]
[null,null,null,null,null,null,{"$f":"IF(OR(#REF!>#REF!,#REF!=\"\"),2,1)","v":{"$error":"#REF!"}}]
[null,null,null,null,null,null,{"$f":"IF(OR(#REF!>#REF!,#REF!=\"\"),2,1)","v":{"$error":"#REF!"}}]
[null,null,null,null,null,null,{"$f":"IF(OR(#REF!>#REF!,#REF!=\"\"),2,1)","v":{"$error":"#REF!"}}]
[null,null,null,null,null,null,{"$f":"IF(OR(#REF!>#REF!,#REF!=\"\"),2,1)","v":{"$error":"#REF!"}}]
[null,null,null,null,null,null,{"$f":"IF(OR(#REF!>#REF!,#REF!=\"\"),2,1)","v":{"$error":"#REF!"}}]
[null,null,null,null,null,null,{"$f":"IF(OR(#REF!>#REF!,#REF!=\"\"),2,1)","v":{"$error":"#REF!"}}]
[null,null,null,null,null,null,{"$f":"IF(OR(#REF!>#REF!,#REF!=\"\"),2,1)","v":{"$error":"#REF!"}}]
[null,null,null,null,null,null,{"$f":"IF(OR(#REF!>#REF!,#REF!=\"\"),2,1)","v":{"$error":"#REF!"}}]
[null,null,null,null,null,null,{"$f":"IF(OR(#REF!>#REF!,#REF!=\"\"),2,1)","v":{"$error":"#REF!"}}]

{"sheet":"Non-Title I & Title I - C","index":6,"n_rows":438,"n_cols":12,"rows_kept":438,"cut":false,"hidden":false,"merged":[[5,0,6,2],[8,0,9,2],[9,7,9,9],[8,3,8,4],[9,3,9,4],[5,10,5,11],[6,7,6,9],[413,12,413,13],[14,9,14,11],[0,0,0,11],[1,0,1,11],[2,0,2,11],[3,1,3,4],[3,8,3,11],[14,2,14,4],[5,3,5,4],[6,3,6,4],[3,5,3,7],[11,0,12,9],[6,10,6,11],[11,10,12,11],[8,10,8,11],[9,10,9,11],[421,0,421,5],[420,0,420,5],[417,0,417,5],[414,10,414,11],[415,10,415,11],[414,0,414,5]]}
["1. Complete this worksheet if one or more schools in the grade span receive Title I funds and other schools in the grade span do not. Copy this worksheet as necessary."]
["2. Complete one worksheet for each grade span unless using Enrollment Size Range Grouping; then use two per grade span and indicate the range of \"Smaller\" or \"Larger\" on line 3."]
["3. <Enter \"Smaller\" or  \"Larger\" if that Enrollment Size Range Grouping is being used for the calculations below.>"]
["Local Educational Agency:","<Enter LEA name>",null,null,null,"Grade Span",null,null,"<Enter Grade Span>"]
[]
["Total number of students in Non-Title I schools in grade span",null,null,{"$f":"SUM(C17:C409)","v":0},null,null,null,"Averages for comparability options",null,null,{"$f":"IF(D6=0,0,D6/D9)","v":0}]
[null,null,null,"Sum of Column C",null,null,null,"This is the minimum percentage all Title I schools must meet to be consu=idered comparable. ",null,null,"Number of students in \nNon-Title I schools in grade span divided by the total for the option. "]
[]
["Totals for comparability options",null,null,{"$f":"SUM(D17:D409)","v":0},null,null,null,"Allowable variance from the average ",null,null,{"$f":"(K6*1.1)","v":0}]
[null,null,null,"Sum of column D",null,null,null,"The varience level for each Title l school must fall within the defined percentage average (threshold).",null,null,"Shall not exceed \n110% of average"]
[]
["Schools in Grade Span need to be comparable. Each school with a non comparable calculation will appear red and \"Not Comparable\" will appear. If all Title I schools meet comparablility requirements they will appear green and \"Comparable\" will appear. ",null,null,null,null,null,null,null,null,null,{"$f":"IF(COUNTIF(L17:L409,\">\"&K9),\"Not Comparable\",\"Comparable\")","v":"Comparable"}]
[]
[]
[null,null,"Pupil-Teacher Ratio",null,null,null,null,null,null,"Pupil-Teacher Ratio"]
["Non Title I Schools \nDo not include schools in the grade span that have fewer than 100 students enrolled.","Grade Span","\nPublic School\nEnrollment\n(Column C)","FTE Staff\n(Column D)","Student \nStaff\nRatio",null,null,"Title I Schools \nDo not include schools in the grade span that have fewer than 100 students enrolled.","Grade Span","Public School\nEnrollment\n(Column C)","FTE Staff   (Column D)","Student \nStaff\nRatio"]
[null,null,null,null,{"$f":"IF(D17=0,0,C17/D17)","v":0},null,null,null,null,null,null,{"$f":"IF(K17>0,J17/K17,\" \")","v":" "}]
[null,null,null,null,0,null,null,null,null,null,null,{"$f":"IF(K18>0,J18/K18,\" \")","v":" "}]
[null,null,null,null,0,null,null,null,null,null,null,{"$f":"IF(K19>0,J19/K19,\" \")","v":" "}]
[null,null,null,null,0,null,null,null,null,null,null," "]
[null,null,null,null,0,null,null,null,null,null,null," "]
[null,null,null,null,0,null,null,null,null,null,null," "]
[null,null,null,null,0,null,null,null,null,null,null," "]
[null,null,null,null,0,null,null,null,null,null,null," "]
[null,null,null,null,0,null,null,null,null,null,null," "]
[null,null,null,null,0,null,null,null,null,null,null," "]
[null,null,null,null,0,null,null,null,null,null,null," "]
[null,null,null,null,0,null,null,null,null,null,null,{"$f":"IF(K28>0,J28/K28,\" \")","v":" "}]
[null,null,null,null,0,null,null,null,null,null,null,{"$f":"IF(K29>0,J29/K29,\" \")","v":" "}]
[null,null,null,null,0,null,null,null,null,null,null," "]
[null,null,null,null,0,null,null,null,null,null,null," "]
[null,null,null,null,0,null,null,null,null,null,null," "]
[null,null,null,null,0,null,null,null,null,null,null," "]
[null,null,null,null,0,null,null,null,null,null,null," "]
[null,null,null,null,0,null,null,null,null,null,null," "]
[null,null,null,null,0,null,null,null,null,null,null," "]
[null,null,null,null,0,null,null,null,null,null,null,{"$f":"IF(K37>0,J37/K37,\" \")","v":" "}]
[null,null,null,null,0,null,null,null,null,null,null,{"$f":"IF(K38>0,J38/K38,\" \")","v":" "}]
[null,null,null,null,0,null,null,null,null,null,null," "]
[null,null,null,null,0,null,null,null,null,null,null," "]
[null,null,null,null,0,null,null,null,null,null,null," "]
[null,null,null,null,0,null,null,null,null,null,null," "]
[null,null,null,null,0,null,null,null,null,null,null," "]
[null,null,null,null,0,null,null,null,null,null,null," "]
[null,null,null,null,0,null,null,null,null,null,null," "]
[null,null,null,null,0,null,null,null,null,null,null," "]
[null,null,null,null,0,null,null,null,null,null,null,{"$f":"IF(K47>0,J47/K47,\" \")","v":" "}]
[null,null,null,null,0,null,null,null,null,null,null,{"$f":"IF(K48>0,J48/K48,\" \")","v":" "}]
[null,null,null,null,0,null,null,null,null,null,null," "]
[null,null,null,null,0,null,null,null,null,null,null," "]
[null,null,null,null,0,null,null,null,null,null,null," "]
[null,null,null,null,0,null,null,null,null,null,null," "]
[null,null,null,null,0,null,null,null,null,null,null," "]
[null,null,null,null,0,null,null,null,null,null,null," "]
[null,null,null,null,0,null,null,null,null,null,null," "]
[null,null,null,null,0,null,null,null,null,null,null," "]
[null,null,null,null,0,null,null,null,null,null,null,{"$f":"IF(K57>0,J57/K57,\" \")","v":" "}]
[null,null,null,null,0,null,null,null,null,null,null,{"$f":"IF(K58>0,J58/K58,\" \")","v":" "}]
[null,null,null,null,0,null,null,null,null,null,null," "]
[null,null,null,null,0,null,null,null,null,null,null," "]
[null,null,null,null,0,null,null,null,null,null,null," "]
[null,null,null,null,0,null,null,null,null,null,null," "]
[null,null,null,null,0,null,null,null,null,null,null," "]
[null,null,null,null,0,null,null,null,null,null,null," "]
[null,null,null,null,0,null,null,null,null,null,null," "]
[null,null,null,null,0,null,null,null,null,null,null," "]
[null,null,null,null,0,null,null,null,null,null,null,{"$f":"IF(K67>0,J67/K67,\" \")","v":" "}]
[null,null,null,null,0,null,null,null,null,null,null,{"$f":"IF(K68>0,J68/K68,\" \")","v":" "}]
[null,null,null,null,0,null,null,null,null,null,null," "]
[null,null,null,null,0,null,null,null,null,null,null," "]
[null,null,null,null,0,null,null,null,null,null,null," "]
[null,null,null,null,0,null,null,null,null,null,null," "]
[null,null,null,null,0,null,null,null,null,null,null," "]
[null,null,null,null,0,null,null,null,null,null,null," "]
[null,null,null,null,0,null,null,null,null,null,null," "]
[null,null,null,null,0,null,null,null,null,null,null,{"$f":"IF(K76>0,J76/K76,\" \")","v":" "}]
[null,null,null,null,0,null,null,null,null,null,null,{"$f":"IF(K77>0,J77/K77,\" \")","v":" "}]
[null,null,null,null,0,null,null,null,null,null,null," "]
[null,null,null,null,0,null,null,null,null,null,null," "]
[null,null,null,null,0,null,null,null,null,null,null," "]
[null,null,null,null,{"$f":"IF(D81=0,0,C81/D81)","v":0},null,null,null,null,null,null," "]
[null,null,null,null,0,null,null,null,null,null,null," "]
[null,null,null,null,0,null,null,null,null,null,null," "]
[null,null,null,null,0,null,null,null,null,null,null," "]
[null,null,null,null,0,null,null,null,null,null,null," "]
[null,null,null,null,0,null,null,null,null,null,null,{"$f":"IF(K86>0,J86/K86,\" \")","v":" "}]
[null,null,null,null,0,null,null,null,null,null,null,{"$f":"IF(K87>0,J87/K87,\" \")","v":" "}]
[null,null,null,null,0,null,null,null,null,null,null," "]
[null,null,null,null,0,null,null,null,null,null,null," "]
[null,null,null,null,0,null,null,null,null,null,null," "]
[null,null,null,null,0,null,null,null,null,null,null," "]
[null,null,null,null,0,null,null,null,null,null,null," "]
[null,null,null,null,0,null,null,null,null,null,null," "]
[null,null,null,null,0,null,null,null,null,null,null," "]
[null,null,null,null,0,null,null,null,null,null,null," "]
[null,null,null,null,0,null,null,null,null,null,null,{"$f":"IF(K96>0,J96/K96,\" \")","v":" "}]
[null,null,null,null,0,null,null,null,null,null,null,{"$f":"IF(K97>0,J97/K97,\" \")","v":" "}]
[null,null,null,null,0,null,null,null,null,null,null," "]
[null,null,null,null,0,null,null,null,null,null,null," "]
[null,null,null,null,0,null,null,null,null,null,null," "]
[null,null,null,null,0,null,null,null,null,null,null," "]
[null,null,null,null,0,null,null,null,null,null,null," "]
[null,null,null,null,0,null,null,null,null,null,null," "]
[null,null,null,null,0,null,null,null,null,null,null," "]
[null,null,null,null,0,null,null,null,null,null,null," "]
[null,null,null,null,0,null,null,null,null,null,null,{"$f":"IF(K106>0,J106/K106,\" \")","v":" "}]
[null,null,null,null,0,null,null,null,null,null,null,{"$f":"IF(K107>0,J107/K107,\" \")","v":" "}]
[null,null,null,null,0,null,null,null,null,null,null," "]
[null,null,null,null,0,null,null,null,null,null,null," "]
[null,null,null,null,0,null,null,null,null,null,null," "]
[null,null,null,null,0,null,null,null,null,null,null," "]
[null,null,null,null,0,null,null,null,null,null,null," "]
[null,null,null,null,0,null,null,null,null,null,null," "]
[null,null,null,null,0,null,null,null,null,null,null," "]
[null,null,null,null,0,null,null,null,null,null,null,{"$f":"IF(K115>0,J115/K115,\" \")","v":" "}]
[null,null,null,null,0,null,null,null,null,null,null,{"$f":"IF(K116>0,J116/K116,\" \")","v":" "}]
[null,null,null,null,0,null,null,null,null,null,null," "]
[null,null,null,null,0,null,null,null,null,null,null," "]
[null,null,null,null,0,null,null,null,null,null,null," "]
[null,null,null,null,0,null,null,null,null,null,null," "]
[null,null,null,null,0,null,null,null,null,null,null," "]
[null,null,null,null,0,null,null,null,null,null,null," "]
[null,null,null,null,0,null,null,null,null,null,null," "]
[null,null,null,null,0,null,null,null,null,null,null," "]
[null,null,null,null,0,null,null,null,null,null,null,{"$f":"IF(K125>0,J125/K125,\" \")","v":" "}]
[null,null,null,null,0,null,null,null,null,null,null,{"$f":"IF(K126>0,J126/K126,\" \")","v":" "}]
[null,null,null,null,0,null,null,null,null,null,null," "]
[null,null,null,null,0,null,null,null,null,null,null," "]
[null,null,null,null,0,null,null,null,null,null,null," "]
[null,null,null,null,0,null,null,null,null,null,null," "]
[null,null,null,null,0,null,null,null,null,null,null," "]
[null,null,null,null,0,null,null,null,null,null,null," "]
[null,null,null,null,0,null,null,null,null,null,null," "]
[null,null,null,null,0,null,null,null,null,null,null," "]
[null,null,null,null,0,null,null,null,null,null,null,{"$f":"IF(K135>0,J135/K135,\" \")","v":" "}]
[null,null,null,null,0,null,null,null,null,null,null,{"$f":"IF(K136>0,J136/K136,\" \")","v":" "}]
[null,null,null,null,0,null,null,null,null,null,null," "]
[null,null,null,null,0,null,null,null,null,null,null," "]
[null,null,null,null,0,null,null,null,null,null,null," "]
[null,null,null,null,0,null,null,null,null,null,null," "]
[null,null,null,null,0,null,null,null,null,null,null," "]
[null,null,null,null,0,null,null,null,null,null,null," "]
[null,null,null,null,0,null,null,null,null,null,null," "]
[null,null,null,null,0,null,null,null,null,null,null," "]
[null,null,null,null,{"$f":"IF(D145=0,0,C145/D145)","v":0},null,null,null,null,null,null,{"$f":"IF(K145>0,J145/K145,\" \")","v":" "}]
[null,null,null,null,0,null,null,null,null,null,null,{"$f":"IF(K146>0,J146/K146,\" \")","v":" "}]
[null,null,null,null,0,null,null,null,null,null,null," "]
[null,null,null,null,0,null,null,null,null,null,null," "]
[null,null,null,null,0,null,null,null,null,null,null," "]
[null,null,null,null,0,null,null,null,null,null,null," "]
[null,null,null,null,0,null,null,null,null,null,null," "]
[null,null,null,null,0,null,null,null,null,null,null," "]
[null,null,null,null,0,null,null,null,null,null,null," "]
[null,null,null,null,0,null,null,null,null,null,null,{"$f":"IF(K154>0,J154/K154,\" \")","v":" "}]
[null,null,null,null,0,null,null,null,null,null,null,{"$f":"IF(K155>0,J155/K155,\" \")","v":" "}]
[null,null,null,null,0,null,null,null,null,null,null," "]
[null,null,null,null,0,null,null,null,null,null,null," "]
[null,null,null,null,0,null,null,null,null,null,null," "]
[null,null,null,null,0,null,null,null,null,null,null," "]
[null,null,null,null,0,null,null,null,null,null,null," "]
[null,null,null,null,0,null,null,null,null,null,null," "]
[null,null,null,null,0,null,null,null,null,null,null," "]
[null,null,null,null,0,null,null,null,null,null,null," "]
[null,null,null,null,0,null,null,null,null,null,null,{"$f":"IF(K164>0,J164/K164,\" \")","v":" "}]
[null,null,null,null,0,null,null,null,null,null,null,{"$f":"IF(K165>0,J165/K165,\" \")","v":" "}]
[null,null,null,null,0,null,null,null,null,null,null," "]
[null,null,null,null,0,null,null,null,null,null,null," "]
[null,null,null,null,0,null,null,null,null,null,null," "]
[null,null,null,null,0,null,null,null,null,null,null," "]
[null,null,null,null,0,null,null,null,null,null,null," "]
[null,null,null,null,0,null,null,null,null,null,null," "]
[null,null,null,null,0,null,null,null,null,null,null," "]
[null,null,null,null,0,null,null,null,null,null,null,{"$f":"IF(K173>0,J173/K173,\" \")","v":" "}]
[null,null,null,null,0,null,null,null,null,null,null,{"$f":"IF(K174>0,J174/K174,\" \")","v":" "}]
[null,null,null,null,0,null,null,null,null,null,null,{"$f":"IF(K175>0,J175/K175,\" \")","v":" "}]
[null,null,null,null,0,null,null,null,null,null,null," "]
[null,null,null,null,0,null,null,null,null,null,null," "]
[null,null,null,null,0,null,null,null,null,null,null," "]
[null,null,null,null,0,null,null,null,null,null,null," "]
[null,null,null,null,0,null,null,null,null,null,null," "]
[null,null,null,null,0,null,null,null,null,null,null," "]
[null,null,null,null,0,null,null,null,null,null,null," "]
[null,null,null,null,0,null,null,null,null,null,null," "]
[null,null,null,null,0,null,null,null,null,null,null,{"$f":"IF(K184>0,J184/K184,\" \")","v":" "}]
[null,null,null,null,0,null,null,null,null,null,null,{"$f":"IF(K185>0,J185/K185,\" \")","v":" "}]
[null,null,null,null,0,null,null,null,null,null,null," "]
[null,null,null,null,0,null,null,null,null,null,null," "]
[null,null,null,null,0,null,null,null,null,null,null," "]
[null,null,null,null,0,null,null,null,null,null,null," "]
[null,null,null,null,0,null,null,null,null,null,null," "]
[null,null,null,null,0,null,null,null,null,null,null," "]
[null,null,null,null,0,null,null,null,null,null,null," "]
[null,null,null,null,0,null,null,null,null,null,null,{"$f":"IF(K193>0,J193/K193,\" \")","v":" "}]
[null,null,null,null,0,null,null,null,null,null,null,{"$f":"IF(K194>0,J194/K194,\" \")","v":" "}]
[null,null,null,null,0,null,null,null,null,null,null," "]
[null,null,null,null,0,null,null,null,null,null,null," "]
[null,null,null,null,0,null,null,null,null,null,null," "]
[null,null,null,null,0,null,null,null,null,null,null," "]
[null,null,null,null,0,null,null,null,null,null,null," "]
[null,null,null,null,0,null,null,null,null,null,null," "]
[null,null,null,null,0,null,null,null,null,null,null," "]
[null,null,null,null,0,null,null,null,null,null,null," "]
[null,null,null,null,0,null,null,null,null,null,null,{"$f":"IF(K203>0,J203/K203,\" \")","v":" "}]
[null,null,null,null,0,null,null,null,null,null,null,{"$f":"IF(K204>0,J204/K204,\" \")","v":" "}]
[null,null,null,null,0,null,null,null,null,null,null," "]
[null,null,null,null,0,null,null,null,null,null,null," "]
[null,null,null,null,0,null,null,null,null,null,null," "]
[null,null,null,null,0,null,null,null,null,null,null," "]
[null,null,null,null,{"$f":"IF(D209=0,0,C209/D209)","v":0},null,null,null,null,null,null," "]
[null,null,null,null,0,null,null,null,null,null,null," "]
[null,null,null,null,0,null,null,null,null,null,null," "]
[null,null,null,null,0,null,null,null,null,null,null," "]
[null,null,null,null,0,null,null,null,null,null,null,{"$f":"IF(K213>0,J213/K213,\" \")","v":" "}]
[null,null,null,null,0,null,null,null,null,null,null,{"$f":"IF(K214>0,J214/K214,\" \")","v":" "}]
[null,null,null,null,0,null,null,null,null,null,null," "]
[null,null,null,null,0,null,null,null,null,null,null," "]
[null,null,null,null,0,null,null,null,null,null,null," "]
[null,null,null,null,0,null,null,null,null,null,null," "]
[null,null,null,null,0,null,null,null,null,null,null," "]
[null,null,null,null,0,null,null,null,null,null,null," "]
[null,null,null,null,0,null,null,null,null,null,null," "]
[null,null,null,null,0,null,null,null,null,null,null," "]
[null,null,null,null,0,null,null,null,null,null,null,{"$f":"IF(K223>0,J223/K223,\" \")","v":" "}]
[null,null,null,null,0,null,null,null,null,null,null,{"$f":"IF(K224>0,J224/K224,\" \")","v":" "}]
[null,null,null,null,0,null,null,null,null,null,null," "]
[null,null,null,null,0,null,null,null,null,null,null," "]
[null,null,null,null,0,null,null,null,null,null,null,{"$f":"IF(K227>0,J227/K227,\" \")","v":" "}]
[null,null,null,null,0,null,null,null,null,null,null," "]
[null,null,null,null,0,null,null,null,null,null,null," "]
[null,null,null,null,0,null,null,null,null,null,null," "]
[null,null,null,null,0,null,null,null,null,null,null," "]
[null,null,null,null,0,null,null,null,null,null,null,{"$f":"IF(K232>0,J232/K232,\" \")","v":" "}]
[null,null,null,null,0,null,null,null,null,null,null,{"$f":"IF(K233>0,J233/K233,\" \")","v":" "}]
[null,null,null,null,0,null,null,null,null,null,null," "]
[null,null,null,null,0,null,null,null,null,null,null," "]
[null,null,null,null,0,null,null,null,null,null,null," "]
[null,null,null,null,0,null,null,null,null,null,null," "]
[null,null,null,null,0,null,null,null,null,null,null," "]
[null,null,null,null,0,null,null,null,null,null,null," "]
[null,null,null,null,0,null,null,null,null,null,null," "]
[null,null,null,null,0,null,null,null,null,null,null," "]
[null,null,null,null,0,null,null,null,null,null,null,{"$f":"IF(K242>0,J242/K242,\" \")","v":" "}]
[null,null,null,null,0,null,null,null,null,null,null,{"$f":"IF(K243>0,J243/K243,\" \")","v":" "}]
[null,null,null,null,0,null,null,null,null,null,null," "]
[null,null,null,null,0,null,null,null,null,null,null," "]
[null,null,null,null,0,null,null,null,null,null,null," "]
[null,null,null,null,0,null,null,null,null,null,null," "]
[null,null,null,null,0,null,null,null,null,null,null," "]
[null,null,null,null,0,null,null,null,null,null,null," "]
[null,null,null,null,0,null,null,null,null,null,null," "]
[null,null,null,null,0,null,null,null,null,null,null," "]
[null,null,null,null,0,null,null,null,null,null,null,{"$f":"IF(K252>0,J252/K252,\" \")","v":" "}]
[null,null,null,null,0,null,null,null,null,null,null,{"$f":"IF(K253>0,J253/K253,\" \")","v":" "}]
[null,null,null,null,0,null,null,null,null,null,null," "]
[null,null,null,null,0,null,null,null,null,null,null," "]
[null,null,null,null,0,null,null,null,null,null,null," "]
[null,null,null,null,0,null,null,null,null,null,null," "]
[null,null,null,null,0,null,null,null,null,null,null," "]
[null,null,null,null,0,null,null,null,null,null,null," "]
[null,null,null,null,0,null,null,null,null,null,null," "]
[null,null,null,null,0,null,null,null,null,null,null," "]
[null,null,null,null,0,null,null,null,null,null,null,{"$f":"IF(K262>0,J262/K262,\" \")","v":" "}]
[null,null,null,null,0,null,null,null,null,null,null,{"$f":"IF(K263>0,J263/K263,\" \")","v":" "}]
[null,null,null,null,0,null,null,null,null,null,null," "]
[null,null,null,null,0,null,null,null,null,null,null," "]
[null,null,null,null,0,null,null,null,null,null,null," "]
[null,null,null,null,0,null,null,null,null,null,null," "]
[null,null,null,null,0,null,null,null,null,null,null," "]
[null,null,null,null,0,null,null,null,null,null,null," "]
[null,null,null,null,0,null,null,null,null,null,null," "]
[null,null,null,null,0,null,null,null,null,null,null,{"$f":"IF(K271>0,J271/K271,\" \")","v":" "}]
[null,null,null,null,0,null,null,null,null,null,null,{"$f":"IF(K272>0,J272/K272,\" \")","v":" "}]
[null,null,null,null,{"$f":"IF(D273=0,0,C273/D273)","v":0},null,null,null,null,null,null," "]
[null,null,null,null,0,null,null,null,null,null,null," "]
[null,null,null,null,0,null,null,null,null,null,null," "]
[null,null,null,null,0,null,null,null,null,null,null," "]
[null,null,null,null,0,null,null,null,null,null,null," "]
[null,null,null,null,0,null,null,null,null,null,null," "]
[null,null,null,null,0,null,null,null,null,null,null," "]
[null,null,null,null,0,null,null,null,null,null,null," "]
[null,null,null,null,0,null,null,null,null,null,null,{"$f":"IF(K281>0,J281/K281,\" \")","v":" "}]
[null,null,null,null,0,null,null,null,null,null,null,{"$f":"IF(K282>0,J282/K282,\" \")","v":" "}]
[null,null,null,null,0,null,null,null,null,null,null," "]
[null,null,null,null,0,null,null,null,null,null,null," "]
[null,null,null,null,0,null,null,null,null,null,null," "]
[null,null,null,null,0,null,null,null,null,null,null," "]
[null,null,null,null,0,null,null,null,null,null,null," "]
[null,null,null,null,0,null,null,null,null,null,null," "]
[null,null,null,null,0,null,null,null,null,null,null," "]
[null,null,null,null,0,null,null,null,null,null,null," "]
[null,null,null,null,0,null,null,null,null,null,null,{"$f":"IF(K291>0,J291/K291,\" \")","v":" "}]
[null,null,null,null,0,null,null,null,null,null,null,{"$f":"IF(K292>0,J292/K292,\" \")","v":" "}]
[null,null,null,null,0,null,null,null,null,null,null," "]
[null,null,null,null,0,null,null,null,null,null,null," "]
[null,null,null,null,0,null,null,null,null,null,null," "]
[null,null,null,null,0,null,null,null,null,null,null," "]
[null,null,null,null,0,null,null,null,null,null,null," "]
[null,null,null,null,0,null,null,null,null,null,null," "]
[null,null,null,null,0,null,null,null,null,null,null," "]
[null,null,null,null,0,null,null,null,null,null,null," "]
[null,null,null,null,0,null,null,null,null,null,null,{"$f":"IF(K301>0,J301/K301,\" \")","v":" "}]
[null,null,null,null,0,null,null,null,null,null,null,{"$f":"IF(K302>0,J302/K302,\" \")","v":" "}]
[null,null,null,null,0,null,null,null,null,null,null," "]
[null,null,null,null,0,null,null,null,null,null,null," "]
[null,null,null,null,0,null,null,null,null,null,null," "]
[null,null,null,null,0,null,null,null,null,null,null," "]
[null,null,null,null,0,null,null,null,null,null,null," "]
[null,null,null,null,0,null,null,null,null,null,null," "]
[null,null,null,null,0,null,null,null,null,null,null," "]
[null,null,null,null,0,null,null,null,null,null,null,{"$f":"IF(K310>0,J310/K310,\" \")","v":" "}]
[null,null,null,null,0,null,null,null,null,null,null,{"$f":"IF(K311>0,J311/K311,\" \")","v":" "}]
[null,null,null,null,0,null,null,null,null,null,null," "]
[null,null,null,null,0,null,null,null,null,null,null," "]
[null,null,null,null,0,null,null,null,null,null,null," "]
[null,null,null,null,0,null,null,null,null,null,null," "]
[null,null,null,null,0,null,null,null,null,null,null," "]
[null,null,null,null,0,null,null,null,null,null,null," "]
[null,null,null,null,0,null,null,null,null,null,null," "]
[null,null,null,null,0,null,null,null,null,null,null," "]
[null,null,null,null,0,null,null,null,null,null,null,{"$f":"IF(K320>0,J320/K320,\" \")","v":" "}]
[null,null,null,null,0,null,null,null,null,null,null,{"$f":"IF(K321>0,J321/K321,\" \")","v":" "}]
[null,null,null,null,0,null,null,null,null,null,null," "]
[null,null,null,null,0,null,null,null,null,null,null," "]
[null,null,null,null,0,null,null,null,null,null,null," "]
[null,null,null,null,0,null,null,null,null,null,null," "]
[null,null,null,null,0,null,null,null,null,null,null," "]
[null,null,null,null,0,null,null,null,null,null,null," "]
[null,null,null,null,0,null,null,null,null,null,null," "]
[null,null,null,null,0,null,null,null,null,null,null," "]
[null,null,null,null,0,null,null,null,null,null,null," "]
[null,null,null,null,0,null,null,null,null,null,null," "]
[null,null,null,null,0,null,null,null,null,null,null," "]
[null,null,null,null,0,null,null,null,null,null,null," "]
[null,null,null,null,0,null,null,null,null,null,null,{"$f":"IF(K334>0,J334/K334,\" \")","v":" "}]
[null,null,null,null,0,null,null,null,null,null,null,{"$f":"IF(K335>0,J335/K335,\" \")","v":" "}]
[null,null,null,null,0,null,null,null,null,null,null," "]
[null,null,null,null,{"$f":"IF(D337=0,0,C337/D337)","v":0},null,null,null,null,null,null," "]
[null,null,null,null,0,null,null,null,null,null,null," "]
[null,null,null,null,0,null,null,null,null,null,null," "]
[null,null,null,null,0,null,null,null,null,null,null," "]
[null,null,null,null,0,null,null,null,null,null,null," "]
[null,null,null,null,0,null,null,null,null,null,null," "]
[null,null,null,null,0,null,null,null,null,null,null," "]
[null,null,null,null,0,null,null,null,null,null,null,{"$f":"IF(K344>0,J344/K344,\" \")","v":" "}]
[null,null,null,null,0,null,null,null,null,null,null,{"$f":"IF(K345>0,J345/K345,\" \")","v":" "}]
[null,null,null,null,0,null,null,null,null,null,null," "]
[null,null,null,null,0,null,null,null,null,null,null," "]
[null,null,null,null,0,null,null,null,null,null,null," "]
[null,null,null,null,0,null,null,null,null,null,null," "]
[null,null,null,null,0,null,null,null,null,null,null," "]
[null,null,null,null,0,null,null,null,null,null,null," "]
[null,null,null,null,0,null,null,null,null,null,null," "]
[null,null,null,null,0,null,null,null,null,null,null,{"$f":"IF(K353>0,J353/K353,\" \")","v":" "}]
[null,null,null,null,0,null,null,null,null,null,null,{"$f":"IF(K354>0,J354/K354,\" \")","v":" "}]
[null,null,null,null,0,null,null,null,null,null,null,{"$f":"IF(K355>0,J355/K355,\" \")","v":" "}]
[null,null,null,null,0,null,null,null,null,null,null," "]
[null,null,null,null,0,null,null,null,null,null,null," "]
[null,null,null,null,0,null,null,null,null,null,null," "]
[null,null,null,null,0,null,null,null,null,null,null," "]
[null,null,null,null,0,null,null,null,null,null,null," "]
[null,null,null,null,0,null,null,null,null,null,null," "]
[null,null,null,null,0,null,null,null,null,null,null," "]
[null,null,null,null,0,null,null,null,null,null,null," "]
[null,null,null,null,0,null,null,null,null,null,null,{"$f":"IF(K364>0,J364/K364,\" \")","v":" "}]
[null,null,null,null,0,null,null,null,null,null,null,{"$f":"IF(K365>0,J365/K365,\" \")","v":" "}]
[null,null,null,null,0,null,null,null,null,null,null," "]
[null,null,null,null,0,null,null,null,null,null,null," "]
[null,null,null,null,0,null,null,null,null,null,null," "]
[null,null,null,null,0,null,null,null,null,null,null," "]
[null,null,null,null,0,null,null,null,null,null,null," "]
[null,null,null,null,0,null,null,null,null,null,null," "]
[null,null,null,null,0,null,null,null,null,null,null," "]
[null,null,null,null,0,null,null,null,null,null,null,{"$f":"IF(K373>0,J373/K373,\" \")","v":" "}]
[null,null,null,null,0,null,null,null,null,null,null,{"$f":"IF(K374>0,J374/K374,\" \")","v":" "}]
[null,null,null,null,0,null,null,null,null,null,null," "]
[null,null,null,null,0,null,null,null,null,null,null," "]
[null,null,null,null,0,null,null,null,null,null,null," "]
[null,null,null,null,0,null,null,null,null,null,null," "]
[null,null,null,null,0,null,null,null,null,null,null," "]
[null,null,null,null,0,null,null,null,null,null,null," "]
[null,null,null,null,0,null,null,null,null,null,null," "]
[null,null,null,null,0,null,null,null,null,null,null," "]
[null,null,null,null,0,null,null,null,null,null,null,{"$f":"IF(K383>0,J383/K383,\" \")","v":" "}]
[null,null,null,null,0,null,null,null,null,null,null,{"$f":"IF(K384>0,J384/K384,\" \")","v":" "}]
[null,null,null,null,0,null,null,null,null,null,null," "]
[null,null,null,null,0,null,null,null,null,null,null," "]
[null,null,null,null,0,null,null,null,null,null,null," "]
[null,null,null,null,0,null,null,null,null,null,null," "]
[null,null,null,null,0,null,null,null,null,null,null," "]
[null,null,null,null,0,null,null,null,null,null,null," "]
[null,null,null,null,0,null,null,null,null,null,null," "]
[null,null,null,null,0,null,null,null,null,null,null,{"$f":"IF(K392>0,J392/K392,\" \")","v":" "}]
[null,null,null,null,0,null,null,null,null,null,null,{"$f":"IF(K393>0,J393/K393,\" \")","v":" "}]
[null,null,null,null,0,null,null,null,null,null,null,{"$f":"IF(K394>0,J394/K394,\" \")","v":" "}]
[null,null,null,null,0,null,null,null,null,null,null," "]
[null,null,null,null,0,null,null,null,null,null,null," "]
[null,null,null,null,0,null,null,null,null,null,null," "]
[null,null,null,null,0,null,null,null,null,null,null," "]
[null,null,null,null,0,null,null,null,null,null,null," "]
[null,null,null,null,0,null,null,null,null,null,null," "]
[null,null,null,null,{"$f":"IF(D401=0,0,C401/D401)","v":0},null,null,null,null,null,null," "]
[null,null,null,null,0,null,null,null,null,null,null," "]
[null,null,null,null,0,null,null,null,null,null,null,{"$f":"IF(K403>0,J403/K403,\" \")","v":" "}]
[null,null,null,null,0,null,null,null,null,null,null,{"$f":"IF(K404>0,J404/K404,\" \")","v":" "}]
[null,null,null,null,0,null,null,null,null,null,null," "]
[null,null,null,null,0,null,null,null,null,null,null," "]
[null,null,null,null,0,null,null,null,null,null,null," "]
[null,null,null,null,0,null,null,null,null,null,null," "]
[null,null,null,null,0,null,null,null,null,null,null," "]
[]
[]
[]
[]
[]
[]
[]
[]
[]
[]
[]
[]
[]
[]
[]
[]
[]
[]
[]
[null,null,null,null,null,null,{"$f":"IF(OR(#REF!>#REF!,#REF!=\"\"),2,1)","v":{"$error":"#REF!"}}]
[null,null,null,null,null,null,{"$f":"IF(OR(#REF!>#REF!,#REF!=\"\"),2,1)","v":{"$error":"#REF!"}}]
[null,null,null,null,null,null,{"$f":"IF(OR(#REF!>#REF!,#REF!=\"\"),2,1)","v":{"$error":"#REF!"}}]
[null,null,null,null,null,null,{"$f":"IF(OR(#REF!>#REF!,#REF!=\"\"),2,1)","v":{"$error":"#REF!"}}]
[null,null,null,null,null,null,{"$f":"IF(OR(#REF!>#REF!,#REF!=\"\"),2,1)","v":{"$error":"#REF!"}}]
[null,null,null,null,null,null,{"$f":"IF(OR(#REF!>#REF!,#REF!=\"\"),2,1)","v":{"$error":"#REF!"}}]
[null,null,null,null,null,null,{"$f":"IF(OR(#REF!>#REF!,#REF!=\"\"),2,1)","v":{"$error":"#REF!"}}]
[null,null,null,null,null,null,{"$f":"IF(OR(#REF!>#REF!,#REF!=\"\"),2,1)","v":{"$error":"#REF!"}}]
[null,null,null,null,null,null,{"$f":"IF(OR(#REF!>#REF!,#REF!=\"\"),2,1)","v":{"$error":"#REF!"}}]
[null,null,null,null,null,null,{"$f":"IF(OR(#REF!>#REF!,#REF!=\"\"),2,1)","v":{"$error":"#REF!"}}]

{"sheet":"All TI - Grade Span - E","index":7,"n_rows":429,"n_cols":12,"rows_kept":429,"cut":false,"hidden":false,"merged":[[439,6,439,7],[440,6,440,7],[443,3,443,4],[8,0,9,0],[11,0,12,0],[422,6,422,7],[11,1,11,2],[11,4,12,7],[10,4,10,7],[422,9,422,10],[433,6,433,7],[434,6,434,7],[436,6,436,7],[437,6,437,7],[11,8,12,9],[12,1,12,2],[14,0,15,0],[14,1,15,1],[14,2,14,4],[10,8,10,9],[0,0,0,9],[1,0,1,9],[2,0,2,9],[3,1,3,4],[3,6,3,9],[5,0,6,0],[5,1,5,2],[5,4,5,9],[6,1,6,2],[6,4,6,7],[6,8,6,9],[7,4,9,7],[7,8,9,9],[8,1,8,2],[9,1,9,2]]}
["1. Complete this worksheet if all schools in the grade span receive Title I funds."]
["2. Complete one worksheet for each grade span unless using Enrollment Size Range Grouping; then use two per grade span and indicate the range of \"Smaller\" or \"Larger\" on line 3.. If you need additional worksheets, please contact TIPA at TIPA@fldoe.org. "]
["3. <Enter \"Smaller\" or  \"Larger\" if that Enrollment Size Range Grouping is being used for the calculations below.>"]
["Local Educational Agency:","<Enter LEA name>",null,null,null,"Grade Span","<Enter Grade Span>"]
[]
["Total number of students in Title I schools in grade span",{"$f":"SUM(C17:C419)","v":0},null,null,"Allowable variance for the average "]
[null,"Sum of column C",null,null,"Shall not exceed 110% of average",null,null,null,{"$f":"(B12*1.1)","v":0}]
[null,null,null,null,"If \"Comparable\" all schools listed will showcase a green staff ratio percentage. If \"Not Comparable\" all non compliant school staff ratio percentages listed will showcase as red, requiring additional action.",null,null,null,{"$f":"IF(MAX(E17:E419)<=I7, \"Comparable\", \"Not Comparable\")","v":"Comparable"}]
["Totals for comparability options",{"$f":"SUM(D17:D419)","v":0}]
[null,"Sum of column D FTE Staff"]
[null,null,null,null,"Shall not be less than 90% of average",null,null,null,{"$f":"(B12*0.9)","v":0}]
["Averages for comparability options",{"$f":"IF(B6=0,0,B6/B9)","v":0},null,null,"If \"Comparable\" all schools listed will showcase a green staff ratio percentage. If \"Not Comparable\" all non compliant school staff ratio percentages listed will showcase as red, requiring additional action.",null,null,null,{"$f":"IF(COUNTIFS(E17:E419,\">0\",E17:E419,\"<>\"&0,E17:E419,\">=\"&I11)=COUNTIFS(E17:E419,\">0\",E17:E419,\"<>\"&0), \"Comparable\", \"Not Comparable\")","v":"Comparable"}]
[null,"Number of students in \nTitle I schools in grade span divided by the total for the option. "]
[null,"."]
["Title I Schools \nDo not include schools in the grade span that have fewer than 100 students enrolled.","Grade Span","Pupil-Teacher Ratio\n"]
[null,null,"Public School\nEnrollment\n(Column C)","FTE Staff\n(Column D)","Student \nStaff\nRatio"]
[null,null,null,null,{"$f":"IF(D17>0,C17/D17,\" \")","v":" "}]
[null,null,null,null," "]
[null,null,null,null," "]
[null,null,null,null," "]
[null,null,null,null," "]
[null,null,null,null," "]
[null,null,null,null," "]
[null,null,null,null," "]
[null,null,null,null," "]
[null,null,null,null," "]
[null,null,null,null," "]
[null,null,null,null," "]
[null,null,null,null," "]
[null,null,null,null," "]
[null,null,null,null," "]
[null,null,null,null," "]
[null,null,null,null," "]
[null,null,null,null," "]
[null,null,null,null," "]
[null,null,null,null," "]
[null,null,null,null," "]
[null,null,null,null," "]
[null,null,null,null," "]
[null,null,null,null," "]
[null,null,null,null," "]
[null,null,null,null," "]
[null,null,null,null," "]
[null,null,null,null," "]
[null,null,null,null," "]
[null,null,null,null," "]
[null,null,null,null," "]
[null,null,null,null," "]
[null,null,null,null," "]
[null,null,null,null," "]
[null,null,null,null," "]
[null,null,null,null," "]
[null,null,null,null," "]
[null,null,null,null," "]
[null,null,null,null," "]
[null,null,null,null," "]
[null,null,null,null," "]
[null,null,null,null," "]
[null,null,null,null," "]
[null,null,null,null," "]
[null,null,null,null," "]
[null,null,null,null," "]
[null,null,null,null," "]
[null,null,null,null," "]
[null,null,null,null," "]
[null,null,null,null," "]
[null,null,null,null," "]
[null,null,null,null," "]
[null,null,null,null," "]
[null,null,null,null," "]
[null,null,null,null," "]
[null,null,null,null," "]
[null,null,null,null," "]
[null,null,null,null," "]
[null,null,null,null," "]
[null,null,null,null," "]
[null,null,null,null," "]
[null,null,null,null," "]
[null,null,null,null," "]
[null,null,null,null," "]
[null,null,null,null,{"$f":"IF(D81>0,C81/D81,\" \")","v":" "}]
[null,null,null,null," "]
[null,null,null,null," "]
[null,null,null,null," "]
[null,null,null,null," "]
[null,null,null,null," "]
[null,null,null,null," "]
[null,null,null,null," "]
[null,null,null,null," "]
[null,null,null,null," "]
[null,null,null,null," "]
[null,null,null,null," "]
[null,null,null,null," "]
[null,null,null,null," "]
[null,null,null,null," "]
[null,null,null,null," "]
[null,null,null,null," "]
[null,null,null,null," "]
[null,null,null,null," "]
[null,null,null,null," "]
[null,null,null,null," "]
[null,null,null,null," "]
[null,null,null,null," "]
[null,null,null,null," "]
[null,null,null,null," "]
[null,null,null,null," "]
[null,null,null,null," "]
[null,null,null,null," "]
[null,null,null,null," "]
[null,null,null,null," "]
[null,null,null,null," "]
[null,null,null,null," "]
[null,null,null,null," "]
[null,null,null,null," "]
[null,null,null,null," "]
[null,null,null,null," "]
[null,null,null,null," "]
[null,null,null,null," "]
[null,null,null,null," "]
[null,null,null,null," "]
[null,null,null,null," "]
[null,null,null,null," "]
[null,null,null,null," "]
[null,null,null,null," "]
[null,null,null,null," "]
[null,null,null,null," "]
[null,null,null,null," "]
[null,null,null,null," "]
[null,null,null,null," "]
[null,null,null,null," "]
[null,null,null,null," "]
[null,null,null,null," "]
[null,null,null,null," "]
[null,null,null,null," "]
[null,null,null,null," "]
[null,null,null,null," "]
[null,null,null,null," "]
[null,null,null,null," "]
[null,null,null,null," "]
[null,null,null,null," "]
[null,null,null,null," "]
[null,null,null,null," "]
[null,null,null,null," "]
[null,null,null,null," "]
[null,null,null,null,{"$f":"IF(D145>0,C145/D145,\" \")","v":" "}]
[null,null,null,null," "]
[null,null,null,null," "]
[null,null,null,null," "]
[null,null,null,null," "]
[null,null,null,null," "]
[null,null,null,null," "]
[null,null,null,null," "]
[null,null,null,null," "]
[null,null,null,null," "]
[null,null,null,null," "]
[null,null,null,null," "]
[null,null,null,null," "]
[null,null,null,null," "]
[null,null,null,null," "]
[null,null,null,null," "]
[null,null,null,null," "]
[null,null,null,null," "]
[null,null,null,null," "]
[null,null,null,null," "]
[null,null,null,null," "]
[null,null,null,null," "]
[null,null,null,null," "]
[null,null,null,null," "]
[null,null,null,null," "]
[null,null,null,null," "]
[null,null,null,null," "]
[null,null,null,null," "]
[null,null,null,null," "]
[null,null,null,null," "]
[null,null,null,null," "]
[null,null,null,null," "]
[null,null,null,null," "]
[null,null,null,null," "]
[null,null,null,null," "]
[null,null,null,null," "]
[null,null,null,null," "]
[null,null,null,null," "]
[null,null,null,null," "]
[null,null,null,null," "]
[null,null,null,null," "]
[null,null,null,null," "]
[null,null,null,null," "]
[null,null,null,null," "]
[null,null,null,null," "]
[null,null,null,null," "]
[null,null,null,null," "]
[null,null,null,null," "]
[null,null,null,null," "]
[null,null,null,null," "]
[null,null,null,null," "]
[null,null,null,null," "]
[null,null,null,null," "]
[null,null,null,null," "]
[null,null,null,null," "]
[null,null,null,null," "]
[null,null,null,null," "]
[null,null,null,null," "]
[null,null,null,null," "]
[null,null,null,null," "]
[null,null,null,null," "]
[null,null,null,null," "]
[null,null,null,null," "]
[null,null,null,null," "]
[null,null,null,null,{"$f":"IF(D209>0,C209/D209,\" \")","v":" "}]
[null,null,null,null," "]
[null,null,null,null," "]
[null,null,null,null," "]
[null,null,null,null," "]
[null,null,null,null," "]
[null,null,null,null," "]
[null,null,null,null," "]
[null,null,null,null," "]
[null,null,null,null," "]
[null,null,null,null," "]
[null,null,null,null," "]
[null,null,null,null," "]
[null,null,null,null," "]
[null,null,null,null," "]
[null,null,null,null," "]
[null,null,null,null," "]
[null,null,null,null," "]
[null,null,null,null," "]
[null,null,null,null," "]
[null,null,null,null," "]
[null,null,null,null," "]
[null,null,null,null," "]
[null,null,null,null," "]
[null,null,null,null," "]
[null,null,null,null," "]
[null,null,null,null," "]
[null,null,null,null," "]
[null,null,null,null," "]
[null,null,null,null," "]
[null,null,null,null," "]
[null,null,null,null," "]
[null,null,null,null," "]
[null,null,null,null," "]
[null,null,null,null," "]
[null,null,null,null," "]
[null,null,null,null," "]
[null,null,null,null," "]
[null,null,null,null," "]
[null,null,null,null," "]
[null,null,null,null," "]
[null,null,null,null," "]
[null,null,null,null," "]
[null,null,null,null," "]
[null,null,null,null," "]
[null,null,null,null," "]
[null,null,null,null," "]
[null,null,null,null," "]
[null,null,null,null," "]
[null,null,null,null," "]
[null,null,null,null," "]
[null,null,null,null," "]
[null,null,null,null," "]
[null,null,null,null," "]
[null,null,null,null," "]
[null,null,null,null," "]
[null,null,null,null," "]
[null,null,null,null," "]
[null,null,null,null," "]
[null,null,null,null," "]
[null,null,null,null," "]
[null,null,null,null," "]
[null,null,null,null," "]
[null,null,null,null," "]
[null,null,null,null,{"$f":"IF(D273>0,C273/D273,\" \")","v":" "}]
[null,null,null,null," "]
[null,null,null,null," "]
[null,null,null,null," "]
[null,null,null,null," "]
[null,null,null,null," "]
[null,null,null,null," "]
[null,null,null,null," "]
[null,null,null,null," "]
[null,null,null,null," "]
[null,null,null,null," "]
[null,null,null,null," "]
[null,null,null,null," "]
[null,null,null,null," "]
[null,null,null,null," "]
[null,null,null,null," "]
[null,null,null,null," "]
[null,null,null,null," "]
[null,null,null,null," "]
[null,null,null,null," "]
[null,null,null,null," "]
[null,null,null,null," "]
[null,null,null,null," "]
[null,null,null,null," "]
[null,null,null,null," "]
[null,null,null,null," "]
[null,null,null,null," "]
[null,null,null,null," "]
[null,null,null,null," "]
[null,null,null,null," "]
[null,null,null,null," "]
[null,null,null,null," "]
[null,null,null,null," "]
[null,null,null,null," "]
[null,null,null,null," "]
[null,null,null,null," "]
[null,null,null,null," "]
[null,null,null,null," "]
[null,null,null,null," "]
[null,null,null,null," "]
[null,null,null,null," "]
[null,null,null,null," "]
[null,null,null,null," "]
[null,null,null,null," "]
[null,null,null,null," "]
[null,null,null,null," "]
[null,null,null,null," "]
[null,null,null,null," "]
[null,null,null,null," "]
[null,null,null,null," "]
[null,null,null,null," "]
[null,null,null,null," "]
[null,null,null,null," "]
[null,null,null,null," "]
[null,null,null,null," "]
[null,null,null,null," "]
[null,null,null,null," "]
[null,null,null,null," "]
[null,null,null,null," "]
[null,null,null,null," "]
[null,null,null,null," "]
[null,null,null,null," "]
[null,null,null,null," "]
[null,null,null,null," "]
[null,null,null,null,{"$f":"IF(D337>0,C337/D337,\" \")","v":" "}]
[null,null,null,null," "]
[null,null,null,null," "]
[null,null,null,null," "]
[null,null,null,null," "]
[null,null,null,null," "]
[null,null,null,null," "]
[null,null,null,null," "]
[null,null,null,null," "]
[null,null,null,null," "]
[null,null,null,null," "]
[null,null,null,null," "]
[null,null,null,null," "]
[null,null,null,null," "]
[null,null,null,null," "]
[null,null,null,null," "]
[null,null,null,null," "]
[null,null,null,null," "]
[null,null,null,null," "]
[null,null,null,null," "]
[null,null,null,null," "]
[null,null,null,null," "]
[null,null,null,null," "]
[null,null,null,null," "]
[null,null,null,null," "]
[null,null,null,null," "]
[null,null,null,null," "]
[null,null,null,null," "]
[null,null,null,null," "]
[null,null,null,null," "]
[null,null,null,null," "]
[null,null,null,null," "]
[null,null,null,null," "]
[null,null,null,null," "]
[null,null,null,null," "]
[null,null,null,null," "]
[null,null,null,null," "]
[null,null,null,null," "]
[null,null,null,null," "]
[null,null,null,null," "]
[null,null,null,null," "]
[null,null,null,null," "]
[null,null,null,null," "]
[null,null,null,null," "]
[null,null,null,null," "]
[null,null,null,null," "]
[null,null,null,null," "]
[null,null,null,null," "]
[null,null,null,null," "]
[null,null,null,null," "]
[null,null,null,null," "]
[null,null,null,null," "]
[null,null,null,null," "]
[null,null,null,null," "]
[null,null,null,null," "]
[null,null,null,null," "]
[null,null,null,null," "]
[null,null,null,null," "]
[null,null,null,null," "]
[null,null,null,null," "]
[null,null,null,null," "]
[null,null,null,null," "]
[null,null,null,null," "]
[null,null,null,null," "]
[null,null,null,null,{"$f":"IF(D401>0,C401/D401,\" \")","v":" "}]
[null,null,null,null," "]
[null,null,null,null," "]
[null,null,null,null," "]
[null,null,null,null," "]
[null,null,null,null," "]
[null,null,null,null," "]
[null,null,null,null," "]
[null,null,null,null," "]
[null,null,null,null," "]
[null,null,null,null," "]
[null,null,null,null," "]
[null,null,null,null," "]
[null,null,null,null," "]
[null,null,null,null," "]
[null,null,null,null," "]
[null,null,null,null," "]
[null,null,null,null," "]
[null,null,null,null," "]
[]
[]
[]
[]
[]
[null,null,null,null,null,null,null,null,null,null,null,{"$f":"IF(OR(K425>$J$440,J425=\"\"), 2, 1)","v":2}]
[null,null,null,null,null,null,null,null,null,null,null,{"$f":"IF(OR(K426>$J$440,J426=\"\"), 2, 1)","v":2}]
[null,null,null,null,null,null,null,null,null,null,{"$f":"IF(K426>0,J426/K426,\" \")","v":" "},{"$f":"IF(OR(K427>$J$440,J427=\"\"), 2, 1)","v":2}]
[null,null,null,null,null,null,null,null,null,null,null,{"$f":"IF(OR(K428>$J$440,J428=\"\"), 2, 1)","v":2}]
[null,null,null,null,null,null,null,null,null,null,null,{"$f":"IF(OR(K429>$J$440,J429=\"\"), 2, 1)","v":2}]

{"sheet":"All TI - Grade Span - M","index":8,"n_rows":429,"n_cols":12,"rows_kept":429,"cut":false,"hidden":false,"merged":[[443,3,443,4],[422,6,422,7],[422,9,422,10],[433,6,433,7],[434,6,434,7],[436,6,436,7],[437,6,437,7],[14,0,15,0],[14,1,15,1],[14,2,14,4],[439,6,439,7],[440,6,440,7],[9,1,9,2],[11,1,11,2],[11,4,12,7],[11,8,12,9],[12,1,12,2],[10,4,10,7],[10,8,10,9],[0,0,0,9],[1,0,1,9],[2,0,2,9],[3,1,3,4],[3,6,3,9],[5,0,6,0],[5,1,5,2],[5,4,5,9],[6,1,6,2],[6,4,6,7],[6,8,6,9],[7,4,9,7],[7,8,9,9],[8,1,8,2]]}
["1. Complete this worksheet if all schools in the grade span receive Title I funds."]
["2. Complete one worksheet for each grade span unless using Enrollment Size Range Grouping; then use two per grade span and indicate the range of \"Smaller\" or \"Larger\" on line 3.. If you need additional worksheets, please contact TIPA at TIPA@fldoe.org. "]
["3. <Enter \"Smaller\" or  \"Larger\" if that Enrollment Size Range Grouping is being used for the calculations below.>"]
["Local Educational Agency:","<Enter LEA name>",null,null,null,"Grade Span","<Enter Grade Span>"]
[]
["Total number of students in Title I schools in grade span",{"$f":"SUM(C17:C419)","v":0},null,null,"Allowable variance for the average "]
[null,"Sum of column C",null,null,"Shall not exceed 110% of average",null,null,null,{"$f":"(B12*1.1)","v":0}]
[null,null,null,null,"If \"Comparable\" all schools listed will showcase a green staff ratio percentage. If \"Not Comparable\" all non compliant school staff ratio percentages listed will showcase as red, requiring additional action.",null,null,null,{"$f":"IF(MAX(E17:E419)<=I7, \"Comparable\", \"Not Comparable\")","v":"Comparable"}]
["Totals for comparability options",{"$f":"SUM(D17:D419)","v":0}]
[null,"Sum of column D FTE Staff"]
[null,null,null,null,"Shall not be less than 90% of average",null,null,null,{"$f":"(B12*0.9)","v":0}]
["Averages for comparability options",{"$f":"IF(B6=0,0,B6/B9)","v":0},null,null,"If \"Comparable\" all schools listed will showcase a green staff ratio percentage. If \"Not Comparable\" all non compliant school staff ratio percentages listed will showcase as red, requiring additional action.",null,null,null,{"$f":"IF(COUNTIFS(E17:E419,\">0\",E17:E419,\"<>\"&0,E17:E419,\">=\"&I11)=COUNTIFS(E17:E419,\">0\",E17:E419,\"<>\"&0), \"Comparable\", \"Not Comparable\")","v":"Comparable"}]
[null,"Number of students in \nTitle I schools in grade span divided by the total for the option. "]
[]
["Title I Schools \nDo not include schools in the grade span that have fewer than 100 students enrolled.","Grade Span","Pupil-Teacher Ratio\n"]
[null,null,"Public School\nEnrollment\n(Column C)","FTE Staff\n(Column D)","Student \nStaff\nRatio"]
[null,null,null,null,{"$f":"IF(D17>0,C17/D17,\" \")","v":" "}]
[null,null,null,null," "]
[null,null,null,null," "]
[null,null,null,null," "]
[null,null,null,null," "]
[null,null,null,null," "]
[null,null,null,null," "]
[null,null,null,null," "]
[null,null,null,null," "]
[null,null,null,null," "]
[null,null,null,null," "]
[null,null,null,null," "]
[null,null,null,null," "]
[null,null,null,null," "]
[null,null,null,null," "]
[null,null,null,null," "]
[null,null,null,null," "]
[null,null,null,null," "]
[null,null,null,null," "]
[null,null,null,null," "]
[null,null,null,null," "]
[null,null,null,null," "]
[null,null,null,null," "]
[null,null,null,null," "]
[null,null,null,null," "]
[null,null,null,null," "]
[null,null,null,null," "]
[null,null,null,null," "]
[null,null,null,null," "]
[null,null,null,null," "]
[null,null,null,null," "]
[null,null,null,null," "]
[null,null,null,null," "]
[null,null,null,null," "]
[null,null,null,null," "]
[null,null,null,null," "]
[null,null,null,null," "]
[null,null,null,null," "]
[null,null,null,null," "]
[null,null,null,null," "]
[null,null,null,null," "]
[null,null,null,null," "]
[null,null,null,null," "]
[null,null,null,null," "]
[null,null,null,null," "]
[null,null,null,null," "]
[null,null,null,null," "]
[null,null,null,null," "]
[null,null,null,null," "]
[null,null,null,null," "]
[null,null,null,null," "]
[null,null,null,null," "]
[null,null,null,null," "]
[null,null,null,null," "]
[null,null,null,null," "]
[null,null,null,null," "]
[null,null,null,null," "]
[null,null,null,null," "]
[null,null,null,null," "]
[null,null,null,null," "]
[null,null,null,null," "]
[null,null,null,null," "]
[null,null,null,null," "]
[null,null,null,null," "]
[null,null,null,null,{"$f":"IF(D81>0,C81/D81,\" \")","v":" "}]
[null,null,null,null," "]
[null,null,null,null," "]
[null,null,null,null," "]
[null,null,null,null," "]
[null,null,null,null," "]
[null,null,null,null," "]
[null,null,null,null," "]
[null,null,null,null," "]
[null,null,null,null," "]
[null,null,null,null," "]
[null,null,null,null," "]
[null,null,null,null," "]
[null,null,null,null," "]
[null,null,null,null," "]
[null,null,null,null," "]
[null,null,null,null," "]
[null,null,null,null," "]
[null,null,null,null," "]
[null,null,null,null," "]
[null,null,null,null," "]
[null,null,null,null," "]
[null,null,null,null," "]
[null,null,null,null," "]
[null,null,null,null," "]
[null,null,null,null," "]
[null,null,null,null," "]
[null,null,null,null," "]
[null,null,null,null," "]
[null,null,null,null," "]
[null,null,null,null," "]
[null,null,null,null," "]
[null,null,null,null," "]
[null,null,null,null," "]
[null,null,null,null," "]
[null,null,null,null," "]
[null,null,null,null," "]
[null,null,null,null," "]
[null,null,null,null," "]
[null,null,null,null," "]
[null,null,null,null," "]
[null,null,null,null," "]
[null,null,null,null," "]
[null,null,null,null," "]
[null,null,null,null," "]
[null,null,null,null," "]
[null,null,null,null," "]
[null,null,null,null," "]
[null,null,null,null," "]
[null,null,null,null," "]
[null,null,null,null," "]
[null,null,null,null," "]
[null,null,null,null," "]
[null,null,null,null," "]
[null,null,null,null," "]
[null,null,null,null," "]
[null,null,null,null," "]
[null,null,null,null," "]
[null,null,null,null," "]
[null,null,null,null," "]
[null,null,null,null," "]
[null,null,null,null," "]
[null,null,null,null," "]
[null,null,null,null," "]
[null,null,null,null,{"$f":"IF(D145>0,C145/D145,\" \")","v":" "}]
[null,null,null,null," "]
[null,null,null,null," "]
[null,null,null,null," "]
[null,null,null,null," "]
[null,null,null,null," "]
[null,null,null,null," "]
[null,null,null,null," "]
[null,null,null,null," "]
[null,null,null,null," "]
[null,null,null,null," "]
[null,null,null,null," "]
[null,null,null,null," "]
[null,null,null,null," "]
[null,null,null,null," "]
[null,null,null,null," "]
[null,null,null,null," "]
[null,null,null,null," "]
[null,null,null,null," "]
[null,null,null,null," "]
[null,null,null,null," "]
[null,null,null,null," "]
[null,null,null,null," "]
[null,null,null,null," "]
[null,null,null,null," "]
[null,null,null,null," "]
[null,null,null,null," "]
[null,null,null,null," "]
[null,null,null,null," "]
[null,null,null,null," "]
[null,null,null,null," "]
[null,null,null,null," "]
[null,null,null,null," "]
[null,null,null,null," "]
[null,null,null,null," "]
[null,null,null,null," "]
[null,null,null,null," "]
[null,null,null,null," "]
[null,null,null,null," "]
[null,null,null,null," "]
[null,null,null,null," "]
[null,null,null,null," "]
[null,null,null,null," "]
[null,null,null,null," "]
[null,null,null,null," "]
[null,null,null,null," "]
[null,null,null,null," "]
[null,null,null,null," "]
[null,null,null,null," "]
[null,null,null,null," "]
[null,null,null,null," "]
[null,null,null,null," "]
[null,null,null,null," "]
[null,null,null,null," "]
[null,null,null,null," "]
[null,null,null,null," "]
[null,null,null,null," "]
[null,null,null,null," "]
[null,null,null,null," "]
[null,null,null,null," "]
[null,null,null,null," "]
[null,null,null,null," "]
[null,null,null,null," "]
[null,null,null,null," "]
[null,null,null,null,{"$f":"IF(D209>0,C209/D209,\" \")","v":" "}]
[null,null,null,null," "]
[null,null,null,null," "]
[null,null,null,null," "]
[null,null,null,null," "]
[null,null,null,null," "]
[null,null,null,null," "]
[null,null,null,null," "]
[null,null,null,null," "]
[null,null,null,null," "]
[null,null,null,null," "]
[null,null,null,null," "]
[null,null,null,null," "]
[null,null,null,null," "]
[null,null,null,null," "]
[null,null,null,null," "]
[null,null,null,null," "]
[null,null,null,null," "]
[null,null,null,null," "]
[null,null,null,null," "]
[null,null,null,null," "]
[null,null,null,null," "]
[null,null,null,null," "]
[null,null,null,null," "]
[null,null,null,null," "]
[null,null,null,null," "]
[null,null,null,null," "]
[null,null,null,null," "]
[null,null,null,null," "]
[null,null,null,null," "]
[null,null,null,null," "]
[null,null,null,null," "]
[null,null,null,null," "]
[null,null,null,null," "]
[null,null,null,null," "]
[null,null,null,null," "]
[null,null,null,null," "]
[null,null,null,null," "]
[null,null,null,null," "]
[null,null,null,null," "]
[null,null,null,null," "]
[null,null,null,null," "]
[null,null,null,null," "]
[null,null,null,null," "]
[null,null,null,null," "]
[null,null,null,null," "]
[null,null,null,null," "]
[null,null,null,null," "]
[null,null,null,null," "]
[null,null,null,null," "]
[null,null,null,null," "]
[null,null,null,null," "]
[null,null,null,null," "]
[null,null,null,null," "]
[null,null,null,null," "]
[null,null,null,null," "]
[null,null,null,null," "]
[null,null,null,null," "]
[null,null,null,null," "]
[null,null,null,null," "]
[null,null,null,null," "]
[null,null,null,null," "]
[null,null,null,null," "]
[null,null,null,null," "]
[null,null,null,null,{"$f":"IF(D273>0,C273/D273,\" \")","v":" "}]
[null,null,null,null," "]
[null,null,null,null," "]
[null,null,null,null," "]
[null,null,null,null," "]
[null,null,null,null," "]
[null,null,null,null," "]
[null,null,null,null," "]
[null,null,null,null," "]
[null,null,null,null," "]
[null,null,null,null," "]
[null,null,null,null," "]
[null,null,null,null," "]
[null,null,null,null," "]
[null,null,null,null," "]
[null,null,null,null," "]
[null,null,null,null," "]
[null,null,null,null," "]
[null,null,null,null," "]
[null,null,null,null," "]
[null,null,null,null," "]
[null,null,null,null," "]
[null,null,null,null," "]
[null,null,null,null," "]
[null,null,null,null," "]
[null,null,null,null," "]
[null,null,null,null," "]
[null,null,null,null," "]
[null,null,null,null," "]
[null,null,null,null," "]
[null,null,null,null," "]
[null,null,null,null," "]
[null,null,null,null," "]
[null,null,null,null," "]
[null,null,null,null," "]
[null,null,null,null," "]
[null,null,null,null," "]
[null,null,null,null," "]
[null,null,null,null," "]
[null,null,null,null," "]
[null,null,null,null," "]
[null,null,null,null," "]
[null,null,null,null," "]
[null,null,null,null," "]
[null,null,null,null," "]
[null,null,null,null," "]
[null,null,null,null," "]
[null,null,null,null," "]
[null,null,null,null," "]
[null,null,null,null," "]
[null,null,null,null," "]
[null,null,null,null," "]
[null,null,null,null," "]
[null,null,null,null," "]
[null,null,null,null," "]
[null,null,null,null," "]
[null,null,null,null," "]
[null,null,null,null," "]
[null,null,null,null," "]
[null,null,null,null," "]
[null,null,null,null," "]
[null,null,null,null," "]
[null,null,null,null," "]
[null,null,null,null," "]
[null,null,null,null,{"$f":"IF(D337>0,C337/D337,\" \")","v":" "}]
[null,null,null,null," "]
[null,null,null,null," "]
[null,null,null,null," "]
[null,null,null,null," "]
[null,null,null,null," "]
[null,null,null,null," "]
[null,null,null,null," "]
[null,null,null,null," "]
[null,null,null,null," "]
[null,null,null,null," "]
[null,null,null,null," "]
[null,null,null,null," "]
[null,null,null,null," "]
[null,null,null,null," "]
[null,null,null,null," "]
[null,null,null,null," "]
[null,null,null,null," "]
[null,null,null,null," "]
[null,null,null,null," "]
[null,null,null,null," "]
[null,null,null,null," "]
[null,null,null,null," "]
[null,null,null,null," "]
[null,null,null,null," "]
[null,null,null,null," "]
[null,null,null,null," "]
[null,null,null,null," "]
[null,null,null,null," "]
[null,null,null,null," "]
[null,null,null,null," "]
[null,null,null,null," "]
[null,null,null,null," "]
[null,null,null,null," "]
[null,null,null,null," "]
[null,null,null,null," "]
[null,null,null,null," "]
[null,null,null,null," "]
[null,null,null,null," "]
[null,null,null,null," "]
[null,null,null,null," "]
[null,null,null,null," "]
[null,null,null,null," "]
[null,null,null,null," "]
[null,null,null,null," "]
[null,null,null,null," "]
[null,null,null,null," "]
[null,null,null,null," "]
[null,null,null,null," "]
[null,null,null,null," "]
[null,null,null,null," "]
[null,null,null,null," "]
[null,null,null,null," "]
[null,null,null,null," "]
[null,null,null,null," "]
[null,null,null,null," "]
[null,null,null,null," "]
[null,null,null,null," "]
[null,null,null,null," "]
[null,null,null,null," "]
[null,null,null,null," "]
[null,null,null,null," "]
[null,null,null,null," "]
[null,null,null,null," "]
[null,null,null,null,{"$f":"IF(D401>0,C401/D401,\" \")","v":" "}]
[null,null,null,null," "]
[null,null,null,null," "]
[null,null,null,null," "]
[null,null,null,null," "]
[null,null,null,null," "]
[null,null,null,null," "]
[null,null,null,null," "]
[null,null,null,null," "]
[null,null,null,null," "]
[null,null,null,null," "]
[null,null,null,null," "]
[null,null,null,null," "]
[null,null,null,null," "]
[null,null,null,null," "]
[null,null,null,null," "]
[null,null,null,null," "]
[null,null,null,null," "]
[null,null,null,null," "]
[]
[]
[]
[]
[]
[null,null,null,null,null,null,null,null,null,null,null,{"$f":"IF(OR(K425>$J$440,J425=\"\"), 2, 1)","v":2}]
[null,null,null,null,null,null,null,null,null,null,null,{"$f":"IF(OR(K426>$J$440,J426=\"\"), 2, 1)","v":2}]
[null,null,null,null,null,null,null,null,null,null,{"$f":"IF(K426>0,J426/K426,\" \")","v":" "},{"$f":"IF(OR(K427>$J$440,J427=\"\"), 2, 1)","v":2}]
[null,null,null,null,null,null,null,null,null,null,null,{"$f":"IF(OR(K428>$J$440,J428=\"\"), 2, 1)","v":2}]
[null,null,null,null,null,null,null,null,null,null,null,{"$f":"IF(OR(K429>$J$440,J429=\"\"), 2, 1)","v":2}]

{"sheet":"All TI - Grade Span - H","index":9,"n_rows":429,"n_cols":12,"rows_kept":429,"cut":false,"hidden":false,"merged":[[443,3,443,4],[422,6,422,7],[422,9,422,10],[433,6,433,7],[434,6,434,7],[436,6,436,7],[437,6,437,7],[14,0,15,0],[14,1,15,1],[14,2,14,4],[439,6,439,7],[440,6,440,7],[9,1,9,2],[11,1,11,2],[11,4,12,7],[11,8,12,9],[12,1,12,2],[10,4,10,7],[10,8,10,9],[0,0,0,9],[1,0,1,9],[2,0,2,9],[3,1,3,4],[3,6,3,9],[5,0,6,0],[5,1,5,2],[5,4,5,9],[6,1,6,2],[6,4,6,7],[6,8,6,9],[7,4,9,7],[7,8,9,9],[8,1,8,2]]}
["1. Complete this worksheet if all schools in the grade span receive Title I funds."]
["2. Complete one worksheet for each grade span unless using Enrollment Size Range Grouping; then use two per grade span and indicate the range of \"Smaller\" or \"Larger\" on line 3.. If you need additional worksheets, please contact TIPA at TIPA@fldoe.org. "]
["3. <Enter \"Smaller\" or  \"Larger\" if that Enrollment Size Range Grouping is being used for the calculations below.>"]
["Local Educational Agency:","<Enter LEA name>",null,null,null,"Grade Span","<Enter Grade Span>"]
[]
["Total number of students in Title I schools in grade span",{"$f":"SUM(C17:C419)","v":0},null,null,"Allowable variance for the average "]
[null,"Sum of column C",null,null,"Shall not exceed 110% of average",null,null,null,{"$f":"(B12*1.1)","v":0}]
[null,null,null,null,"If \"Comparable\" all schools listed will showcase a green staff ratio percentage. If \"Not Comparable\" all non compliant school staff ratio percentages listed will showcase as red, requiring additional action.",null,null,null,{"$f":"IF(MAX(E17:E419)<=I7, \"Comparable\", \"Not Comparable\")","v":"Comparable"}]
["Totals for comparability options",{"$f":"SUM(D17:D419)","v":0}]
[null,"Sum of column D FTE Staff"]
[null,null,null,null,"Shall not be less than 90% of average",null,null,null,{"$f":"(B12*0.9)","v":0}]
["Averages for comparability options",{"$f":"IF(B6=0,0,B6/B9)","v":0},null,null,"If \"Comparable\" all schools listed will showcase a green staff ratio percentage. If \"Not Comparable\" all non compliant school staff ratio percentages listed will showcase as red, requiring additional action.",null,null,null,{"$f":"IF(COUNTIFS(E17:E419,\">0\",E17:E419,\"<>\"&0,E17:E419,\">=\"&I11)=COUNTIFS(E17:E419,\">0\",E17:E419,\"<>\"&0), \"Comparable\", \"Not Comparable\")","v":"Comparable"}]
[null,"Number of students in \nTitle I schools in grade span divided by the total for the option. "]
[]
["Title I Schools \nDo not include schools in the grade span that have fewer than 100 students enrolled.","Grade Span","Pupil-Teacher Ratio\n"]
[null,null,"Public School\nEnrollment\n(Column C)","FTE Staff\n(Column D)","Student \nStaff\nRatio"]
[null,null,null,null,{"$f":"IF(D17>0,C17/D17,\" \")","v":" "}]
[null,null,null,null," "]
[null,null,null,null," "]
[null,null,null,null," "]
[null,null,null,null," "]
[null,null,null,null," "]
[null,null,null,null," "]
[null,null,null,null," "]
[null,null,null,null," "]
[null,null,null,null," "]
[null,null,null,null," "]
[null,null,null,null," "]
[null,null,null,null," "]
[null,null,null,null," "]
[null,null,null,null," "]
[null,null,null,null," "]
[null,null,null,null," "]
[null,null,null,null," "]
[null,null,null,null," "]
[null,null,null,null," "]
[null,null,null,null," "]
[null,null,null,null," "]
[null,null,null,null," "]
[null,null,null,null," "]
[null,null,null,null," "]
[null,null,null,null," "]
[null,null,null,null," "]
[null,null,null,null," "]
[null,null,null,null," "]
[null,null,null,null," "]
[null,null,null,null," "]
[null,null,null,null," "]
[null,null,null,null," "]
[null,null,null,null," "]
[null,null,null,null," "]
[null,null,null,null," "]
[null,null,null,null," "]
[null,null,null,null," "]
[null,null,null,null," "]
[null,null,null,null," "]
[null,null,null,null," "]
[null,null,null,null," "]
[null,null,null,null," "]
[null,null,null,null," "]
[null,null,null,null," "]
[null,null,null,null," "]
[null,null,null,null," "]
[null,null,null,null," "]
[null,null,null,null," "]
[null,null,null,null," "]
[null,null,null,null," "]
[null,null,null,null," "]
[null,null,null,null," "]
[null,null,null,null," "]
[null,null,null,null," "]
[null,null,null,null," "]
[null,null,null,null," "]
[null,null,null,null," "]
[null,null,null,null," "]
[null,null,null,null," "]
[null,null,null,null," "]
[null,null,null,null," "]
[null,null,null,null," "]
[null,null,null,null," "]
[null,null,null,null,{"$f":"IF(D81>0,C81/D81,\" \")","v":" "}]
[null,null,null,null," "]
[null,null,null,null," "]
[null,null,null,null," "]
[null,null,null,null," "]
[null,null,null,null," "]
[null,null,null,null," "]
[null,null,null,null," "]
[null,null,null,null," "]
[null,null,null,null," "]
[null,null,null,null," "]
[null,null,null,null," "]
[null,null,null,null," "]
[null,null,null,null," "]
[null,null,null,null," "]
[null,null,null,null," "]
[null,null,null,null," "]
[null,null,null,null," "]
[null,null,null,null," "]
[null,null,null,null," "]
[null,null,null,null," "]
[null,null,null,null," "]
[null,null,null,null," "]
[null,null,null,null," "]
[null,null,null,null," "]
[null,null,null,null," "]
[null,null,null,null," "]
[null,null,null,null," "]
[null,null,null,null," "]
[null,null,null,null," "]
[null,null,null,null," "]
[null,null,null,null," "]
[null,null,null,null," "]
[null,null,null,null," "]
[null,null,null,null," "]
[null,null,null,null," "]
[null,null,null,null," "]
[null,null,null,null," "]
[null,null,null,null," "]
[null,null,null,null," "]
[null,null,null,null," "]
[null,null,null,null," "]
[null,null,null,null," "]
[null,null,null,null," "]
[null,null,null,null," "]
[null,null,null,null," "]
[null,null,null,null," "]
[null,null,null,null," "]
[null,null,null,null," "]
[null,null,null,null," "]
[null,null,null,null," "]
[null,null,null,null," "]
[null,null,null,null," "]
[null,null,null,null," "]
[null,null,null,null," "]
[null,null,null,null," "]
[null,null,null,null," "]
[null,null,null,null," "]
[null,null,null,null," "]
[null,null,null,null," "]
[null,null,null,null," "]
[null,null,null,null," "]
[null,null,null,null," "]
[null,null,null,null," "]
[null,null,null,null,{"$f":"IF(D145>0,C145/D145,\" \")","v":" "}]
[null,null,null,null," "]
[null,null,null,null," "]
[null,null,null,null," "]
[null,null,null,null," "]
[null,null,null,null," "]
[null,null,null,null," "]
[null,null,null,null," "]
[null,null,null,null," "]
[null,null,null,null," "]
[null,null,null,null," "]
[null,null,null,null," "]
[null,null,null,null," "]
[null,null,null,null," "]
[null,null,null,null," "]
[null,null,null,null," "]
[null,null,null,null," "]
[null,null,null,null," "]
[null,null,null,null," "]
[null,null,null,null," "]
[null,null,null,null," "]
[null,null,null,null," "]
[null,null,null,null," "]
[null,null,null,null," "]
[null,null,null,null," "]
[null,null,null,null," "]
[null,null,null,null," "]
[null,null,null,null," "]
[null,null,null,null," "]
[null,null,null,null," "]
[null,null,null,null," "]
[null,null,null,null," "]
[null,null,null,null," "]
[null,null,null,null," "]
[null,null,null,null," "]
[null,null,null,null," "]
[null,null,null,null," "]
[null,null,null,null," "]
[null,null,null,null," "]
[null,null,null,null," "]
[null,null,null,null," "]
[null,null,null,null," "]
[null,null,null,null," "]
[null,null,null,null," "]
[null,null,null,null," "]
[null,null,null,null," "]
[null,null,null,null," "]
[null,null,null,null," "]
[null,null,null,null," "]
[null,null,null,null," "]
[null,null,null,null," "]
[null,null,null,null," "]
[null,null,null,null," "]
[null,null,null,null," "]
[null,null,null,null," "]
[null,null,null,null," "]
[null,null,null,null," "]
[null,null,null,null," "]
[null,null,null,null," "]
[null,null,null,null," "]
[null,null,null,null," "]
[null,null,null,null," "]
[null,null,null,null," "]
[null,null,null,null," "]
[null,null,null,null,{"$f":"IF(D209>0,C209/D209,\" \")","v":" "}]
[null,null,null,null," "]
[null,null,null,null," "]
[null,null,null,null," "]
[null,null,null,null," "]
[null,null,null,null," "]
[null,null,null,null," "]
[null,null,null,null," "]
[null,null,null,null," "]
[null,null,null,null," "]
[null,null,null,null," "]
[null,null,null,null," "]
[null,null,null,null," "]
[null,null,null,null," "]
[null,null,null,null," "]
[null,null,null,null," "]
[null,null,null,null," "]
[null,null,null,null," "]
[null,null,null,null," "]
[null,null,null,null," "]
[null,null,null,null," "]
[null,null,null,null," "]
[null,null,null,null," "]
[null,null,null,null," "]
[null,null,null,null," "]
[null,null,null,null," "]
[null,null,null,null," "]
[null,null,null,null," "]
[null,null,null,null," "]
[null,null,null,null," "]
[null,null,null,null," "]
[null,null,null,null," "]
[null,null,null,null," "]
[null,null,null,null," "]
[null,null,null,null," "]
[null,null,null,null," "]
[null,null,null,null," "]
[null,null,null,null," "]
[null,null,null,null," "]
[null,null,null,null," "]
[null,null,null,null," "]
[null,null,null,null," "]
[null,null,null,null," "]
[null,null,null,null," "]
[null,null,null,null," "]
[null,null,null,null," "]
[null,null,null,null," "]
[null,null,null,null," "]
[null,null,null,null," "]
[null,null,null,null," "]
[null,null,null,null," "]
[null,null,null,null," "]
[null,null,null,null," "]
[null,null,null,null," "]
[null,null,null,null," "]
[null,null,null,null," "]
[null,null,null,null," "]
[null,null,null,null," "]
[null,null,null,null," "]
[null,null,null,null," "]
[null,null,null,null," "]
[null,null,null,null," "]
[null,null,null,null," "]
[null,null,null,null," "]
[null,null,null,null,{"$f":"IF(D273>0,C273/D273,\" \")","v":" "}]
[null,null,null,null," "]
[null,null,null,null," "]
[null,null,null,null," "]
[null,null,null,null," "]
[null,null,null,null," "]
[null,null,null,null," "]
[null,null,null,null," "]
[null,null,null,null," "]
[null,null,null,null," "]
[null,null,null,null," "]
[null,null,null,null," "]
[null,null,null,null," "]
[null,null,null,null," "]
[null,null,null,null," "]
[null,null,null,null," "]
[null,null,null,null," "]
[null,null,null,null," "]
[null,null,null,null," "]
[null,null,null,null," "]
[null,null,null,null," "]
[null,null,null,null," "]
[null,null,null,null," "]
[null,null,null,null," "]
[null,null,null,null," "]
[null,null,null,null," "]
[null,null,null,null," "]
[null,null,null,null," "]
[null,null,null,null," "]
[null,null,null,null," "]
[null,null,null,null," "]
[null,null,null,null," "]
[null,null,null,null," "]
[null,null,null,null," "]
[null,null,null,null," "]
[null,null,null,null," "]
[null,null,null,null," "]
[null,null,null,null," "]
[null,null,null,null," "]
[null,null,null,null," "]
[null,null,null,null," "]
[null,null,null,null," "]
[null,null,null,null," "]
[null,null,null,null," "]
[null,null,null,null," "]
[null,null,null,null," "]
[null,null,null,null," "]
[null,null,null,null," "]
[null,null,null,null," "]
[null,null,null,null," "]
[null,null,null,null," "]
[null,null,null,null," "]
[null,null,null,null," "]
[null,null,null,null," "]
[null,null,null,null," "]
[null,null,null,null," "]
[null,null,null,null," "]
[null,null,null,null," "]
[null,null,null,null," "]
[null,null,null,null," "]
[null,null,null,null," "]
[null,null,null,null," "]
[null,null,null,null," "]
[null,null,null,null," "]
[null,null,null,null,{"$f":"IF(D337>0,C337/D337,\" \")","v":" "}]
[null,null,null,null," "]
[null,null,null,null," "]
[null,null,null,null," "]
[null,null,null,null," "]
[null,null,null,null," "]
[null,null,null,null," "]
[null,null,null,null," "]
[null,null,null,null," "]
[null,null,null,null," "]
[null,null,null,null," "]
[null,null,null,null," "]
[null,null,null,null," "]
[null,null,null,null," "]
[null,null,null,null," "]
[null,null,null,null," "]
[null,null,null,null," "]
[null,null,null,null," "]
[null,null,null,null," "]
[null,null,null,null," "]
[null,null,null,null," "]
[null,null,null,null," "]
[null,null,null,null," "]
[null,null,null,null," "]
[null,null,null,null," "]
[null,null,null,null," "]
[null,null,null,null," "]
[null,null,null,null," "]
[null,null,null,null," "]
[null,null,null,null," "]
[null,null,null,null," "]
[null,null,null,null," "]
[null,null,null,null," "]
[null,null,null,null," "]
[null,null,null,null," "]
[null,null,null,null," "]
[null,null,null,null," "]
[null,null,null,null," "]
[null,null,null,null," "]
[null,null,null,null," "]
[null,null,null,null," "]
[null,null,null,null," "]
[null,null,null,null," "]
[null,null,null,null," "]
[null,null,null,null," "]
[null,null,null,null," "]
[null,null,null,null," "]
[null,null,null,null," "]
[null,null,null,null," "]
[null,null,null,null," "]
[null,null,null,null," "]
[null,null,null,null," "]
[null,null,null,null," "]
[null,null,null,null," "]
[null,null,null,null," "]
[null,null,null,null," "]
[null,null,null,null," "]
[null,null,null,null," "]
[null,null,null,null," "]
[null,null,null,null," "]
[null,null,null,null," "]
[null,null,null,null," "]
[null,null,null,null," "]
[null,null,null,null," "]
[null,null,null,null,{"$f":"IF(D401>0,C401/D401,\" \")","v":" "}]
[null,null,null,null," "]
[null,null,null,null," "]
[null,null,null,null," "]
[null,null,null,null," "]
[null,null,null,null," "]
[null,null,null,null," "]
[null,null,null,null," "]
[null,null,null,null," "]
[null,null,null,null," "]
[null,null,null,null," "]
[null,null,null,null," "]
[null,null,null,null," "]
[null,null,null,null," "]
[null,null,null,null," "]
[null,null,null,null," "]
[null,null,null,null," "]
[null,null,null,null," "]
[null,null,null,null," "]
[]
[]
[]
[]
[]
[null,null,null,null,null,null,null,null,null,null,null,{"$f":"IF(OR(K425>$J$440,J425=\"\"), 2, 1)","v":2}]
[null,null,null,null,null,null,null,null,null,null,null,{"$f":"IF(OR(K426>$J$440,J426=\"\"), 2, 1)","v":2}]
[null,null,null,null,null,null,null,null,null,null,{"$f":"IF(K426>0,J426/K426,\" \")","v":" "},{"$f":"IF(OR(K427>$J$440,J427=\"\"), 2, 1)","v":2}]
[null,null,null,null,null,null,null,null,null,null,null,{"$f":"IF(OR(K428>$J$440,J428=\"\"), 2, 1)","v":2}]
[null,null,null,null,null,null,null,null,null,null,null,{"$f":"IF(OR(K429>$J$440,J429=\"\"), 2, 1)","v":2}]

{"sheet":"All TI - Grade Span - C","index":10,"n_rows":429,"n_cols":12,"rows_kept":429,"cut":false,"hidden":false,"merged":[[0,0,0,9],[1,0,1,9],[2,0,2,9],[5,4,5,9],[6,4,6,7],[5,1,5,2],[6,1,6,2],[5,0,6,0],[443,3,443,4],[3,6,3,9],[10,8,10,9],[10,4,10,7],[422,9,422,10],[3,1,3,4],[11,1,11,2],[436,6,436,7],[9,1,9,2],[434,6,434,7],[8,1,8,2],[433,6,433,7],[14,0,15,0],[14,1,15,1],[440,6,440,7],[6,8,6,9],[439,6,439,7],[14,2,14,4],[437,6,437,7],[422,6,422,7],[11,8,12,9],[11,4,12,7],[7,8,9,9],[7,4,9,7],[12,1,12,2]]}
["1. Complete this worksheet if all schools in the grade span receive Title I funds."]
["2. Complete one worksheet for each grade span unless using Enrollment Size Range Grouping; then use two per grade span and indicate the range of \"Smaller\" or \"Larger\" on line 3.. If you need additional worksheets, please contact TIPA at TIPA@fldoe.org. "]
["3. <Enter \"Smaller\" or  \"Larger\" if that Enrollment Size Range Grouping is being used for the calculations below.>"]
["Local Educational Agency:","<Enter LEA name>",null,null,null,"Grade Span","<Enter Grade Span>"]
[]
["Total number of students in Title I schools in grade span",{"$f":"SUM(C17:C419)","v":0},null,null,"Allowable variance for the average "]
[null,"Sum of column C",null,null,"Shall not exceed 110% of average",null,null,null,{"$f":"(B12*1.1)","v":0}]
[null,null,null,null,"If \"Comparable\" all schools listed will showcase a green staff ratio percentage. If \"Not Comparable\" all non compliant school staff ratio percentages listed will showcase as red, requiring additional action.",null,null,null,{"$f":"IF(MAX(E17:E419)<=I7, \"Comparable\", \"Not Comparable\")","v":"Comparable"}]
["Totals for comparability options",{"$f":"SUM(D17:D419)","v":0}]
[null,"Sum of column D FTE Staff"]
[null,null,null,null,"Shall not be less than 90% of average",null,null,null,{"$f":"(B12*0.9)","v":0}]
["Averages for comparability options",{"$f":"IF(B6=0,0,B6/B9)","v":0},null,null,"If \"Comparable\" all schools listed will showcase a green staff ratio percentage. If \"Not Comparable\" all non compliant school staff ratio percentages listed will showcase as red, requiring additional action.",null,null,null,{"$f":"IF(COUNTIFS(E17:E419,\">0\",E17:E419,\"<>\"&0,E17:E419,\">=\"&I11)=COUNTIFS(E17:E419,\">0\",E17:E419,\"<>\"&0), \"Comparable\", \"Not Comparable\")","v":"Comparable"}]
[null,"Number of students in \nTitle I schools in grade span divided by the total for the option. "]
[]
["Title I Schools \nDo not include schools in the grade span that have fewer than 100 students enrolled.","Grade Span","Pupil-Teacher Ratio\n"]
[null,null,"Public School\nEnrollment\n(Column C)","FTE Staff\n(Column D)","Student \nStaff\nRatio"]
[null,null,null,null,{"$f":"IF(D17>0,C17/D17,\" \")","v":" "}]
[null,null,null,null," "]
[null,null,null,null," "]
[null,null,null,null," "]
[null,null,null,null," "]
[null,null,null,null," "]
[null,null,null,null," "]
[null,null,null,null," "]
[null,null,null,null," "]
[null,null,null,null," "]
[null,null,null,null," "]
[null,null,null,null," "]
[null,null,null,null," "]
[null,null,null,null," "]
[null,null,null,null," "]
[null,null,null,null," "]
[null,null,null,null," "]
[null,null,null,null," "]
[null,null,null,null," "]
[null,null,null,null," "]
[null,null,null,null," "]
[null,null,null,null," "]
[null,null,null,null," "]
[null,null,null,null," "]
[null,null,null,null," "]
[null,null,null,null," "]
[null,null,null,null," "]
[null,null,null,null," "]
[null,null,null,null," "]
[null,null,null,null," "]
[null,null,null,null," "]
[null,null,null,null," "]
[null,null,null,null," "]
[null,null,null,null," "]
[null,null,null,null," "]
[null,null,null,null," "]
[null,null,null,null," "]
[null,null,null,null," "]
[null,null,null,null," "]
[null,null,null,null," "]
[null,null,null,null," "]
[null,null,null,null," "]
[null,null,null,null," "]
[null,null,null,null," "]
[null,null,null,null," "]
[null,null,null,null," "]
[null,null,null,null," "]
[null,null,null,null," "]
[null,null,null,null," "]
[null,null,null,null," "]
[null,null,null,null," "]
[null,null,null,null," "]
[null,null,null,null," "]
[null,null,null,null," "]
[null,null,null,null," "]
[null,null,null,null," "]
[null,null,null,null," "]
[null,null,null,null," "]
[null,null,null,null," "]
[null,null,null,null," "]
[null,null,null,null," "]
[null,null,null,null," "]
[null,null,null,null," "]
[null,null,null,null," "]
[null,null,null,null,{"$f":"IF(D81>0,C81/D81,\" \")","v":" "}]
[null,null,null,null," "]
[null,null,null,null," "]
[null,null,null,null," "]
[null,null,null,null," "]
[null,null,null,null," "]
[null,null,null,null," "]
[null,null,null,null," "]
[null,null,null,null," "]
[null,null,null,null," "]
[null,null,null,null," "]
[null,null,null,null," "]
[null,null,null,null," "]
[null,null,null,null," "]
[null,null,null,null," "]
[null,null,null,null," "]
[null,null,null,null," "]
[null,null,null,null," "]
[null,null,null,null," "]
[null,null,null,null," "]
[null,null,null,null," "]
[null,null,null,null," "]
[null,null,null,null," "]
[null,null,null,null," "]
[null,null,null,null," "]
[null,null,null,null," "]
[null,null,null,null," "]
[null,null,null,null," "]
[null,null,null,null," "]
[null,null,null,null," "]
[null,null,null,null," "]
[null,null,null,null," "]
[null,null,null,null," "]
[null,null,null,null," "]
[null,null,null,null," "]
[null,null,null,null," "]
[null,null,null,null," "]
[null,null,null,null," "]
[null,null,null,null," "]
[null,null,null,null," "]
[null,null,null,null," "]
[null,null,null,null," "]
[null,null,null,null," "]
[null,null,null,null," "]
[null,null,null,null," "]
[null,null,null,null," "]
[null,null,null,null," "]
[null,null,null,null," "]
[null,null,null,null," "]
[null,null,null,null," "]
[null,null,null,null," "]
[null,null,null,null," "]
[null,null,null,null," "]
[null,null,null,null," "]
[null,null,null,null," "]
[null,null,null,null," "]
[null,null,null,null," "]
[null,null,null,null," "]
[null,null,null,null," "]
[null,null,null,null," "]
[null,null,null,null," "]
[null,null,null,null," "]
[null,null,null,null," "]
[null,null,null,null," "]
[null,null,null,null,{"$f":"IF(D145>0,C145/D145,\" \")","v":" "}]
[null,null,null,null," "]
[null,null,null,null," "]
[null,null,null,null," "]
[null,null,null,null," "]
[null,null,null,null," "]
[null,null,null,null," "]
[null,null,null,null," "]
[null,null,null,null," "]
[null,null,null,null," "]
[null,null,null,null," "]
[null,null,null,null," "]
[null,null,null,null," "]
[null,null,null,null," "]
[null,null,null,null," "]
[null,null,null,null," "]
[null,null,null,null," "]
[null,null,null,null," "]
[null,null,null,null," "]
[null,null,null,null," "]
[null,null,null,null," "]
[null,null,null,null," "]
[null,null,null,null," "]
[null,null,null,null," "]
[null,null,null,null," "]
[null,null,null,null," "]
[null,null,null,null," "]
[null,null,null,null," "]
[null,null,null,null," "]
[null,null,null,null," "]
[null,null,null,null," "]
[null,null,null,null," "]
[null,null,null,null," "]
[null,null,null,null," "]
[null,null,null,null," "]
[null,null,null,null," "]
[null,null,null,null," "]
[null,null,null,null," "]
[null,null,null,null," "]
[null,null,null,null," "]
[null,null,null,null," "]
[null,null,null,null," "]
[null,null,null,null," "]
[null,null,null,null," "]
[null,null,null,null," "]
[null,null,null,null," "]
[null,null,null,null," "]
[null,null,null,null," "]
[null,null,null,null," "]
[null,null,null,null," "]
[null,null,null,null," "]
[null,null,null,null," "]
[null,null,null,null," "]
[null,null,null,null," "]
[null,null,null,null," "]
[null,null,null,null," "]
[null,null,null,null," "]
[null,null,null,null," "]
[null,null,null,null," "]
[null,null,null,null," "]
[null,null,null,null," "]
[null,null,null,null," "]
[null,null,null,null," "]
[null,null,null,null," "]
[null,null,null,null,{"$f":"IF(D209>0,C209/D209,\" \")","v":" "}]
[null,null,null,null," "]
[null,null,null,null," "]
[null,null,null,null," "]
[null,null,null,null," "]
[null,null,null,null," "]
[null,null,null,null," "]
[null,null,null,null," "]
[null,null,null,null," "]
[null,null,null,null," "]
[null,null,null,null," "]
[null,null,null,null," "]
[null,null,null,null," "]
[null,null,null,null," "]
[null,null,null,null," "]
[null,null,null,null," "]
[null,null,null,null," "]
[null,null,null,null," "]
[null,null,null,null," "]
[null,null,null,null," "]
[null,null,null,null," "]
[null,null,null,null," "]
[null,null,null,null," "]
[null,null,null,null," "]
[null,null,null,null," "]
[null,null,null,null," "]
[null,null,null,null," "]
[null,null,null,null," "]
[null,null,null,null," "]
[null,null,null,null," "]
[null,null,null,null," "]
[null,null,null,null," "]
[null,null,null,null," "]
[null,null,null,null," "]
[null,null,null,null," "]
[null,null,null,null," "]
[null,null,null,null," "]
[null,null,null,null," "]
[null,null,null,null," "]
[null,null,null,null," "]
[null,null,null,null," "]
[null,null,null,null," "]
[null,null,null,null," "]
[null,null,null,null," "]
[null,null,null,null," "]
[null,null,null,null," "]
[null,null,null,null," "]
[null,null,null,null," "]
[null,null,null,null," "]
[null,null,null,null," "]
[null,null,null,null," "]
[null,null,null,null," "]
[null,null,null,null," "]
[null,null,null,null," "]
[null,null,null,null," "]
[null,null,null,null," "]
[null,null,null,null," "]
[null,null,null,null," "]
[null,null,null,null," "]
[null,null,null,null," "]
[null,null,null,null," "]
[null,null,null,null," "]
[null,null,null,null," "]
[null,null,null,null," "]
[null,null,null,null,{"$f":"IF(D273>0,C273/D273,\" \")","v":" "}]
[null,null,null,null," "]
[null,null,null,null," "]
[null,null,null,null," "]
[null,null,null,null," "]
[null,null,null,null," "]
[null,null,null,null," "]
[null,null,null,null," "]
[null,null,null,null," "]
[null,null,null,null," "]
[null,null,null,null," "]
[null,null,null,null," "]
[null,null,null,null," "]
[null,null,null,null," "]
[null,null,null,null," "]
[null,null,null,null," "]
[null,null,null,null," "]
[null,null,null,null," "]
[null,null,null,null," "]
[null,null,null,null," "]
[null,null,null,null," "]
[null,null,null,null," "]
[null,null,null,null," "]
[null,null,null,null," "]
[null,null,null,null," "]
[null,null,null,null," "]
[null,null,null,null," "]
[null,null,null,null," "]
[null,null,null,null," "]
[null,null,null,null," "]
[null,null,null,null," "]
[null,null,null,null," "]
[null,null,null,null," "]
[null,null,null,null," "]
[null,null,null,null," "]
[null,null,null,null," "]
[null,null,null,null," "]
[null,null,null,null," "]
[null,null,null,null," "]
[null,null,null,null," "]
[null,null,null,null," "]
[null,null,null,null," "]
[null,null,null,null," "]
[null,null,null,null," "]
[null,null,null,null," "]
[null,null,null,null," "]
[null,null,null,null," "]
[null,null,null,null," "]
[null,null,null,null," "]
[null,null,null,null," "]
[null,null,null,null," "]
[null,null,null,null," "]
[null,null,null,null," "]
[null,null,null,null," "]
[null,null,null,null," "]
[null,null,null,null," "]
[null,null,null,null," "]
[null,null,null,null," "]
[null,null,null,null," "]
[null,null,null,null," "]
[null,null,null,null," "]
[null,null,null,null," "]
[null,null,null,null," "]
[null,null,null,null," "]
[null,null,null,null,{"$f":"IF(D337>0,C337/D337,\" \")","v":" "}]
[null,null,null,null," "]
[null,null,null,null," "]
[null,null,null,null," "]
[null,null,null,null," "]
[null,null,null,null," "]
[null,null,null,null," "]
[null,null,null,null," "]
[null,null,null,null," "]
[null,null,null,null," "]
[null,null,null,null," "]
[null,null,null,null," "]
[null,null,null,null," "]
[null,null,null,null," "]
[null,null,null,null," "]
[null,null,null,null," "]
[null,null,null,null," "]
[null,null,null,null," "]
[null,null,null,null," "]
[null,null,null,null," "]
[null,null,null,null," "]
[null,null,null,null," "]
[null,null,null,null," "]
[null,null,null,null," "]
[null,null,null,null," "]
[null,null,null,null," "]
[null,null,null,null," "]
[null,null,null,null," "]
[null,null,null,null," "]
[null,null,null,null," "]
[null,null,null,null," "]
[null,null,null,null," "]
[null,null,null,null," "]
[null,null,null,null," "]
[null,null,null,null," "]
[null,null,null,null," "]
[null,null,null,null," "]
[null,null,null,null," "]
[null,null,null,null," "]
[null,null,null,null," "]
[null,null,null,null," "]
[null,null,null,null," "]
[null,null,null,null," "]
[null,null,null,null," "]
[null,null,null,null," "]
[null,null,null,null," "]
[null,null,null,null," "]
[null,null,null,null," "]
[null,null,null,null," "]
[null,null,null,null," "]
[null,null,null,null," "]
[null,null,null,null," "]
[null,null,null,null," "]
[null,null,null,null," "]
[null,null,null,null," "]
[null,null,null,null," "]
[null,null,null,null," "]
[null,null,null,null," "]
[null,null,null,null," "]
[null,null,null,null," "]
[null,null,null,null," "]
[null,null,null,null," "]
[null,null,null,null," "]
[null,null,null,null," "]
[null,null,null,null,{"$f":"IF(D401>0,C401/D401,\" \")","v":" "}]
[null,null,null,null," "]
[null,null,null,null," "]
[null,null,null,null," "]
[null,null,null,null," "]
[null,null,null,null," "]
[null,null,null,null," "]
[null,null,null,null," "]
[null,null,null,null," "]
[null,null,null,null," "]
[null,null,null,null," "]
[null,null,null,null," "]
[null,null,null,null," "]
[null,null,null,null," "]
[null,null,null,null," "]
[null,null,null,null," "]
[null,null,null,null," "]
[null,null,null,null," "]
[null,null,null,null,{"$f":"IF(D419>0,C419/D419,\" \")","v":" "}]
[]
[]
[]
[]
[]
[null,null,null,null,null,null,null,null,null,null,null,{"$f":"IF(OR(K425>$J$440,J425=\"\"), 2, 1)","v":2}]
[null,null,null,null,null,null,null,null,null,null,null,{"$f":"IF(OR(K426>$J$440,J426=\"\"), 2, 1)","v":2}]
[null,null,null,null,null,null,null,null,null,null,{"$f":"IF(K426>0,J426/K426,\" \")","v":" "},{"$f":"IF(OR(K427>$J$440,J427=\"\"), 2, 1)","v":2}]
[null,null,null,null,null,null,null,null,null,null,null,{"$f":"IF(OR(K428>$J$440,J428=\"\"), 2, 1)","v":2}]
[null,null,null,null,null,null,null,null,null,null,null,{"$f":"IF(OR(K429>$J$440,J429=\"\"), 2, 1)","v":2}]